Body,Body Name,Transaction No,Invoice Ref.,Supplier Name,Expense Code,Expense Type,Date,Amount
http://statistics.data.gov.uk/id/local-authority-district/23UB,Cheltenham Borough Council,450357,33611,ABSOLUTE PUBLISHING LIMITED,C-L31100-3510,TIC-Promotion & Marketing,27-May-11,625.00
http://statistics.data.gov.uk/id/local-authority-district/23UB,Cheltenham Borough Council,448275,18705209-15,ADT FIRE AND SECURITY,C-E63100-1114,Cemetery & Crem-Security systems,04-May-11,648.70
http://statistics.data.gov.uk/id/local-authority-district/23UB,Cheltenham Borough Council,448276,18705231-15,ADT FIRE AND SECURITY,C-E63100-1114,Cemetery & Crem-Security systems,04-May-11,669.80
http://statistics.data.gov.uk/id/local-authority-district/23UB,Cheltenham Borough Council,448332,18769094-15,ADT FIRE AND SECURITY,C-D14100-1114,Depot Building-Security systems,11-May-11,710.00
http://statistics.data.gov.uk/id/local-authority-district/23UB,Cheltenham Borough Council,450210,18693486-15,ADT FIRE AND SECURITY,C-D14100-1114,Depot Building-Security systems,27-May-11,"1,342.08"
http://statistics.data.gov.uk/id/local-authority-district/23UB,Cheltenham Borough Council,448645,139939,A&E FIRE EQUIPMENT LTD,C-D13550-1115,Area Off -E.Hse-Fire prevention,11-May-11,145.88
http://statistics.data.gov.uk/id/local-authority-district/23UB,Cheltenham Borough Council,448330,141234,A&E FIRE EQUIPMENT LTD,C-E21400-3103,Shopmobility-Equipment repairs & maint,11-May-11,15.76
http://statistics.data.gov.uk/id/local-authority-district/23UB,Cheltenham Borough Council,448550,140670,A&E FIRE EQUIPMENT LTD,C-HC4069-C302,Fire Protection-Building Contractor,11-May-11,"18,000.00"
http://statistics.data.gov.uk/id/local-authority-district/23UB,Cheltenham Borough Council,449733,141486,A&E FIRE EQUIPMENT LTD,C-C22120-1801,Sports & Open S-RM-Electrical repairs,27-May-11,6.58
http://statistics.data.gov.uk/id/local-authority-district/23UB,Cheltenham Borough Council,450154,141396,A&E FIRE EQUIPMENT LTD,C-C22120-1808,Sports & Open S-RM-Routine works,27-May-11,9.49
http://statistics.data.gov.uk/id/local-authority-district/23UB,Cheltenham Borough Council,450162,141485,A&E FIRE EQUIPMENT LTD,C-C22120-1808,Sports & Open S-RM-Routine works,27-May-11,1.88
http://statistics.data.gov.uk/id/local-authority-district/23UB,Cheltenham Borough Council,450160,141483,A&E FIRE EQUIPMENT LTD,C-C22120-1808,Sports & Open S-RM-Routine works,27-May-11,2.82
http://statistics.data.gov.uk/id/local-authority-district/23UB,Cheltenham Borough Council,450161,141484,A&E FIRE EQUIPMENT LTD,C-C22120-1808,Sports & Open S-RM-Routine works,27-May-11,6.58
http://statistics.data.gov.uk/id/local-authority-district/23UB,Cheltenham Borough Council,450163,141487,A&E FIRE EQUIPMENT LTD,C-C22120-1808,Sports & Open S-RM-Routine works,27-May-11,9.40
http://statistics.data.gov.uk/id/local-authority-district/23UB,Cheltenham Borough Council,450166,141490,A&E FIRE EQUIPMENT LTD,C-C22120-1808,Sports & Open S-RM-Routine works,27-May-11,2.82
http://statistics.data.gov.uk/id/local-authority-district/23UB,Cheltenham Borough Council,450170,141494,A&E FIRE EQUIPMENT LTD,C-C22120-1808,Sports & Open S-RM-Routine works,27-May-11,10.34
http://statistics.data.gov.uk/id/local-authority-district/23UB,Cheltenham Borough Council,450169,141493,A&E FIRE EQUIPMENT LTD,C-C22120-1808,Sports & Open S-RM-Routine works,27-May-11,3.76
http://statistics.data.gov.uk/id/local-authority-district/23UB,Cheltenham Borough Council,450168,141492,A&E FIRE EQUIPMENT LTD,C-C22120-1808,Sports & Open S-RM-Routine works,27-May-11,2.82
http://statistics.data.gov.uk/id/local-authority-district/23UB,Cheltenham Borough Council,450167,141491,A&E FIRE EQUIPMENT LTD,C-C22120-1808,Sports & Open S-RM-Routine works,27-May-11,10.34
http://statistics.data.gov.uk/id/local-authority-district/23UB,Cheltenham Borough Council,450164,141488,A&E FIRE EQUIPMENT LTD,C-C22120-1808,Sports & Open S-RM-Routine works,27-May-11,1.88
http://statistics.data.gov.uk/id/local-authority-district/23UB,Cheltenham Borough Council,450165,141489,A&E FIRE EQUIPMENT LTD,C-C23140-1808,Public Convnces-RM-Routine works,27-May-11,2.82
http://statistics.data.gov.uk/id/local-authority-district/23UB,Cheltenham Borough Council,450172,141496,A&E FIRE EQUIPMENT LTD,C-C23140-1808,Public Convnces-RM-Routine works,27-May-11,9.40
http://statistics.data.gov.uk/id/local-authority-district/23UB,Cheltenham Borough Council,450171,141495,A&E FIRE EQUIPMENT LTD,C-C23140-1808,Public Convnces-RM-Routine works,27-May-11,2.82
http://statistics.data.gov.uk/id/local-authority-district/23UB,Cheltenham Borough Council,450173,141527,A&E FIRE EQUIPMENT LTD,C-D13100-1808,Muni Off Blgs-RM-Routine works,27-May-11,83.36
http://statistics.data.gov.uk/id/local-authority-district/23UB,Cheltenham Borough Council,450155,141443,A&E FIRE EQUIPMENT LTD,C-D13550-1115,Area Off -E.Hse-Fire prevention,27-May-11,63.92
http://statistics.data.gov.uk/id/local-authority-district/23UB,Cheltenham Borough Council,450328,139933,A&E FIRE EQUIPMENT LTD,C-D14100-1115,Depot Building-Fire prevention,27-May-11,204.11
http://statistics.data.gov.uk/id/local-authority-district/23UB,Cheltenham Borough Council,450152,141266,A&E FIRE EQUIPMENT LTD,C-D14100-1808,Depot Building-RM-Routine works,27-May-11,60.16
http://statistics.data.gov.uk/id/local-authority-district/23UB,Cheltenham Borough Council,450156,141444,A&E FIRE EQUIPMENT LTD,C-D30200-1124,Misc Props & Ld-Berkeley Mews  Repairs,27-May-11,8.46
http://statistics.data.gov.uk/id/local-authority-district/23UB,Cheltenham Borough Council,450157,141445,A&E FIRE EQUIPMENT LTD,C-D33950-1808,Resource Centre-RM-Routine works,27-May-11,5.64
http://statistics.data.gov.uk/id/local-authority-district/23UB,Cheltenham Borough Council,450158,141449,A&E FIRE EQUIPMENT LTD,C-E21100-1808,Car Prks-Off St-RM-Routine works,27-May-11,45.12
http://statistics.data.gov.uk/id/local-authority-district/23UB,Cheltenham Borough Council,450159,141450,A&E FIRE EQUIPMENT LTD,C-E21100-1808,Car Prks-Off St-RM-Routine works,27-May-11,81.78
http://statistics.data.gov.uk/id/local-authority-district/23UB,Cheltenham Borough Council,450153,141370,A&E FIRE EQUIPMENT LTD,C-L11500-1808,Rec Facilities-RM-Routine works,27-May-11,72.50
http://statistics.data.gov.uk/id/local-authority-district/23UB,Cheltenham Borough Council,450174,141547,A&E FIRE EQUIPMENT LTD,C-L11500-1808,Rec Facilities-RM-Routine works,27-May-11,340.28
http://statistics.data.gov.uk/id/local-authority-district/23UB,Cheltenham Borough Council,450176,141549,A&E FIRE EQUIPMENT LTD,C-L11500-1808,Rec Facilities-RM-Routine works,27-May-11,27.26
http://statistics.data.gov.uk/id/local-authority-district/23UB,Cheltenham Borough Council,450175,141548,A&E FIRE EQUIPMENT LTD,C-L11500-1808,Rec Facilities-RM-Routine works,27-May-11,78.74
http://statistics.data.gov.uk/id/local-authority-district/23UB,Cheltenham Borough Council,449861,CREDIT BILLED T,A&E FIRE EQUIPMENT LTD,C-L11500-1808,Rec Facilities-RM-Routine works,27-May-11,-30.00
http://statistics.data.gov.uk/id/local-authority-district/23UB,Cheltenham Borough Council,450151,141265,A&E FIRE EQUIPMENT LTD,C-L21100-1808,Town Hall-RM-Routine works,27-May-11,396.22
http://statistics.data.gov.uk/id/local-authority-district/23UB,Cheltenham Borough Council,450177,141607,A&E FIRE EQUIPMENT LTD,C-L21100-1808,Town Hall-RM-Routine works,27-May-11,936.30
http://statistics.data.gov.uk/id/local-authority-district/23UB,Cheltenham Borough Council,450150,141264,A&E FIRE EQUIPMENT LTD,C-L21200-1808,Pump Room-RM-Routine works,27-May-11,204.34
http://statistics.data.gov.uk/id/local-authority-district/23UB,Cheltenham Borough Council,449617,SIN 30473,ALBANY SOFTWARE LIMITED,C-D11300-3623,Accountancy-Cmpter-sftwre lic purch,20-May-11,45.00
http://statistics.data.gov.uk/id/local-authority-district/23UB,Cheltenham Borough Council,449618,SIN 0030018,ALBANY SOFTWARE LIMITED,C-D11300-3623,Accountancy-Cmpter-sftwre lic purch,20-May-11,"1,940.25"
http://statistics.data.gov.uk/id/local-authority-district/23UB,Cheltenham Borough Council,448639,50811,ALPHA COLOUR PRINTERS LTD,C-1T21A1-3528,BBC Now 2-Programme costs,11-May-11,119.00
http://statistics.data.gov.uk/id/local-authority-district/23UB,Cheltenham Borough Council,448804,50805,ALPHA COLOUR PRINTERS LTD,C-L41100-3540,AG & M-Educ-lectures/workshops,13-May-11,351.00
http://statistics.data.gov.uk/id/local-authority-district/23UB,Cheltenham Borough Council,448803,50778,ALPHA COLOUR PRINTERS LTD,C-Z12440-AG12,AGM Exhibitions-Schools Art,13-May-11,60.00
http://statistics.data.gov.uk/id/local-authority-district/23UB,Cheltenham Borough Council,448803,50778,ALPHA COLOUR PRINTERS LTD,C-Z12440-AG12,AGM Exhibitions-Schools Art,13-May-11,15.00
http://statistics.data.gov.uk/id/local-authority-district/23UB,Cheltenham Borough Council,449631,50779,ALPHA COLOUR PRINTERS LTD,C-1T05A1-3528,CBSO-Programme costs,20-May-11,119.00
http://statistics.data.gov.uk/id/local-authority-district/23UB,Cheltenham Borough Council,449635,50806,ALPHA COLOUR PRINTERS LTD,C-D12430-3401,Housing & CT Be-Printing - general,20-May-11,68.00
http://statistics.data.gov.uk/id/local-authority-district/23UB,Cheltenham Borough Council,449633,50797,ALPHA COLOUR PRINTERS LTD,C-D21100-3401,Dem Process-Printing - general,20-May-11,25.00
http://statistics.data.gov.uk/id/local-authority-district/23UB,Cheltenham Borough Council,449634,50819,ALPHA COLOUR PRINTERS LTD,C-D21190-3403,O&S Committees-Printing-Committee Papers,20-May-11,155.00
http://statistics.data.gov.uk/id/local-authority-district/23UB,Cheltenham Borough Council,449632,50810,ALPHA COLOUR PRINTERS LTD,C-D21190-3412,O&S Committees-Printing - Cabinet Papers,20-May-11,155.00
http://statistics.data.gov.uk/id/local-authority-district/23UB,Cheltenham Borough Council,449542,50816,ALPHA COLOUR PRINTERS LTD,C-L41100-3401,AG & M-Printing - general,20-May-11,"1,415.00"
http://statistics.data.gov.uk/id/local-authority-district/23UB,Cheltenham Borough Council,449553,50808,ALPHA COLOUR PRINTERS LTD,C-L41100-3538,AG & M-Educ-community outreach,20-May-11,287.00
http://statistics.data.gov.uk/id/local-authority-district/23UB,Cheltenham Borough Council,448464,0735,ANDERSON CIVIL ENGINEERING UK LIMITED,C-D21250-3972,Civil Emergency-EU Restoration Fund,09-May-11,"1,254.00"
http://statistics.data.gov.uk/id/local-authority-district/23UB,Cheltenham Borough Council,448464,0735,ANDERSON CIVIL ENGINEERING UK LIMITED,C-E22100-1129,Chel River&W/C-CBC Riparian Ownership,09-May-11,"5,746.00"
http://statistics.data.gov.uk/id/local-authority-district/23UB,Cheltenham Borough Council,448464,0735,ANDERSON CIVIL ENGINEERING UK LIMITED,C-N11250-9227,Excluded,09-May-11,-240.00
http://statistics.data.gov.uk/id/local-authority-district/23UB,Cheltenham Borough Council,449874,GWCPF292011,ROSS ANDREWS,C-Z12310-3940,TIC Agency-External Event Payments,25-May-11,268.50
http://statistics.data.gov.uk/id/local-authority-district/23UB,Cheltenham Borough Council,449874,GWCPF292011,ROSS ANDREWS,C-Z12310-3940,TIC Agency-External Event Payments,25-May-11,-26.85
http://statistics.data.gov.uk/id/local-authority-district/23UB,Cheltenham Borough Council,449574,098,ANIMALMANIA,C-L16100-3501,Holiday Rec-Hire of outside services,20-May-11,160.00
http://statistics.data.gov.uk/id/local-authority-district/23UB,Cheltenham Borough Council,449650,2500000119070,AON LIMITED,C-L41100-1901,AG & M-Insurance-fire,20-May-11,530.00
http://statistics.data.gov.uk/id/local-authority-district/23UB,Cheltenham Borough Council,449652,2500000116510,AON LIMITED,C-L41100-1901,AG & M-Insurance-fire,20-May-11,"14,338.57"
http://statistics.data.gov.uk/id/local-authority-district/23UB,Cheltenham Borough Council,449651,250000116520,AON LIMITED,C-L41100-1901,AG & M-Insurance-fire,20-May-11,"2,003.39"
http://statistics.data.gov.uk/id/local-authority-district/23UB,Cheltenham Borough Council,447464,619172,ARCHANT LIFE LIMITED,C-L41100-3920,AG & M-Advertising,19-May-11,25.00
http://statistics.data.gov.uk/id/local-authority-district/23UB,Cheltenham Borough Council,449740,541620,ART SHAPE,C-L23500-3156,Arts Grant/Enab-Arts Development,25-May-11,"1,000.00"
http://statistics.data.gov.uk/id/local-authority-district/23UB,Cheltenham Borough Council,449629,LWR/11/121,ASGARD PROMOTIONS LIMITED,C-1T22B1-3568,Loudon Wainwrig-Artist Fees        ,20-May-11,100.00
http://statistics.data.gov.uk/id/local-authority-district/23UB,Cheltenham Borough Council,449630,LW/11/011,ASGARD PROMOTIONS LIMITED,C-1T22B1-3568,Loudon Wainwrig-Artist Fees        ,20-May-11,"8,000.00"
http://statistics.data.gov.uk/id/local-authority-district/23UB,Cheltenham Borough Council,448443,Redacted,Redacted,C-L16100-3501,Holiday Rec-Hire of outside services,09-May-11,"1,029.00"
http://statistics.data.gov.uk/id/local-authority-district/23UB,Cheltenham Borough Council,449621,0074067,ATS EUROMASTER LTD,C-C24100-3501,Fleet Maint-Hire of outside services,20-May-11,"2,829.66"
http://statistics.data.gov.uk/id/local-authority-district/23UB,Cheltenham Borough Council,450181,101717,THE AUDIT COMMISSION FOR LOCAL AUTHORITI,C-D21200-3507,Corp Mgt-Audit Commission fees,27-May-11,"1,150.00"
http://statistics.data.gov.uk/id/local-authority-district/23UB,Cheltenham Borough Council,448626,5620,B AND G COMEDY LIMITED,C-1T14A1-3568,Imran Yusaf-Artist Fees       ,11-May-11,"1,094.66"
http://statistics.data.gov.uk/id/local-authority-district/23UB,Cheltenham Borough Council,449791,1692,BALCARRAS SCHOOL,C-L16100-3501,Holiday Rec-Hire of outside services,25-May-11,855.00
http://statistics.data.gov.uk/id/local-authority-district/23UB,Cheltenham Borough Council,449534,121,RACHEL BARNES,C-Z12440-AG91,AGM Exhibitions-Horse in Art,20-May-11,500.00
http://statistics.data.gov.uk/id/local-authority-district/23UB,Cheltenham Borough Council,449534,121,RACHEL BARNES,C-Z12440-AG91,AGM Exhibitions-Horse in Art,20-May-11,100.00
http://statistics.data.gov.uk/id/local-authority-district/23UB,Cheltenham Borough Council,449534,121,RACHEL BARNES,C-Z12440-AG91,AGM Exhibitions-Horse in Art,20-May-11,60.00
http://statistics.data.gov.uk/id/local-authority-district/23UB,Cheltenham Borough Council,448713,M4177P3492,BEAM CONSTRUCTION LTD,C-PM0090-R001,Misc.Properties-Roof Repairs,11-May-11,"12,239.45"
http://statistics.data.gov.uk/id/local-authority-district/23UB,Cheltenham Borough Council,449643,M4184P/3489,BEAM CONSTRUCTION LTD,C-H4201G-1104,Gen Wks 2201-Council House repairs,20-May-11,"1,773.00"
http://statistics.data.gov.uk/id/local-authority-district/23UB,Cheltenham Borough Council,450183,40129,BELL-CHEM PRODUCTS COMPANY,C-N42250-3112,DSO Stores - Stock purchases,27-May-11,"1,079.55"
http://statistics.data.gov.uk/id/local-authority-district/23UB,Cheltenham Borough Council,449755,215346,BHGS LTD,C-C22110-3121,Parks & Gardens-Materials-Contract,25-May-11,39.96
http://statistics.data.gov.uk/id/local-authority-district/23UB,Cheltenham Borough Council,449756,215346,BHGS LTD,C-C22140-3121,Nursery-Materials-Contract,25-May-11,"4,756.75"
http://statistics.data.gov.uk/id/local-authority-district/23UB,Cheltenham Borough Council,449757,215801,BHGS LTD,C-C22140-3121,Nursery-Materials-Contract,25-May-11,772.00
http://statistics.data.gov.uk/id/local-authority-district/23UB,Cheltenham Borough Council,449757,215801,BHGS LTD,C-C22140-3121,Nursery-Materials-Contract,25-May-11,153.60
http://statistics.data.gov.uk/id/local-authority-district/23UB,Cheltenham Borough Council,449757,215801,BHGS LTD,C-C22140-3121,Nursery-Materials-Contract,25-May-11,169.92
http://statistics.data.gov.uk/id/local-authority-district/23UB,Cheltenham Borough Council,449757,215801,BHGS LTD,C-C22140-3121,Nursery-Materials-Contract,25-May-11,292.50
http://statistics.data.gov.uk/id/local-authority-district/23UB,Cheltenham Borough Council,449757,215801,BHGS LTD,C-C22140-3121,Nursery-Materials-Contract,25-May-11,33.60
http://statistics.data.gov.uk/id/local-authority-district/23UB,Cheltenham Borough Council,449756,215346,BHGS LTD,C-C22140-3121,Nursery-Materials-Contract,25-May-11,453.12
http://statistics.data.gov.uk/id/local-authority-district/23UB,Cheltenham Borough Council,449756,215346,BHGS LTD,C-C22140-3121,Nursery-Materials-Contract,25-May-11,222.08
http://statistics.data.gov.uk/id/local-authority-district/23UB,Cheltenham Borough Council,449756,215346,BHGS LTD,C-C22140-3121,Nursery-Materials-Contract,25-May-11,160.00
http://statistics.data.gov.uk/id/local-authority-district/23UB,Cheltenham Borough Council,449758,215801,BHGS LTD,C-C22140-3127,Nursery-Materials-Bedding,25-May-11,341.11
http://statistics.data.gov.uk/id/local-authority-district/23UB,Cheltenham Borough Council,449529,A0002005,B-PLAN INFORMATION SYSTEMS,C-D11300-3623,Accountancy-Cmpter-sftwre lic purch,18-May-11,"10,365.30"
http://statistics.data.gov.uk/id/local-authority-district/23UB,Cheltenham Borough Council,448728,47SI 621508,BRENNTAG UK,C-L11500-1714,Rec Facilities-Chemicals,13-May-11,671.83
http://statistics.data.gov.uk/id/local-authority-district/23UB,Cheltenham Borough Council,448728,47SI 621508,BRENNTAG UK,C-L11500-1714,Rec Facilities-Chemicals,13-May-11,11.00
http://statistics.data.gov.uk/id/local-authority-district/23UB,Cheltenham Borough Council,448728,47SI 621508,BRENNTAG UK,C-L11500-1714,Rec Facilities-Chemicals,13-May-11,50.00
http://statistics.data.gov.uk/id/local-authority-district/23UB,Cheltenham Borough Council,450105,107331,BRISTOW & SUTOR,C-D12480-3604,Business Revenu-Baliff Fees - via CBC,25-May-11,562.50
http://statistics.data.gov.uk/id/local-authority-district/23UB,Cheltenham Borough Council,448228,83362300169L,BRITISH TELECOM,C-E63100-3611,Cemetery & Crem-Telephones,04-May-11,"1,078.00"
http://statistics.data.gov.uk/id/local-authority-district/23UB,Cheltenham Borough Council,448584,20013775,BT REDCARE,C-E61500-3652,CCTV/TC Safety-Telephone CCTV line renta,11-May-11,"34,883.10"
http://statistics.data.gov.uk/id/local-authority-district/23UB,Cheltenham Borough Council,449725,133987,BULRUSH PEAT COMPANY LTD,C-C22140-3127,Nursery-Materials-Bedding,25-May-11,"2,411.20"
http://statistics.data.gov.uk/id/local-authority-district/23UB,Cheltenham Borough Council,448389,UK10/042011/7401,CABLE AND WIRELESS COMMUNICATIONS,C-D11820-3654,IT Infrastructu-Private Circuits,11-May-11,"11,882.60"
http://statistics.data.gov.uk/id/local-authority-district/23UB,Cheltenham Borough Council,450013,4423,C AND R DECORATORS,C-H33700-1161,Estate Services-Whaddon,25-May-11,886.42
http://statistics.data.gov.uk/id/local-authority-district/23UB,Cheltenham Borough Council,448857,4401,C AND R DECORATORS,C-H4203G-1104,Gen Wks 2203-Council House repairs,25-May-11,560.00
http://statistics.data.gov.uk/id/local-authority-district/23UB,Cheltenham Borough Council,448855,4398,C AND R DECORATORS,C-H4213V-1104,Voids 2213-Council House repairs,25-May-11,945.00
http://statistics.data.gov.uk/id/local-authority-district/23UB,Cheltenham Borough Council,450015,4422,C AND R DECORATORS,C-H4214A-1104,Dis Adapts 2214-Council House repairs,25-May-11,718.33
http://statistics.data.gov.uk/id/local-authority-district/23UB,Cheltenham Borough Council,448856,4397,C AND R DECORATORS,C-H4214V-1104,Voids 2214-Council House repairs,25-May-11,750.25
http://statistics.data.gov.uk/id/local-authority-district/23UB,Cheltenham Borough Council,448841,4350,C AND R DECORATORS,C-HC4053-C302,Internal Imp-Building Contractor,25-May-11,"4,775.64"
http://statistics.data.gov.uk/id/local-authority-district/23UB,Cheltenham Borough Council,448842,4353,C AND R DECORATORS,C-HC4053-C302,Internal Imp-Building Contractor,25-May-11,"5,243.20"
http://statistics.data.gov.uk/id/local-authority-district/23UB,Cheltenham Borough Council,450220,4425,C AND R DECORATORS,C-H4207V-1104,Voids 2207-Council House repairs,27-May-11,306.68
http://statistics.data.gov.uk/id/local-authority-district/23UB,Cheltenham Borough Council,450219,4426,C AND R DECORATORS,C-H4213V-1104,Voids 2213-Council House repairs,27-May-11,597.61
http://statistics.data.gov.uk/id/local-authority-district/23UB,Cheltenham Borough Council,450221,4419,C AND R DECORATORS,C-H4214A-1104,Dis Adapts 2214-Council House repairs,27-May-11,641.52
http://statistics.data.gov.uk/id/local-authority-district/23UB,Cheltenham Borough Council,450218,4399,C AND R DECORATORS,C-HC4053-C302,Internal Imp-Building Contractor,27-May-11,"3,626.13"
http://statistics.data.gov.uk/id/local-authority-district/23UB,Cheltenham Borough Council,448859,12678,CHARTERHOUSE SECURITY MANAGEMENT,C-H44752-1104,Dis Adapts-Tech-Council House repairs,25-May-11,72.50
http://statistics.data.gov.uk/id/local-authority-district/23UB,Cheltenham Borough Council,450030,31140,CHARTERHOUSE SECURITY MANAGEMENT,C-H44752-1104,Dis Adapts-Tech-Council House repairs,25-May-11,75.00
http://statistics.data.gov.uk/id/local-authority-district/23UB,Cheltenham Borough Council,450014,31141,CHARTERHOUSE SECURITY MANAGEMENT,C-H44752-1104,Dis Adapts-Tech-Council House repairs,25-May-11,75.00
http://statistics.data.gov.uk/id/local-authority-district/23UB,Cheltenham Borough Council,448839,31098,CHARTERHOUSE SECURITY MANAGEMENT,C-H46100-1104,Cen.Heat.Serv-Council House repairs,25-May-11,55.00
http://statistics.data.gov.uk/id/local-authority-district/23UB,Cheltenham Borough Council,448840,30938,CHARTERHOUSE SECURITY MANAGEMENT,C-H46100-1104,Cen.Heat.Serv-Council House repairs,25-May-11,385.00
http://statistics.data.gov.uk/id/local-authority-district/23UB,Cheltenham Borough Council,448858,30972,CHARTERHOUSE SECURITY MANAGEMENT,C-H46100-1104,Cen.Heat.Serv-Council House repairs,25-May-11,197.50
http://statistics.data.gov.uk/id/local-authority-district/23UB,Cheltenham Borough Council,448860,30176,CHARTERHOUSE SECURITY MANAGEMENT,C-H46400-1104,Door Entry-Council House repairs,25-May-11,30.00
http://statistics.data.gov.uk/id/local-authority-district/23UB,Cheltenham Borough Council,450250,31393,CHARTERHOUSE SECURITY MANAGEMENT,C-H46400-1104,Door Entry-Council House repairs,27-May-11,"2,245.00"
http://statistics.data.gov.uk/id/local-authority-district/23UB,Cheltenham Borough Council,448454,CHILD POVERTY,CHELTENHAM BOROUGH HOMES,C-D38850-3801,Youth Affairs-Grants,09-May-11,"6,277.00"
http://statistics.data.gov.uk/id/local-authority-district/23UB,Cheltenham Borough Council,450095,SETTLEMENT,CHELTENHAM FESTIVAL OF PERFORMING ARTS,C-N13125-9205,ASH Ledger-Town Hall Invoices Paid,25-May-11,"-1,732.18"
http://statistics.data.gov.uk/id/local-authority-district/23UB,Cheltenham Borough Council,450095,SETTLEMENT,CHELTENHAM FESTIVAL OF PERFORMING ARTS,C-Z12210-9138,Box Off A/C-TH Hirers Tkt Pd out,25-May-11,"12,132.00"
http://statistics.data.gov.uk/id/local-authority-district/23UB,Cheltenham Borough Council,450095,SETTLEMENT,CHELTENHAM FESTIVAL OF PERFORMING ARTS,C-Z12210-9138,Box Off A/C-TH Hirers Tkt Pd out,25-May-11,497.00
http://statistics.data.gov.uk/id/local-authority-district/23UB,Cheltenham Borough Council,448721,3676,CHELTENHAM CREATIVE,C-L11500-3510,Rec Facilities-Promotion & Marketing,13-May-11,"6,500.00"
http://statistics.data.gov.uk/id/local-authority-district/23UB,Cheltenham Borough Council,448563,3050446,CIPFA,C-D11300-3411,Accountancy-Profl books & magazines,11-May-11,180.00
http://statistics.data.gov.uk/id/local-authority-district/23UB,Cheltenham Borough Council,448581,3049787,CIPFA,C-D21220-3894,Corp Subscrptns-Statistical Info.Servs,11-May-11,"2,250.00"
http://statistics.data.gov.uk/id/local-authority-district/23UB,Cheltenham Borough Council,448363,30148939,CIPFA,C-D21220-3894,Corp Subscrptns-Statistical Info.Servs,11-May-11,"1,445.00"
http://statistics.data.gov.uk/id/local-authority-district/23UB,Cheltenham Borough Council,448526,C/RB103197,CIVICA UK LIMITED,C-D12435-3626,Local Housing A-I.T.Release Costs,11-May-11,"14,300.00"
http://statistics.data.gov.uk/id/local-authority-district/23UB,Cheltenham Borough Council,448665,401650,CLEARWATER TECHNOLOGY LTD,C-H46450-1104,Legionella T&M-Council House repairs,11-May-11,450.00
http://statistics.data.gov.uk/id/local-authority-district/23UB,Cheltenham Borough Council,448666,401652,CLEARWATER TECHNOLOGY LTD,C-H46450-1104,Legionella T&M-Council House repairs,11-May-11,450.00
http://statistics.data.gov.uk/id/local-authority-district/23UB,Cheltenham Borough Council,448664,401647,CLEARWATER TECHNOLOGY LTD,C-H46450-1104,Legionella T&M-Council House repairs,11-May-11,600.00
http://statistics.data.gov.uk/id/local-authority-district/23UB,Cheltenham Borough Council,448352,11606,BARRY COLLINGS ENTERTAINMENTS,C-1T02A1-3568,Chas n Dave-Artist Fees,11-May-11,"6,697.48"
http://statistics.data.gov.uk/id/local-authority-district/23UB,Cheltenham Borough Council,448567,19428,COLLETT TRANSPORT SERVICES LIMITED,C-C24100-2702,Fleet Maint-Additional vehicle hire,11-May-11,925.00
http://statistics.data.gov.uk/id/local-authority-district/23UB,Cheltenham Borough Council,448566,19440,COLLETT TRANSPORT SERVICES LIMITED,C-C24100-2702,Fleet Maint-Additional vehicle hire,11-May-11,"2,700.00"
http://statistics.data.gov.uk/id/local-authority-district/23UB,Cheltenham Borough Council,449734,11018,COMPLETE CLIMATE SOLUTIONS LIMITED,C-D13100-1123,Muni Off Blgs-M&E Planned & Preventative,25-May-11,"2,700.00"
http://statistics.data.gov.uk/id/local-authority-district/23UB,Cheltenham Borough Council,449734,11018,COMPLETE CLIMATE SOLUTIONS LIMITED,C-N11250-9227,Excluded,25-May-11,-540.00
http://statistics.data.gov.uk/id/local-authority-district/23UB,Cheltenham Borough Council,449760,1611,COMMERCIAL MOWER SUPPLIES,C-C22120-3110,Spts/Open Space-Materials,25-May-11,531.24
http://statistics.data.gov.uk/id/local-authority-district/23UB,Cheltenham Borough Council,449760,1611,COMMERCIAL MOWER SUPPLIES,C-C22120-3110,Spts/Open Space-Materials,25-May-11,359.45
http://statistics.data.gov.uk/id/local-authority-district/23UB,Cheltenham Borough Council,448221,505412,COMENSURA LIMITED,C-C22100-0115,Green Env Div-Temporary Agency Staff,04-May-11,321.50
http://statistics.data.gov.uk/id/local-authority-district/23UB,Cheltenham Borough Council,448221,505412,COMENSURA LIMITED,C-C22100-0115,Green Env Div-Temporary Agency Staff,04-May-11,346.88
http://statistics.data.gov.uk/id/local-authority-district/23UB,Cheltenham Borough Council,448221,505412,COMENSURA LIMITED,C-C22100-0115,Green Env Div-Temporary Agency Staff,04-May-11,372.26
http://statistics.data.gov.uk/id/local-authority-district/23UB,Cheltenham Borough Council,448221,505412,COMENSURA LIMITED,C-C22100-0115,Green Env Div-Temporary Agency Staff,04-May-11,346.88
http://statistics.data.gov.uk/id/local-authority-district/23UB,Cheltenham Borough Council,448221,505412,COMENSURA LIMITED,C-C22100-0115,Green Env Div-Temporary Agency Staff,04-May-11,137.48
http://statistics.data.gov.uk/id/local-authority-district/23UB,Cheltenham Borough Council,448221,505412,COMENSURA LIMITED,C-C22100-0115,Green Env Div-Temporary Agency Staff,04-May-11,346.88
http://statistics.data.gov.uk/id/local-authority-district/23UB,Cheltenham Borough Council,448221,505412,COMENSURA LIMITED,C-C22100-0115,Green Env Div-Temporary Agency Staff,04-May-11,137.48
http://statistics.data.gov.uk/id/local-authority-district/23UB,Cheltenham Borough Council,448220,505214,COMENSURA LIMITED,C-C22120-0115,Spts/Open Space-Temporary Agency Staff,04-May-11,194.58
http://statistics.data.gov.uk/id/local-authority-district/23UB,Cheltenham Borough Council,448220,505214,COMENSURA LIMITED,C-C22120-0115,Spts/Open Space-Temporary Agency Staff,04-May-11,346.86
http://statistics.data.gov.uk/id/local-authority-district/23UB,Cheltenham Borough Council,448221,505412,COMENSURA LIMITED,C-C22120-0115,Spts/Open Space-Temporary Agency Staff,04-May-11,448.38
http://statistics.data.gov.uk/id/local-authority-district/23UB,Cheltenham Borough Council,448221,505412,COMENSURA LIMITED,C-C22120-0115,Spts/Open Space-Temporary Agency Staff,04-May-11,448.38
http://statistics.data.gov.uk/id/local-authority-district/23UB,Cheltenham Borough Council,448221,505412,COMENSURA LIMITED,C-C22120-0115,Spts/Open Space-Temporary Agency Staff,04-May-11,346.86
http://statistics.data.gov.uk/id/local-authority-district/23UB,Cheltenham Borough Council,448220,505214,COMENSURA LIMITED,C-C22120-0115,Spts/Open Space-Temporary Agency Staff,04-May-11,346.86
http://statistics.data.gov.uk/id/local-authority-district/23UB,Cheltenham Borough Council,448220,505214,COMENSURA LIMITED,C-C23100-0115,Refuse Collection-Temporary Agency Staff,04-May-11,54.99
http://statistics.data.gov.uk/id/local-authority-district/23UB,Cheltenham Borough Council,448220,505214,COMENSURA LIMITED,C-C23100-0115,Refuse Collection-Temporary Agency Staff,04-May-11,255.91
http://statistics.data.gov.uk/id/local-authority-district/23UB,Cheltenham Borough Council,448220,505214,COMENSURA LIMITED,C-C23100-0115,Refuse Collection-Temporary Agency Staff,04-May-11,491.26
http://statistics.data.gov.uk/id/local-authority-district/23UB,Cheltenham Borough Council,448220,505214,COMENSURA LIMITED,C-C23100-0115,Refuse Collection-Temporary Agency Staff,04-May-11,313.02
http://statistics.data.gov.uk/id/local-authority-district/23UB,Cheltenham Borough Council,448220,505214,COMENSURA LIMITED,C-C23100-0115,Refuse Collection-Temporary Agency Staff,04-May-11,228.42
http://statistics.data.gov.uk/id/local-authority-district/23UB,Cheltenham Borough Council,448222,505572,COMENSURA LIMITED,C-C23100-0115,Refuse Collection-Temporary Agency Staff,04-May-11,103.10
http://statistics.data.gov.uk/id/local-authority-district/23UB,Cheltenham Borough Council,448222,505572,COMENSURA LIMITED,C-C23100-0115,Refuse Collection-Temporary Agency Staff,04-May-11,249.57
http://statistics.data.gov.uk/id/local-authority-district/23UB,Cheltenham Borough Council,448222,505572,COMENSURA LIMITED,C-C23100-0115,Refuse Collection-Temporary Agency Staff,04-May-11,126.90
http://statistics.data.gov.uk/id/local-authority-district/23UB,Cheltenham Borough Council,448221,505412,COMENSURA LIMITED,C-C23100-0115,Refuse Collection-Temporary Agency Staff,04-May-11,291.12
http://statistics.data.gov.uk/id/local-authority-district/23UB,Cheltenham Borough Council,448221,505412,COMENSURA LIMITED,C-C23100-0115,Refuse Collection-Temporary Agency Staff,04-May-11,63.45
http://statistics.data.gov.uk/id/local-authority-district/23UB,Cheltenham Borough Council,448221,505412,COMENSURA LIMITED,C-C23100-0115,Refuse Collection-Temporary Agency Staff,04-May-11,342.63
http://statistics.data.gov.uk/id/local-authority-district/23UB,Cheltenham Borough Council,448221,505412,COMENSURA LIMITED,C-C23100-0115,Refuse Collection-Temporary Agency Staff,04-May-11,310.91
http://statistics.data.gov.uk/id/local-authority-district/23UB,Cheltenham Borough Council,448221,505412,COMENSURA LIMITED,C-C23100-0115,Refuse Collection-Temporary Agency Staff,04-May-11,325.71
http://statistics.data.gov.uk/id/local-authority-district/23UB,Cheltenham Borough Council,448221,505412,COMENSURA LIMITED,C-C23100-0115,Refuse Collection-Temporary Agency Staff,04-May-11,344.74
http://statistics.data.gov.uk/id/local-authority-district/23UB,Cheltenham Borough Council,448222,505572,COMENSURA LIMITED,C-C23100-0115,Refuse Collection-Temporary Agency Staff,04-May-11,139.59
http://statistics.data.gov.uk/id/local-authority-district/23UB,Cheltenham Borough Council,448222,505572,COMENSURA LIMITED,C-C23100-0115,Refuse Collection-Temporary Agency Staff,04-May-11,283.42
http://statistics.data.gov.uk/id/local-authority-district/23UB,Cheltenham Borough Council,448222,505572,COMENSURA LIMITED,C-C23100-0115,Refuse Collection-Temporary Agency Staff,04-May-11,287.64
http://statistics.data.gov.uk/id/local-authority-district/23UB,Cheltenham Borough Council,448222,505572,COMENSURA LIMITED,C-C23100-0115,Refuse Collection-Temporary Agency Staff,04-May-11,285.53
http://statistics.data.gov.uk/id/local-authority-district/23UB,Cheltenham Borough Council,448222,505572,COMENSURA LIMITED,C-C23100-0115,Refuse Collection-Temporary Agency Staff,04-May-11,281.30
http://statistics.data.gov.uk/id/local-authority-district/23UB,Cheltenham Borough Council,448222,505572,COMENSURA LIMITED,C-C23100-0115,Refuse Collection-Temporary Agency Staff,04-May-11,403.32
http://statistics.data.gov.uk/id/local-authority-district/23UB,Cheltenham Borough Council,448222,505572,COMENSURA LIMITED,C-C23100-0115,Refuse Collection-Temporary Agency Staff,04-May-11,247.45
http://statistics.data.gov.uk/id/local-authority-district/23UB,Cheltenham Borough Council,448222,505572,COMENSURA LIMITED,C-C23100-0115,Refuse Collection-Temporary Agency Staff,04-May-11,329.94
http://statistics.data.gov.uk/id/local-authority-district/23UB,Cheltenham Borough Council,448222,505572,COMENSURA LIMITED,C-C23100-0115,Refuse Collection-Temporary Agency Staff,04-May-11,313.02
http://statistics.data.gov.uk/id/local-authority-district/23UB,Cheltenham Borough Council,448221,505412,COMENSURA LIMITED,C-C23100-0115,Refuse Collection-Temporary Agency Staff,04-May-11,184.00
http://statistics.data.gov.uk/id/local-authority-district/23UB,Cheltenham Borough Council,448221,505412,COMENSURA LIMITED,C-C23100-0115,Refuse Collection-Temporary Agency Staff,04-May-11,194.58
http://statistics.data.gov.uk/id/local-authority-district/23UB,Cheltenham Borough Council,448221,505412,COMENSURA LIMITED,C-C23100-0115,Refuse Collection-Temporary Agency Staff,04-May-11,126.90
http://statistics.data.gov.uk/id/local-authority-district/23UB,Cheltenham Borough Council,448221,505412,COMENSURA LIMITED,C-C23100-0115,Refuse Collection-Temporary Agency Staff,04-May-11,313.02
http://statistics.data.gov.uk/id/local-authority-district/23UB,Cheltenham Borough Council,448221,505412,COMENSURA LIMITED,C-C23100-0115,Refuse Collection-Temporary Agency Staff,04-May-11,380.70
http://statistics.data.gov.uk/id/local-authority-district/23UB,Cheltenham Borough Council,448221,505412,COMENSURA LIMITED,C-C23100-0115,Refuse Collection-Temporary Agency Staff,04-May-11,313.02
http://statistics.data.gov.uk/id/local-authority-district/23UB,Cheltenham Borough Council,448221,505412,COMENSURA LIMITED,C-C23100-0115,Refuse Collection-Temporary Agency Staff,04-May-11,355.32
http://statistics.data.gov.uk/id/local-authority-district/23UB,Cheltenham Borough Council,448221,505412,COMENSURA LIMITED,C-C23100-0115,Refuse Collection-Temporary Agency Staff,04-May-11,54.99
http://statistics.data.gov.uk/id/local-authority-district/23UB,Cheltenham Borough Council,448220,505214,COMENSURA LIMITED,C-C23100-0115,Refuse Collection-Temporary Agency Staff,04-May-11,260.14
http://statistics.data.gov.uk/id/local-authority-district/23UB,Cheltenham Borough Council,448220,505214,COMENSURA LIMITED,C-C23100-0115,Refuse Collection-Temporary Agency Staff,04-May-11,287.64
http://statistics.data.gov.uk/id/local-authority-district/23UB,Cheltenham Borough Council,448220,505214,COMENSURA LIMITED,C-C23100-0115,Refuse Collection-Temporary Agency Staff,04-May-11,308.79
http://statistics.data.gov.uk/id/local-authority-district/23UB,Cheltenham Borough Council,448220,505214,COMENSURA LIMITED,C-C23100-0115,Refuse Collection-Temporary Agency Staff,04-May-11,313.02
http://statistics.data.gov.uk/id/local-authority-district/23UB,Cheltenham Borough Council,448220,505214,COMENSURA LIMITED,C-C23100-0115,Refuse Collection-Temporary Agency Staff,04-May-11,97.04
http://statistics.data.gov.uk/id/local-authority-district/23UB,Cheltenham Borough Council,448220,505214,COMENSURA LIMITED,C-C23100-0115,Refuse Collection-Temporary Agency Staff,04-May-11,340.45
http://statistics.data.gov.uk/id/local-authority-district/23UB,Cheltenham Borough Council,448220,505214,COMENSURA LIMITED,C-C23100-0115,Refuse Collection-Temporary Agency Staff,04-May-11,340.51
http://statistics.data.gov.uk/id/local-authority-district/23UB,Cheltenham Borough Council,448220,505214,COMENSURA LIMITED,C-C23110-0115,Street Cleaning-Temporary Agency Staff,04-May-11,401.85
http://statistics.data.gov.uk/id/local-authority-district/23UB,Cheltenham Borough Council,448220,505214,COMENSURA LIMITED,C-C23110-0115,Street Cleaning-Temporary Agency Staff,04-May-11,122.67
http://statistics.data.gov.uk/id/local-authority-district/23UB,Cheltenham Borough Council,448220,505214,COMENSURA LIMITED,C-C23110-0115,Street Cleaning-Temporary Agency Staff,04-May-11,253.80
http://statistics.data.gov.uk/id/local-authority-district/23UB,Cheltenham Borough Council,448220,505214,COMENSURA LIMITED,C-C23110-0115,Street Cleaning-Temporary Agency Staff,04-May-11,313.02
http://statistics.data.gov.uk/id/local-authority-district/23UB,Cheltenham Borough Council,448220,505214,COMENSURA LIMITED,C-C23110-0115,Street Cleaning-Temporary Agency Staff,04-May-11,313.02
http://statistics.data.gov.uk/id/local-authority-district/23UB,Cheltenham Borough Council,448222,505572,COMENSURA LIMITED,C-C23110-0115,Street Cleaning-Temporary Agency Staff,04-May-11,372.24
http://statistics.data.gov.uk/id/local-authority-district/23UB,Cheltenham Borough Council,448221,505412,COMENSURA LIMITED,C-C23110-0115,Street Cleaning-Temporary Agency Staff,04-May-11,368.01
http://statistics.data.gov.uk/id/local-authority-district/23UB,Cheltenham Borough Council,448221,505412,COMENSURA LIMITED,C-C23110-0115,Street Cleaning-Temporary Agency Staff,04-May-11,313.02
http://statistics.data.gov.uk/id/local-authority-district/23UB,Cheltenham Borough Council,448221,505412,COMENSURA LIMITED,C-C23110-0115,Street Cleaning-Temporary Agency Staff,04-May-11,313.02
http://statistics.data.gov.uk/id/local-authority-district/23UB,Cheltenham Borough Council,448221,505412,COMENSURA LIMITED,C-C23110-0115,Street Cleaning-Temporary Agency Staff,04-May-11,59.22
http://statistics.data.gov.uk/id/local-authority-district/23UB,Cheltenham Borough Council,448220,505214,COMENSURA LIMITED,C-C23110-0115,Street Cleaning-Temporary Agency Staff,04-May-11,313.02
http://statistics.data.gov.uk/id/local-authority-district/23UB,Cheltenham Borough Council,448220,505214,COMENSURA LIMITED,C-C23110-0115,Street Cleaning-Temporary Agency Staff,04-May-11,313.02
http://statistics.data.gov.uk/id/local-authority-district/23UB,Cheltenham Borough Council,448220,505214,COMENSURA LIMITED,C-C23110-0115,Street Cleaning-Temporary Agency Staff,04-May-11,313.02
http://statistics.data.gov.uk/id/local-authority-district/23UB,Cheltenham Borough Council,448220,505214,COMENSURA LIMITED,C-C23110-0115,Street Cleaning-Temporary Agency Staff,04-May-11,184.00
http://statistics.data.gov.uk/id/local-authority-district/23UB,Cheltenham Borough Council,448222,505572,COMENSURA LIMITED,C-C23120-0115,Recycling Cntr-Temporary Agency Staff,04-May-11,97.04
http://statistics.data.gov.uk/id/local-authority-district/23UB,Cheltenham Borough Council,448222,505572,COMENSURA LIMITED,C-C23120-0115,Recycling Cntr-Temporary Agency Staff,04-May-11,205.16
http://statistics.data.gov.uk/id/local-authority-district/23UB,Cheltenham Borough Council,448220,505214,COMENSURA LIMITED,C-C23125-0115,Recyl Bring Schms-Temporary Agency Staff,04-May-11,515.52
http://statistics.data.gov.uk/id/local-authority-district/23UB,Cheltenham Borough Council,448221,505412,COMENSURA LIMITED,C-C23125-0115,Recyl Bring Schms-Temporary Agency Staff,04-May-11,485.20
http://statistics.data.gov.uk/id/local-authority-district/23UB,Cheltenham Borough Council,448222,505572,COMENSURA LIMITED,C-C23125-0115,Recyl Bring Schms-Temporary Agency Staff,04-May-11,97.04
http://statistics.data.gov.uk/id/local-authority-district/23UB,Cheltenham Borough Council,448222,505572,COMENSURA LIMITED,C-C23160-0115,Env Maint Div-Temporary Agency Staff,04-May-11,346.15
http://statistics.data.gov.uk/id/local-authority-district/23UB,Cheltenham Borough Council,448222,505572,COMENSURA LIMITED,C-C23160-0115,Env Maint Div-Temporary Agency Staff,04-May-11,207.69
http://statistics.data.gov.uk/id/local-authority-district/23UB,Cheltenham Borough Council,448222,505572,COMENSURA LIMITED,C-C23160-0115,Env Maint Div-Temporary Agency Staff,04-May-11,346.15
http://statistics.data.gov.uk/id/local-authority-district/23UB,Cheltenham Borough Council,448222,505572,COMENSURA LIMITED,C-C23160-0115,Env Maint Div-Temporary Agency Staff,04-May-11,138.60
http://statistics.data.gov.uk/id/local-authority-district/23UB,Cheltenham Borough Council,448222,505572,COMENSURA LIMITED,C-C23160-0115,Env Maint Div-Temporary Agency Staff,04-May-11,222.54
http://statistics.data.gov.uk/id/local-authority-district/23UB,Cheltenham Borough Council,448222,505572,COMENSURA LIMITED,C-C23160-0115,Env Maint Div-Temporary Agency Staff,04-May-11,341.55
http://statistics.data.gov.uk/id/local-authority-district/23UB,Cheltenham Borough Council,448222,505572,COMENSURA LIMITED,C-C23160-0115,Env Maint Div-Temporary Agency Staff,04-May-11,272.25
http://statistics.data.gov.uk/id/local-authority-district/23UB,Cheltenham Borough Council,448222,505572,COMENSURA LIMITED,C-C23160-0115,Env Maint Div-Temporary Agency Staff,04-May-11,341.55
http://statistics.data.gov.uk/id/local-authority-district/23UB,Cheltenham Borough Council,448222,505572,COMENSURA LIMITED,C-C23160-0115,Env Maint Div-Temporary Agency Staff,04-May-11,138.46
http://statistics.data.gov.uk/id/local-authority-district/23UB,Cheltenham Borough Council,448222,505572,COMENSURA LIMITED,C-C23160-0115,Env Maint Div-Temporary Agency Staff,04-May-11,341.55
http://statistics.data.gov.uk/id/local-authority-district/23UB,Cheltenham Borough Council,448222,505572,COMENSURA LIMITED,C-C23160-0115,Env Maint Div-Temporary Agency Staff,04-May-11,341.55
http://statistics.data.gov.uk/id/local-authority-district/23UB,Cheltenham Borough Council,448222,505572,COMENSURA LIMITED,C-C23160-0115,Env Maint Div-Temporary Agency Staff,04-May-11,341.55
http://statistics.data.gov.uk/id/local-authority-district/23UB,Cheltenham Borough Council,448222,505572,COMENSURA LIMITED,C-C23160-0115,Env Maint Div-Temporary Agency Staff,04-May-11,341.55
http://statistics.data.gov.uk/id/local-authority-district/23UB,Cheltenham Borough Council,448222,505572,COMENSURA LIMITED,C-C23160-0115,Env Maint Div-Temporary Agency Staff,04-May-11,341.55
http://statistics.data.gov.uk/id/local-authority-district/23UB,Cheltenham Borough Council,448222,505572,COMENSURA LIMITED,C-C23160-0115,Env Maint Div-Temporary Agency Staff,04-May-11,341.55
http://statistics.data.gov.uk/id/local-authority-district/23UB,Cheltenham Borough Council,448220,505214,COMENSURA LIMITED,C-C23180-0115,Rcycl Coltn Schms-Temporary Agency Staff,04-May-11,334.18
http://statistics.data.gov.uk/id/local-authority-district/23UB,Cheltenham Borough Council,448220,505214,COMENSURA LIMITED,C-C23180-0115,Rcycl Coltn Schms-Temporary Agency Staff,04-May-11,338.40
http://statistics.data.gov.uk/id/local-authority-district/23UB,Cheltenham Borough Council,448220,505214,COMENSURA LIMITED,C-C23180-0115,Rcycl Coltn Schms-Temporary Agency Staff,04-May-11,512.07
http://statistics.data.gov.uk/id/local-authority-district/23UB,Cheltenham Borough Council,448220,505214,COMENSURA LIMITED,C-C23180-0115,Rcycl Coltn Schms-Temporary Agency Staff,04-May-11,491.26
http://statistics.data.gov.uk/id/local-authority-district/23UB,Cheltenham Borough Council,448220,505214,COMENSURA LIMITED,C-C23180-0115,Rcycl Coltn Schms-Temporary Agency Staff,04-May-11,515.52
http://statistics.data.gov.uk/id/local-authority-district/23UB,Cheltenham Borough Council,448220,505214,COMENSURA LIMITED,C-C23180-0115,Rcycl Coltn Schms-Temporary Agency Staff,04-May-11,359.55
http://statistics.data.gov.uk/id/local-authority-district/23UB,Cheltenham Borough Council,448220,505214,COMENSURA LIMITED,C-C23180-0115,Rcycl Coltn Schms-Temporary Agency Staff,04-May-11,387.04
http://statistics.data.gov.uk/id/local-authority-district/23UB,Cheltenham Borough Council,448221,505412,COMENSURA LIMITED,C-C23180-0115,Rcycl Coltn Schms-Temporary Agency Staff,04-May-11,509.46
http://statistics.data.gov.uk/id/local-authority-district/23UB,Cheltenham Borough Council,448221,505412,COMENSURA LIMITED,C-C23180-0115,Rcycl Coltn Schms-Temporary Agency Staff,04-May-11,268.60
http://statistics.data.gov.uk/id/local-authority-district/23UB,Cheltenham Borough Council,448221,505412,COMENSURA LIMITED,C-C23180-0115,Rcycl Coltn Schms-Temporary Agency Staff,04-May-11,521.59
http://statistics.data.gov.uk/id/local-authority-district/23UB,Cheltenham Borough Council,448221,505412,COMENSURA LIMITED,C-C23180-0115,Rcycl Coltn Schms-Temporary Agency Staff,04-May-11,164.97
http://statistics.data.gov.uk/id/local-authority-district/23UB,Cheltenham Borough Council,448221,505412,COMENSURA LIMITED,C-C23180-0115,Rcycl Coltn Schms-Temporary Agency Staff,04-May-11,266.49
http://statistics.data.gov.uk/id/local-authority-district/23UB,Cheltenham Borough Council,448221,505412,COMENSURA LIMITED,C-C23180-0115,Rcycl Coltn Schms-Temporary Agency Staff,04-May-11,494.30
http://statistics.data.gov.uk/id/local-authority-district/23UB,Cheltenham Borough Council,448221,505412,COMENSURA LIMITED,C-C23180-0115,Rcycl Coltn Schms-Temporary Agency Staff,04-May-11,333.58
http://statistics.data.gov.uk/id/local-authority-district/23UB,Cheltenham Borough Council,448221,505412,COMENSURA LIMITED,C-C23180-0115,Rcycl Coltn Schms-Temporary Agency Staff,04-May-11,384.93
http://statistics.data.gov.uk/id/local-authority-district/23UB,Cheltenham Borough Council,448221,505412,COMENSURA LIMITED,C-C23180-0115,Rcycl Coltn Schms-Temporary Agency Staff,04-May-11,141.70
http://statistics.data.gov.uk/id/local-authority-district/23UB,Cheltenham Borough Council,448221,505412,COMENSURA LIMITED,C-C23180-0115,Rcycl Coltn Schms-Temporary Agency Staff,04-May-11,232.66
http://statistics.data.gov.uk/id/local-authority-district/23UB,Cheltenham Borough Council,448221,505412,COMENSURA LIMITED,C-C23180-0115,Rcycl Coltn Schms-Temporary Agency Staff,04-May-11,186.12
http://statistics.data.gov.uk/id/local-authority-district/23UB,Cheltenham Borough Council,448220,505214,COMENSURA LIMITED,C-C23180-0115,Rcycl Coltn Schms-Temporary Agency Staff,04-May-11,270.55
http://statistics.data.gov.uk/id/local-authority-district/23UB,Cheltenham Borough Council,448220,505214,COMENSURA LIMITED,C-C23180-0115,Rcycl Coltn Schms-Temporary Agency Staff,04-May-11,530.68
http://statistics.data.gov.uk/id/local-authority-district/23UB,Cheltenham Borough Council,448220,505214,COMENSURA LIMITED,C-C23180-0115,Rcycl Coltn Schms-Temporary Agency Staff,04-May-11,475.87
http://statistics.data.gov.uk/id/local-authority-district/23UB,Cheltenham Borough Council,448220,505214,COMENSURA LIMITED,C-C23180-0115,Rcycl Coltn Schms-Temporary Agency Staff,04-May-11,644.60
http://statistics.data.gov.uk/id/local-authority-district/23UB,Cheltenham Borough Council,448220,505214,COMENSURA LIMITED,C-C23180-0115,Rcycl Coltn Schms-Temporary Agency Staff,04-May-11,475.87
http://statistics.data.gov.uk/id/local-authority-district/23UB,Cheltenham Borough Council,448220,505214,COMENSURA LIMITED,C-C23180-0115,Rcycl Coltn Schms-Temporary Agency Staff,04-May-11,325.71
http://statistics.data.gov.uk/id/local-authority-district/23UB,Cheltenham Borough Council,448221,505412,COMENSURA LIMITED,C-C23180-0115,Rcycl Coltn Schms-Temporary Agency Staff,04-May-11,283.41
http://statistics.data.gov.uk/id/local-authority-district/23UB,Cheltenham Borough Council,448221,505412,COMENSURA LIMITED,C-C23180-0115,Rcycl Coltn Schms-Temporary Agency Staff,04-May-11,586.23
http://statistics.data.gov.uk/id/local-authority-district/23UB,Cheltenham Borough Council,448221,505412,COMENSURA LIMITED,C-C23180-0115,Rcycl Coltn Schms-Temporary Agency Staff,04-May-11,346.86
http://statistics.data.gov.uk/id/local-authority-district/23UB,Cheltenham Borough Council,448221,505412,COMENSURA LIMITED,C-C23180-0115,Rcycl Coltn Schms-Temporary Agency Staff,04-May-11,340.51
http://statistics.data.gov.uk/id/local-authority-district/23UB,Cheltenham Borough Council,448221,505412,COMENSURA LIMITED,C-C23180-0115,Rcycl Coltn Schms-Temporary Agency Staff,04-May-11,348.98
http://statistics.data.gov.uk/id/local-authority-district/23UB,Cheltenham Borough Council,448221,505412,COMENSURA LIMITED,C-C23180-0115,Rcycl Coltn Schms-Temporary Agency Staff,04-May-11,173.43
http://statistics.data.gov.uk/id/local-authority-district/23UB,Cheltenham Borough Council,448221,505412,COMENSURA LIMITED,C-C23180-0115,Rcycl Coltn Schms-Temporary Agency Staff,04-May-11,226.30
http://statistics.data.gov.uk/id/local-authority-district/23UB,Cheltenham Borough Council,448221,505412,COMENSURA LIMITED,C-C23180-0115,Rcycl Coltn Schms-Temporary Agency Staff,04-May-11,268.61
http://statistics.data.gov.uk/id/local-authority-district/23UB,Cheltenham Borough Council,448221,505412,COMENSURA LIMITED,C-C23180-0115,Rcycl Coltn Schms-Temporary Agency Staff,04-May-11,399.73
http://statistics.data.gov.uk/id/local-authority-district/23UB,Cheltenham Borough Council,448222,505572,COMENSURA LIMITED,C-C23180-0115,Rcycl Coltn Schms-Temporary Agency Staff,04-May-11,527.65
http://statistics.data.gov.uk/id/local-authority-district/23UB,Cheltenham Borough Council,448222,505572,COMENSURA LIMITED,C-C23180-0115,Rcycl Coltn Schms-Temporary Agency Staff,04-May-11,313.02
http://statistics.data.gov.uk/id/local-authority-district/23UB,Cheltenham Borough Council,448222,505572,COMENSURA LIMITED,C-C23180-0115,Rcycl Coltn Schms-Temporary Agency Staff,04-May-11,109.17
http://statistics.data.gov.uk/id/local-authority-district/23UB,Cheltenham Borough Council,448222,505572,COMENSURA LIMITED,C-C23180-0115,Rcycl Coltn Schms-Temporary Agency Staff,04-May-11,186.12
http://statistics.data.gov.uk/id/local-authority-district/23UB,Cheltenham Borough Council,448222,505572,COMENSURA LIMITED,C-C23180-0115,Rcycl Coltn Schms-Temporary Agency Staff,04-May-11,-37.17
http://statistics.data.gov.uk/id/local-authority-district/23UB,Cheltenham Borough Council,448221,505412,COMENSURA LIMITED,C-C23180-0115,Rcycl Coltn Schms-Temporary Agency Staff,04-May-11,456.21
http://statistics.data.gov.uk/id/local-authority-district/23UB,Cheltenham Borough Council,448221,505412,COMENSURA LIMITED,C-C23180-0115,Rcycl Coltn Schms-Temporary Agency Staff,04-May-11,206.21
http://statistics.data.gov.uk/id/local-authority-district/23UB,Cheltenham Borough Council,448221,505412,COMENSURA LIMITED,C-C23180-0115,Rcycl Coltn Schms-Temporary Agency Staff,04-May-11,291.87
http://statistics.data.gov.uk/id/local-authority-district/23UB,Cheltenham Borough Council,448221,505412,COMENSURA LIMITED,C-C23180-0115,Rcycl Coltn Schms-Temporary Agency Staff,04-May-11,310.90
http://statistics.data.gov.uk/id/local-authority-district/23UB,Cheltenham Borough Council,448222,505572,COMENSURA LIMITED,C-C23180-0115,Rcycl Coltn Schms-Temporary Agency Staff,04-May-11,435.00
http://statistics.data.gov.uk/id/local-authority-district/23UB,Cheltenham Borough Council,448222,505572,COMENSURA LIMITED,C-C23180-0115,Rcycl Coltn Schms-Temporary Agency Staff,04-May-11,300.33
http://statistics.data.gov.uk/id/local-authority-district/23UB,Cheltenham Borough Council,448222,505572,COMENSURA LIMITED,C-C23180-0115,Rcycl Coltn Schms-Temporary Agency Staff,04-May-11,186.12
http://statistics.data.gov.uk/id/local-authority-district/23UB,Cheltenham Borough Council,448222,505572,COMENSURA LIMITED,C-C23180-0115,Rcycl Coltn Schms-Temporary Agency Staff,04-May-11,351.09
http://statistics.data.gov.uk/id/local-authority-district/23UB,Cheltenham Borough Council,448222,505572,COMENSURA LIMITED,C-C23180-0115,Rcycl Coltn Schms-Temporary Agency Staff,04-May-11,169.20
http://statistics.data.gov.uk/id/local-authority-district/23UB,Cheltenham Borough Council,448222,505572,COMENSURA LIMITED,C-C23180-0115,Rcycl Coltn Schms-Temporary Agency Staff,04-May-11,238.99
http://statistics.data.gov.uk/id/local-authority-district/23UB,Cheltenham Borough Council,448222,505572,COMENSURA LIMITED,C-C23180-0115,Rcycl Coltn Schms-Temporary Agency Staff,04-May-11,234.77
http://statistics.data.gov.uk/id/local-authority-district/23UB,Cheltenham Borough Council,448222,505572,COMENSURA LIMITED,C-C23180-0115,Rcycl Coltn Schms-Temporary Agency Staff,04-May-11,355.31
http://statistics.data.gov.uk/id/local-authority-district/23UB,Cheltenham Borough Council,448222,505572,COMENSURA LIMITED,C-C23180-0115,Rcycl Coltn Schms-Temporary Agency Staff,04-May-11,283.41
http://statistics.data.gov.uk/id/local-authority-district/23UB,Cheltenham Borough Council,448222,505572,COMENSURA LIMITED,C-C23180-0115,Rcycl Coltn Schms-Temporary Agency Staff,04-May-11,313.02
http://statistics.data.gov.uk/id/local-authority-district/23UB,Cheltenham Borough Council,448222,505572,COMENSURA LIMITED,C-C23180-0115,Rcycl Coltn Schms-Temporary Agency Staff,04-May-11,500.36
http://statistics.data.gov.uk/id/local-authority-district/23UB,Cheltenham Borough Council,448222,505572,COMENSURA LIMITED,C-C23180-0115,Rcycl Coltn Schms-Temporary Agency Staff,04-May-11,304.56
http://statistics.data.gov.uk/id/local-authority-district/23UB,Cheltenham Borough Council,448222,505572,COMENSURA LIMITED,C-C23180-0115,Rcycl Coltn Schms-Temporary Agency Staff,04-May-11,450.92
http://statistics.data.gov.uk/id/local-authority-district/23UB,Cheltenham Borough Council,448222,505572,COMENSURA LIMITED,C-C23180-0115,Rcycl Coltn Schms-Temporary Agency Staff,04-May-11,258.03
http://statistics.data.gov.uk/id/local-authority-district/23UB,Cheltenham Borough Council,448222,505572,COMENSURA LIMITED,C-C23180-0115,Rcycl Coltn Schms-Temporary Agency Staff,04-May-11,289.76
http://statistics.data.gov.uk/id/local-authority-district/23UB,Cheltenham Borough Council,448222,505572,COMENSURA LIMITED,C-C23180-0115,Rcycl Coltn Schms-Temporary Agency Staff,04-May-11,298.22
http://statistics.data.gov.uk/id/local-authority-district/23UB,Cheltenham Borough Council,448222,505572,COMENSURA LIMITED,C-C23180-0115,Rcycl Coltn Schms-Temporary Agency Staff,04-May-11,351.09
http://statistics.data.gov.uk/id/local-authority-district/23UB,Cheltenham Borough Council,448222,505572,COMENSURA LIMITED,C-C23180-0115,Rcycl Coltn Schms-Temporary Agency Staff,04-May-11,342.63
http://statistics.data.gov.uk/id/local-authority-district/23UB,Cheltenham Borough Council,448220,505214,COMENSURA LIMITED,C-C23180-0115,Rcycl Coltn Schms-Temporary Agency Staff,04-May-11,348.99
http://statistics.data.gov.uk/id/local-authority-district/23UB,Cheltenham Borough Council,448220,505214,COMENSURA LIMITED,C-C23180-0115,Rcycl Coltn Schms-Temporary Agency Staff,04-May-11,308.79
http://statistics.data.gov.uk/id/local-authority-district/23UB,Cheltenham Borough Council,448220,505214,COMENSURA LIMITED,C-C23180-0115,Rcycl Coltn Schms-Temporary Agency Staff,04-May-11,274.96
http://statistics.data.gov.uk/id/local-authority-district/23UB,Cheltenham Borough Council,448220,505214,COMENSURA LIMITED,C-C23180-0115,Rcycl Coltn Schms-Temporary Agency Staff,04-May-11,334.17
http://statistics.data.gov.uk/id/local-authority-district/23UB,Cheltenham Borough Council,448220,505214,COMENSURA LIMITED,C-C23180-0115,Rcycl Coltn Schms-Temporary Agency Staff,04-May-11,346.86
http://statistics.data.gov.uk/id/local-authority-district/23UB,Cheltenham Borough Council,448220,505214,COMENSURA LIMITED,C-C23180-0115,Rcycl Coltn Schms-Temporary Agency Staff,04-May-11,576.18
http://statistics.data.gov.uk/id/local-authority-district/23UB,Cheltenham Borough Council,448220,505214,COMENSURA LIMITED,C-C23190-0115,Garden Collectn-Temporary Agency Staff,04-May-11,387.28
http://statistics.data.gov.uk/id/local-authority-district/23UB,Cheltenham Borough Council,448221,505412,COMENSURA LIMITED,C-C23190-0115,Garden Collectn-Temporary Agency Staff,04-May-11,395.24
http://statistics.data.gov.uk/id/local-authority-district/23UB,Cheltenham Borough Council,448221,505412,COMENSURA LIMITED,C-C23190-0115,Garden Collectn-Temporary Agency Staff,04-May-11,262.26
http://statistics.data.gov.uk/id/local-authority-district/23UB,Cheltenham Borough Council,448221,505412,COMENSURA LIMITED,C-C23190-0115,Garden Collectn-Temporary Agency Staff,04-May-11,93.06
http://statistics.data.gov.uk/id/local-authority-district/23UB,Cheltenham Borough Council,448220,505214,COMENSURA LIMITED,C-C23190-0115,Garden Collectn-Temporary Agency Staff,04-May-11,321.48
http://statistics.data.gov.uk/id/local-authority-district/23UB,Cheltenham Borough Council,448222,505572,COMENSURA LIMITED,C-C23190-0115,Garden Collectn-Temporary Agency Staff,04-May-11,400.28
http://statistics.data.gov.uk/id/local-authority-district/23UB,Cheltenham Borough Council,448220,505214,COMENSURA LIMITED,C-D13100-0115,Muni Off Blgs-Temporary Agency Staff,04-May-11,84.60
http://statistics.data.gov.uk/id/local-authority-district/23UB,Cheltenham Borough Council,448221,505412,COMENSURA LIMITED,C-D13100-0115,Muni Off Blgs-Temporary Agency Staff,04-May-11,105.75
http://statistics.data.gov.uk/id/local-authority-district/23UB,Cheltenham Borough Council,448222,505572,COMENSURA LIMITED,C-D13100-0115,Muni Off Blgs-Temporary Agency Staff,04-May-11,84.60
http://statistics.data.gov.uk/id/local-authority-district/23UB,Cheltenham Borough Council,448220,505214,COMENSURA LIMITED,C-E63100-0115,Cemetery & Crem-Temporary Agency Staff,04-May-11,313.02
http://statistics.data.gov.uk/id/local-authority-district/23UB,Cheltenham Borough Council,448220,505214,COMENSURA LIMITED,C-E63100-0115,Cemetery & Crem-Temporary Agency Staff,04-May-11,253.80
http://statistics.data.gov.uk/id/local-authority-district/23UB,Cheltenham Borough Council,448220,505214,COMENSURA LIMITED,C-E63100-0115,Cemetery & Crem-Temporary Agency Staff,04-May-11,249.57
http://statistics.data.gov.uk/id/local-authority-district/23UB,Cheltenham Borough Council,448220,505214,COMENSURA LIMITED,C-E63100-0115,Cemetery & Crem-Temporary Agency Staff,04-May-11,257.28
http://statistics.data.gov.uk/id/local-authority-district/23UB,Cheltenham Borough Council,448221,505412,COMENSURA LIMITED,C-E63100-0115,Cemetery & Crem-Temporary Agency Staff,04-May-11,186.12
http://statistics.data.gov.uk/id/local-authority-district/23UB,Cheltenham Borough Council,448221,505412,COMENSURA LIMITED,C-E63100-0115,Cemetery & Crem-Temporary Agency Staff,04-May-11,313.02
http://statistics.data.gov.uk/id/local-authority-district/23UB,Cheltenham Borough Council,448222,505572,COMENSURA LIMITED,C-E63100-0115,Cemetery & Crem-Temporary Agency Staff,04-May-11,253.80
http://statistics.data.gov.uk/id/local-authority-district/23UB,Cheltenham Borough Council,448222,505572,COMENSURA LIMITED,C-E63100-0115,Cemetery & Crem-Temporary Agency Staff,04-May-11,253.80
http://statistics.data.gov.uk/id/local-authority-district/23UB,Cheltenham Borough Council,448222,505572,COMENSURA LIMITED,C-E63100-0115,Cemetery & Crem-Temporary Agency Staff,04-May-11,253.80
http://statistics.data.gov.uk/id/local-authority-district/23UB,Cheltenham Borough Council,448222,505572,COMENSURA LIMITED,C-E63100-0115,Cemetery & Crem-Temporary Agency Staff,04-May-11,253.80
http://statistics.data.gov.uk/id/local-authority-district/23UB,Cheltenham Borough Council,448221,505412,COMENSURA LIMITED,C-E63100-0115,Cemetery & Crem-Temporary Agency Staff,04-May-11,214.40
http://statistics.data.gov.uk/id/local-authority-district/23UB,Cheltenham Borough Council,448221,505412,COMENSURA LIMITED,C-E63100-0115,Cemetery & Crem-Temporary Agency Staff,04-May-11,230.48
http://statistics.data.gov.uk/id/local-authority-district/23UB,Cheltenham Borough Council,448221,505412,COMENSURA LIMITED,C-E63100-0115,Cemetery & Crem-Temporary Agency Staff,04-May-11,313.02
http://statistics.data.gov.uk/id/local-authority-district/23UB,Cheltenham Borough Council,448221,505412,COMENSURA LIMITED,C-E63100-0115,Cemetery & Crem-Temporary Agency Staff,04-May-11,313.02
http://statistics.data.gov.uk/id/local-authority-district/23UB,Cheltenham Borough Council,448221,505412,COMENSURA LIMITED,C-E63100-0115,Cemetery & Crem-Temporary Agency Staff,04-May-11,313.02
http://statistics.data.gov.uk/id/local-authority-district/23UB,Cheltenham Borough Council,448222,505572,COMENSURA LIMITED,C-E63100-0115,Cemetery & Crem-Temporary Agency Staff,04-May-11,246.56
http://statistics.data.gov.uk/id/local-authority-district/23UB,Cheltenham Borough Council,448222,505572,COMENSURA LIMITED,C-E63100-0115,Cemetery & Crem-Temporary Agency Staff,04-May-11,253.80
http://statistics.data.gov.uk/id/local-authority-district/23UB,Cheltenham Borough Council,448222,505572,COMENSURA LIMITED,C-E63100-0115,Cemetery & Crem-Temporary Agency Staff,04-May-11,253.80
http://statistics.data.gov.uk/id/local-authority-district/23UB,Cheltenham Borough Council,448222,505572,COMENSURA LIMITED,C-E63100-0115,Cemetery & Crem-Temporary Agency Staff,04-May-11,253.80
http://statistics.data.gov.uk/id/local-authority-district/23UB,Cheltenham Borough Council,448221,505412,COMENSURA LIMITED,C-E63100-0115,Cemetery & Crem-Temporary Agency Staff,04-May-11,313.02
http://statistics.data.gov.uk/id/local-authority-district/23UB,Cheltenham Borough Council,448221,505412,COMENSURA LIMITED,C-E63100-0115,Cemetery & Crem-Temporary Agency Staff,04-May-11,313.02
http://statistics.data.gov.uk/id/local-authority-district/23UB,Cheltenham Borough Council,448220,505214,COMENSURA LIMITED,C-E63100-0115,Cemetery & Crem-Temporary Agency Staff,04-May-11,313.02
http://statistics.data.gov.uk/id/local-authority-district/23UB,Cheltenham Borough Council,448220,505214,COMENSURA LIMITED,C-E63100-0115,Cemetery & Crem-Temporary Agency Staff,04-May-11,313.02
http://statistics.data.gov.uk/id/local-authority-district/23UB,Cheltenham Borough Council,448220,505214,COMENSURA LIMITED,C-E63100-0115,Cemetery & Crem-Temporary Agency Staff,04-May-11,313.02
http://statistics.data.gov.uk/id/local-authority-district/23UB,Cheltenham Borough Council,448220,505214,COMENSURA LIMITED,C-E63100-0115,Cemetery & Crem-Temporary Agency Staff,04-May-11,249.57
http://statistics.data.gov.uk/id/local-authority-district/23UB,Cheltenham Borough Council,448221,505412,COMENSURA LIMITED,C-E72500-0115,Built Env Div-Temporary Agency Staff,04-May-11,84.60
http://statistics.data.gov.uk/id/local-authority-district/23UB,Cheltenham Borough Council,448222,505572,COMENSURA LIMITED,C-E72500-0115,Built Env Div-Temporary Agency Staff,04-May-11,63.45
http://statistics.data.gov.uk/id/local-authority-district/23UB,Cheltenham Borough Council,448221,505412,COMENSURA LIMITED,C-E75500-0115,Intgd Tran Div-Temporary Agency Staff,04-May-11,491.71
http://statistics.data.gov.uk/id/local-authority-district/23UB,Cheltenham Borough Council,449684,505626,COMENSURA LIMITED,C-C23100-0115,Refuse Collection-Temporary Agency Staff,20-May-11,503.39
http://statistics.data.gov.uk/id/local-authority-district/23UB,Cheltenham Borough Council,449724,505717,COMENSURA LIMITED,C-C23100-0115,Refuse Collection-Temporary Agency Staff,20-May-11,93.06
http://statistics.data.gov.uk/id/local-authority-district/23UB,Cheltenham Borough Council,449724,505717,COMENSURA LIMITED,C-C23100-0115,Refuse Collection-Temporary Agency Staff,20-May-11,406.36
http://statistics.data.gov.uk/id/local-authority-district/23UB,Cheltenham Borough Council,449724,505717,COMENSURA LIMITED,C-C23100-0115,Refuse Collection-Temporary Agency Staff,20-May-11,325.71
http://statistics.data.gov.uk/id/local-authority-district/23UB,Cheltenham Borough Council,449724,505717,COMENSURA LIMITED,C-C23100-0115,Refuse Collection-Temporary Agency Staff,20-May-11,323.60
http://statistics.data.gov.uk/id/local-authority-district/23UB,Cheltenham Borough Council,449724,505717,COMENSURA LIMITED,C-C23100-0115,Refuse Collection-Temporary Agency Staff,20-May-11,177.66
http://statistics.data.gov.uk/id/local-authority-district/23UB,Cheltenham Borough Council,449724,505717,COMENSURA LIMITED,C-C23100-0115,Refuse Collection-Temporary Agency Staff,20-May-11,300.33
http://statistics.data.gov.uk/id/local-authority-district/23UB,Cheltenham Borough Council,449724,505717,COMENSURA LIMITED,C-C23100-0115,Refuse Collection-Temporary Agency Staff,20-May-11,266.50
http://statistics.data.gov.uk/id/local-authority-district/23UB,Cheltenham Borough Council,449724,505717,COMENSURA LIMITED,C-C23100-0115,Refuse Collection-Temporary Agency Staff,20-May-11,321.48
http://statistics.data.gov.uk/id/local-authority-district/23UB,Cheltenham Borough Council,449724,505717,COMENSURA LIMITED,C-C23100-0115,Refuse Collection-Temporary Agency Staff,20-May-11,521.59
http://statistics.data.gov.uk/id/local-authority-district/23UB,Cheltenham Borough Council,449724,505717,COMENSURA LIMITED,C-C23100-0115,Refuse Collection-Temporary Agency Staff,20-May-11,285.52
http://statistics.data.gov.uk/id/local-authority-district/23UB,Cheltenham Borough Council,449724,505717,COMENSURA LIMITED,C-C23100-0115,Refuse Collection-Temporary Agency Staff,20-May-11,463.97
http://statistics.data.gov.uk/id/local-authority-district/23UB,Cheltenham Borough Council,449724,505717,COMENSURA LIMITED,C-C23100-0115,Refuse Collection-Temporary Agency Staff,20-May-11,194.00
http://statistics.data.gov.uk/id/local-authority-district/23UB,Cheltenham Borough Council,449724,505717,COMENSURA LIMITED,C-C23100-0115,Refuse Collection-Temporary Agency Staff,20-May-11,262.27
http://statistics.data.gov.uk/id/local-authority-district/23UB,Cheltenham Borough Council,449724,505717,COMENSURA LIMITED,C-C23100-0115,Refuse Collection-Temporary Agency Staff,20-May-11,317.25
http://statistics.data.gov.uk/id/local-authority-district/23UB,Cheltenham Borough Council,449684,505626,COMENSURA LIMITED,C-C23100-0115,Refuse Collection-Temporary Agency Staff,20-May-11,97.04
http://statistics.data.gov.uk/id/local-authority-district/23UB,Cheltenham Borough Council,449724,505717,COMENSURA LIMITED,C-C23120-0115,Recycling Cntr-Temporary Agency Staff,20-May-11,67.68
http://statistics.data.gov.uk/id/local-authority-district/23UB,Cheltenham Borough Council,449724,505717,COMENSURA LIMITED,C-C23125-0115,Recyl Bring Schms-Temporary Agency Staff,20-May-11,485.20
http://statistics.data.gov.uk/id/local-authority-district/23UB,Cheltenham Borough Council,449724,505717,COMENSURA LIMITED,C-C23160-0115,Env Maint Div-Temporary Agency Staff,20-May-11,277.20
http://statistics.data.gov.uk/id/local-authority-district/23UB,Cheltenham Borough Council,449724,505717,COMENSURA LIMITED,C-C23180-0115,Rcycl Coltn Schms-Temporary Agency Staff,20-May-11,496.92
http://statistics.data.gov.uk/id/local-authority-district/23UB,Cheltenham Borough Council,449724,505717,COMENSURA LIMITED,C-C23180-0115,Rcycl Coltn Schms-Temporary Agency Staff,20-May-11,228.42
http://statistics.data.gov.uk/id/local-authority-district/23UB,Cheltenham Borough Council,449724,505717,COMENSURA LIMITED,C-C23180-0115,Rcycl Coltn Schms-Temporary Agency Staff,20-May-11,279.18
http://statistics.data.gov.uk/id/local-authority-district/23UB,Cheltenham Borough Council,449724,505717,COMENSURA LIMITED,C-C23180-0115,Rcycl Coltn Schms-Temporary Agency Staff,20-May-11,181.89
http://statistics.data.gov.uk/id/local-authority-district/23UB,Cheltenham Borough Council,449724,505717,COMENSURA LIMITED,C-C23180-0115,Rcycl Coltn Schms-Temporary Agency Staff,20-May-11,300.33
http://statistics.data.gov.uk/id/local-authority-district/23UB,Cheltenham Borough Council,449724,505717,COMENSURA LIMITED,C-C23180-0115,Rcycl Coltn Schms-Temporary Agency Staff,20-May-11,251.68
http://statistics.data.gov.uk/id/local-authority-district/23UB,Cheltenham Borough Council,449724,505717,COMENSURA LIMITED,C-C23180-0115,Rcycl Coltn Schms-Temporary Agency Staff,20-May-11,67.68
http://statistics.data.gov.uk/id/local-authority-district/23UB,Cheltenham Borough Council,449724,505717,COMENSURA LIMITED,C-C23180-0115,Rcycl Coltn Schms-Temporary Agency Staff,20-May-11,243.23
http://statistics.data.gov.uk/id/local-authority-district/23UB,Cheltenham Borough Council,449724,505717,COMENSURA LIMITED,C-C23180-0115,Rcycl Coltn Schms-Temporary Agency Staff,20-May-11,186.12
http://statistics.data.gov.uk/id/local-authority-district/23UB,Cheltenham Borough Council,449724,505717,COMENSURA LIMITED,C-C23180-0115,Rcycl Coltn Schms-Temporary Agency Staff,20-May-11,184.00
http://statistics.data.gov.uk/id/local-authority-district/23UB,Cheltenham Borough Council,449724,505717,COMENSURA LIMITED,C-C23180-0115,Rcycl Coltn Schms-Temporary Agency Staff,20-May-11,317.25
http://statistics.data.gov.uk/id/local-authority-district/23UB,Cheltenham Borough Council,449724,505717,COMENSURA LIMITED,C-C23180-0115,Rcycl Coltn Schms-Temporary Agency Staff,20-May-11,206.89
http://statistics.data.gov.uk/id/local-authority-district/23UB,Cheltenham Borough Council,449724,505717,COMENSURA LIMITED,C-C23180-0115,Rcycl Coltn Schms-Temporary Agency Staff,20-May-11,506.42
http://statistics.data.gov.uk/id/local-authority-district/23UB,Cheltenham Borough Council,449724,505717,COMENSURA LIMITED,C-C23180-0115,Rcycl Coltn Schms-Temporary Agency Staff,20-May-11,258.03
http://statistics.data.gov.uk/id/local-authority-district/23UB,Cheltenham Borough Council,449724,505717,COMENSURA LIMITED,C-C23180-0115,Rcycl Coltn Schms-Temporary Agency Staff,20-May-11,224.19
http://statistics.data.gov.uk/id/local-authority-district/23UB,Cheltenham Borough Council,449724,505717,COMENSURA LIMITED,C-C23180-0115,Rcycl Coltn Schms-Temporary Agency Staff,20-May-11,260.14
http://statistics.data.gov.uk/id/local-authority-district/23UB,Cheltenham Borough Council,449724,505717,COMENSURA LIMITED,C-C23180-0115,Rcycl Coltn Schms-Temporary Agency Staff,20-May-11,260.15
http://statistics.data.gov.uk/id/local-authority-district/23UB,Cheltenham Borough Council,449724,505717,COMENSURA LIMITED,C-C23180-0115,Rcycl Coltn Schms-Temporary Agency Staff,20-May-11,97.04
http://statistics.data.gov.uk/id/local-authority-district/23UB,Cheltenham Borough Council,449724,505717,COMENSURA LIMITED,C-C23190-0115,Garden Collectn-Temporary Agency Staff,20-May-11,59.22
http://statistics.data.gov.uk/id/local-authority-district/23UB,Cheltenham Borough Council,449724,505717,COMENSURA LIMITED,C-C23190-0115,Garden Collectn-Temporary Agency Staff,20-May-11,440.31
http://statistics.data.gov.uk/id/local-authority-district/23UB,Cheltenham Borough Council,449724,505717,COMENSURA LIMITED,C-C23190-0115,Garden Collectn-Temporary Agency Staff,20-May-11,211.50
http://statistics.data.gov.uk/id/local-authority-district/23UB,Cheltenham Borough Council,449724,505717,COMENSURA LIMITED,C-D13100-0115,Muni Off Blgs-Temporary Agency Staff,20-May-11,42.30
http://statistics.data.gov.uk/id/local-authority-district/23UB,Cheltenham Borough Council,449724,505717,COMENSURA LIMITED,C-D13100-0115,Muni Off Blgs-Temporary Agency Staff,20-May-11,71.91
http://statistics.data.gov.uk/id/local-authority-district/23UB,Cheltenham Borough Council,449724,505717,COMENSURA LIMITED,C-E36200-0115,On-St Car Prkng-Temporary Agency Staff,20-May-11,494.80
http://statistics.data.gov.uk/id/local-authority-district/23UB,Cheltenham Borough Council,449724,505717,COMENSURA LIMITED,C-E36200-0115,On-St Car Prkng-Temporary Agency Staff,20-May-11,303.07
http://statistics.data.gov.uk/id/local-authority-district/23UB,Cheltenham Borough Council,449724,505717,COMENSURA LIMITED,C-E36200-0115,On-St Car Prkng-Temporary Agency Staff,20-May-11,380.38
http://statistics.data.gov.uk/id/local-authority-district/23UB,Cheltenham Borough Council,449724,505717,COMENSURA LIMITED,C-E63100-0115,Cemetery & Crem-Temporary Agency Staff,20-May-11,190.35
http://statistics.data.gov.uk/id/local-authority-district/23UB,Cheltenham Borough Council,449724,505717,COMENSURA LIMITED,C-E63100-0115,Cemetery & Crem-Temporary Agency Staff,20-May-11,190.35
http://statistics.data.gov.uk/id/local-authority-district/23UB,Cheltenham Borough Council,449724,505717,COMENSURA LIMITED,C-E63100-0115,Cemetery & Crem-Temporary Agency Staff,20-May-11,190.35
http://statistics.data.gov.uk/id/local-authority-district/23UB,Cheltenham Borough Council,449724,505717,COMENSURA LIMITED,C-E63100-0115,Cemetery & Crem-Temporary Agency Staff,20-May-11,192.96
http://statistics.data.gov.uk/id/local-authority-district/23UB,Cheltenham Borough Council,449724,505717,COMENSURA LIMITED,C-E63100-0115,Cemetery & Crem-Temporary Agency Staff,20-May-11,139.36
http://statistics.data.gov.uk/id/local-authority-district/23UB,Cheltenham Borough Council,449724,505717,COMENSURA LIMITED,C-E63100-0115,Cemetery & Crem-Temporary Agency Staff,20-May-11,190.35
http://statistics.data.gov.uk/id/local-authority-district/23UB,Cheltenham Borough Council,449724,505717,COMENSURA LIMITED,C-E63100-0115,Cemetery & Crem-Temporary Agency Staff,20-May-11,63.45
http://statistics.data.gov.uk/id/local-authority-district/23UB,Cheltenham Borough Council,449724,505717,COMENSURA LIMITED,C-E63100-0115,Cemetery & Crem-Temporary Agency Staff,20-May-11,143.82
http://statistics.data.gov.uk/id/local-authority-district/23UB,Cheltenham Borough Council,449724,505717,COMENSURA LIMITED,C-E63100-0115,Cemetery & Crem-Temporary Agency Staff,20-May-11,190.35
http://statistics.data.gov.uk/id/local-authority-district/23UB,Cheltenham Borough Council,449724,505717,COMENSURA LIMITED,C-E72500-0115,Built Env Div-Temporary Agency Staff,20-May-11,46.53
http://statistics.data.gov.uk/id/local-authority-district/23UB,Cheltenham Borough Council,450307,505893,COMENSURA LIMITED,C-C22100-0115,Green Env Div-Temporary Agency Staff,27-May-11,345.82
http://statistics.data.gov.uk/id/local-authority-district/23UB,Cheltenham Borough Council,450307,505893,COMENSURA LIMITED,C-C22100-0115,Green Env Div-Temporary Agency Staff,27-May-11,279.20
http://statistics.data.gov.uk/id/local-authority-district/23UB,Cheltenham Borough Council,450307,505893,COMENSURA LIMITED,C-C22100-0115,Green Env Div-Temporary Agency Staff,27-May-11,279.20
http://statistics.data.gov.uk/id/local-authority-district/23UB,Cheltenham Borough Council,450307,505893,COMENSURA LIMITED,C-C22100-0115,Green Env Div-Temporary Agency Staff,27-May-11,279.20
http://statistics.data.gov.uk/id/local-authority-district/23UB,Cheltenham Borough Council,450307,505893,COMENSURA LIMITED,C-C22100-0115,Green Env Div-Temporary Agency Staff,27-May-11,279.20
http://statistics.data.gov.uk/id/local-authority-district/23UB,Cheltenham Borough Council,450307,505893,COMENSURA LIMITED,C-C22100-0115,Green Env Div-Temporary Agency Staff,27-May-11,294.00
http://statistics.data.gov.uk/id/local-authority-district/23UB,Cheltenham Borough Council,450307,505893,COMENSURA LIMITED,C-C22100-0115,Green Env Div-Temporary Agency Staff,27-May-11,209.40
http://statistics.data.gov.uk/id/local-authority-district/23UB,Cheltenham Borough Council,450307,505893,COMENSURA LIMITED,C-C22100-0115,Green Env Div-Temporary Agency Staff,27-May-11,79.58
http://statistics.data.gov.uk/id/local-authority-district/23UB,Cheltenham Borough Council,450307,505893,COMENSURA LIMITED,C-C22100-0115,Green Env Div-Temporary Agency Staff,27-May-11,378.60
http://statistics.data.gov.uk/id/local-authority-district/23UB,Cheltenham Borough Council,450307,505893,COMENSURA LIMITED,C-C22100-0115,Green Env Div-Temporary Agency Staff,27-May-11,277.08
http://statistics.data.gov.uk/id/local-authority-district/23UB,Cheltenham Borough Council,450307,505893,COMENSURA LIMITED,C-C22100-0115,Green Env Div-Temporary Agency Staff,27-May-11,319.38
http://statistics.data.gov.uk/id/local-authority-district/23UB,Cheltenham Borough Council,450307,505893,COMENSURA LIMITED,C-C22120-0115,Spts/Open Space-Temporary Agency Staff,27-May-11,287.64
http://statistics.data.gov.uk/id/local-authority-district/23UB,Cheltenham Borough Council,450307,505893,COMENSURA LIMITED,C-C22120-0115,Spts/Open Space-Temporary Agency Staff,27-May-11,274.95
http://statistics.data.gov.uk/id/local-authority-district/23UB,Cheltenham Borough Council,450307,505893,COMENSURA LIMITED,C-C22120-0115,Spts/Open Space-Temporary Agency Staff,27-May-11,274.95
http://statistics.data.gov.uk/id/local-authority-district/23UB,Cheltenham Borough Council,450307,505893,COMENSURA LIMITED,C-C22120-0115,Spts/Open Space-Temporary Agency Staff,27-May-11,346.86
http://statistics.data.gov.uk/id/local-authority-district/23UB,Cheltenham Borough Council,450307,505893,COMENSURA LIMITED,C-C22120-0115,Spts/Open Space-Temporary Agency Staff,27-May-11,215.73
http://statistics.data.gov.uk/id/local-authority-district/23UB,Cheltenham Borough Council,450307,505893,COMENSURA LIMITED,C-C22120-0115,Spts/Open Space-Temporary Agency Staff,27-May-11,287.64
http://statistics.data.gov.uk/id/local-authority-district/23UB,Cheltenham Borough Council,450307,505893,COMENSURA LIMITED,C-C22120-0115,Spts/Open Space-Temporary Agency Staff,27-May-11,215.73
http://statistics.data.gov.uk/id/local-authority-district/23UB,Cheltenham Borough Council,450307,505893,COMENSURA LIMITED,C-C22120-0115,Spts/Open Space-Temporary Agency Staff,27-May-11,215.73
http://statistics.data.gov.uk/id/local-authority-district/23UB,Cheltenham Borough Council,450307,505893,COMENSURA LIMITED,C-C22120-0115,Spts/Open Space-Temporary Agency Staff,27-May-11,287.64
http://statistics.data.gov.uk/id/local-authority-district/23UB,Cheltenham Borough Council,450307,505893,COMENSURA LIMITED,C-C23100-0115,Refuse Collection-Temporary Agency Staff,27-May-11,490.68
http://statistics.data.gov.uk/id/local-authority-district/23UB,Cheltenham Borough Council,450307,505893,COMENSURA LIMITED,C-C23100-0115,Refuse Collection-Temporary Agency Staff,27-May-11,340.51
http://statistics.data.gov.uk/id/local-authority-district/23UB,Cheltenham Borough Council,450307,505893,COMENSURA LIMITED,C-C23100-0115,Refuse Collection-Temporary Agency Staff,27-May-11,376.47
http://statistics.data.gov.uk/id/local-authority-district/23UB,Cheltenham Borough Council,450307,505893,COMENSURA LIMITED,C-C23100-0115,Refuse Collection-Temporary Agency Staff,27-May-11,387.00
http://statistics.data.gov.uk/id/local-authority-district/23UB,Cheltenham Borough Council,450307,505893,COMENSURA LIMITED,C-C23100-0115,Refuse Collection-Temporary Agency Staff,27-May-11,450.44
http://statistics.data.gov.uk/id/local-authority-district/23UB,Cheltenham Borough Council,450307,505893,COMENSURA LIMITED,C-C23100-0115,Refuse Collection-Temporary Agency Staff,27-May-11,143.82
http://statistics.data.gov.uk/id/local-authority-district/23UB,Cheltenham Borough Council,450307,505893,COMENSURA LIMITED,C-C23100-0115,Refuse Collection-Temporary Agency Staff,27-May-11,101.52
http://statistics.data.gov.uk/id/local-authority-district/23UB,Cheltenham Borough Council,450307,505893,COMENSURA LIMITED,C-C23100-0115,Refuse Collection-Temporary Agency Staff,27-May-11,59.22
http://statistics.data.gov.uk/id/local-authority-district/23UB,Cheltenham Borough Council,450307,505893,COMENSURA LIMITED,C-C23100-0115,Refuse Collection-Temporary Agency Staff,27-May-11,42.30
http://statistics.data.gov.uk/id/local-authority-district/23UB,Cheltenham Borough Council,450307,505893,COMENSURA LIMITED,C-C23100-0115,Refuse Collection-Temporary Agency Staff,27-May-11,42.30
http://statistics.data.gov.uk/id/local-authority-district/23UB,Cheltenham Borough Council,450307,505893,COMENSURA LIMITED,C-C23100-0115,Refuse Collection-Temporary Agency Staff,27-May-11,46.53
http://statistics.data.gov.uk/id/local-authority-district/23UB,Cheltenham Borough Council,450307,505893,COMENSURA LIMITED,C-C23100-0115,Refuse Collection-Temporary Agency Staff,27-May-11,63.45
http://statistics.data.gov.uk/id/local-authority-district/23UB,Cheltenham Borough Council,450307,505893,COMENSURA LIMITED,C-C23100-0115,Refuse Collection-Temporary Agency Staff,27-May-11,44.42
http://statistics.data.gov.uk/id/local-authority-district/23UB,Cheltenham Borough Council,450307,505893,COMENSURA LIMITED,C-C23100-0115,Refuse Collection-Temporary Agency Staff,27-May-11,44.42
http://statistics.data.gov.uk/id/local-authority-district/23UB,Cheltenham Borough Council,450307,505893,COMENSURA LIMITED,C-C23100-0115,Refuse Collection-Temporary Agency Staff,27-May-11,71.91
http://statistics.data.gov.uk/id/local-authority-district/23UB,Cheltenham Borough Council,450307,505893,COMENSURA LIMITED,C-C23100-0115,Refuse Collection-Temporary Agency Staff,27-May-11,44.42
http://statistics.data.gov.uk/id/local-authority-district/23UB,Cheltenham Borough Council,450307,505893,COMENSURA LIMITED,C-C23100-0115,Refuse Collection-Temporary Agency Staff,27-May-11,42.30
http://statistics.data.gov.uk/id/local-authority-district/23UB,Cheltenham Borough Council,450307,505893,COMENSURA LIMITED,C-C23100-0115,Refuse Collection-Temporary Agency Staff,27-May-11,54.99
http://statistics.data.gov.uk/id/local-authority-district/23UB,Cheltenham Borough Council,450307,505893,COMENSURA LIMITED,C-C23100-0115,Refuse Collection-Temporary Agency Staff,27-May-11,59.22
http://statistics.data.gov.uk/id/local-authority-district/23UB,Cheltenham Borough Council,450307,505893,COMENSURA LIMITED,C-C23100-0115,Refuse Collection-Temporary Agency Staff,27-May-11,190.35
http://statistics.data.gov.uk/id/local-authority-district/23UB,Cheltenham Borough Council,450307,505893,COMENSURA LIMITED,C-C23100-0115,Refuse Collection-Temporary Agency Staff,27-May-11,397.26
http://statistics.data.gov.uk/id/local-authority-district/23UB,Cheltenham Borough Council,450307,505893,COMENSURA LIMITED,C-C23100-0115,Refuse Collection-Temporary Agency Staff,27-May-11,452.61
http://statistics.data.gov.uk/id/local-authority-district/23UB,Cheltenham Borough Council,450307,505893,COMENSURA LIMITED,C-C23100-0115,Refuse Collection-Temporary Agency Staff,27-May-11,424.05
http://statistics.data.gov.uk/id/local-authority-district/23UB,Cheltenham Borough Council,450307,505893,COMENSURA LIMITED,C-C23100-0115,Refuse Collection-Temporary Agency Staff,27-May-11,418.72
http://statistics.data.gov.uk/id/local-authority-district/23UB,Cheltenham Borough Council,450307,505893,COMENSURA LIMITED,C-C23100-0115,Refuse Collection-Temporary Agency Staff,27-May-11,206.21
http://statistics.data.gov.uk/id/local-authority-district/23UB,Cheltenham Borough Council,450307,505893,COMENSURA LIMITED,C-C23100-0115,Refuse Collection-Temporary Agency Staff,27-May-11,152.28
http://statistics.data.gov.uk/id/local-authority-district/23UB,Cheltenham Borough Council,450307,505893,COMENSURA LIMITED,C-C23100-0115,Refuse Collection-Temporary Agency Staff,27-May-11,215.73
http://statistics.data.gov.uk/id/local-authority-district/23UB,Cheltenham Borough Council,450307,505893,COMENSURA LIMITED,C-C23110-0115,Street Cleaning-Temporary Agency Staff,27-May-11,325.71
http://statistics.data.gov.uk/id/local-authority-district/23UB,Cheltenham Borough Council,450307,505893,COMENSURA LIMITED,C-C23110-0115,Street Cleaning-Temporary Agency Staff,27-May-11,439.92
http://statistics.data.gov.uk/id/local-authority-district/23UB,Cheltenham Borough Council,450307,505893,COMENSURA LIMITED,C-C23110-0115,Street Cleaning-Temporary Agency Staff,27-May-11,372.24
http://statistics.data.gov.uk/id/local-authority-district/23UB,Cheltenham Borough Council,450307,505893,COMENSURA LIMITED,C-C23110-0115,Street Cleaning-Temporary Agency Staff,27-May-11,190.35
http://statistics.data.gov.uk/id/local-authority-district/23UB,Cheltenham Borough Council,450307,505893,COMENSURA LIMITED,C-C23110-0115,Street Cleaning-Temporary Agency Staff,27-May-11,291.87
http://statistics.data.gov.uk/id/local-authority-district/23UB,Cheltenham Borough Council,450307,505893,COMENSURA LIMITED,C-C23110-0115,Street Cleaning-Temporary Agency Staff,27-May-11,258.03
http://statistics.data.gov.uk/id/local-authority-district/23UB,Cheltenham Borough Council,450307,505893,COMENSURA LIMITED,C-C23110-0115,Street Cleaning-Temporary Agency Staff,27-May-11,190.35
http://statistics.data.gov.uk/id/local-authority-district/23UB,Cheltenham Borough Council,450307,505893,COMENSURA LIMITED,C-C23110-0115,Street Cleaning-Temporary Agency Staff,27-May-11,391.21
http://statistics.data.gov.uk/id/local-authority-district/23UB,Cheltenham Borough Council,450307,505893,COMENSURA LIMITED,C-C23110-0115,Street Cleaning-Temporary Agency Staff,27-May-11,249.57
http://statistics.data.gov.uk/id/local-authority-district/23UB,Cheltenham Borough Council,450307,505893,COMENSURA LIMITED,C-C23110-0115,Street Cleaning-Temporary Agency Staff,27-May-11,245.34
http://statistics.data.gov.uk/id/local-authority-district/23UB,Cheltenham Borough Council,450307,505893,COMENSURA LIMITED,C-C23110-0115,Street Cleaning-Temporary Agency Staff,27-May-11,190.35
http://statistics.data.gov.uk/id/local-authority-district/23UB,Cheltenham Borough Council,450307,505893,COMENSURA LIMITED,C-C23110-0115,Street Cleaning-Temporary Agency Staff,27-May-11,232.65
http://statistics.data.gov.uk/id/local-authority-district/23UB,Cheltenham Borough Council,450307,505893,COMENSURA LIMITED,C-C23125-0115,Recyl Bring Schms-Temporary Agency Staff,27-May-11,97.04
http://statistics.data.gov.uk/id/local-authority-district/23UB,Cheltenham Borough Council,450307,505893,COMENSURA LIMITED,C-C23125-0115,Recyl Bring Schms-Temporary Agency Staff,27-May-11,682.34
http://statistics.data.gov.uk/id/local-authority-district/23UB,Cheltenham Borough Council,450307,505893,COMENSURA LIMITED,C-C23160-0115,Env Maint Div-Temporary Agency Staff,27-May-11,272.25
http://statistics.data.gov.uk/id/local-authority-district/23UB,Cheltenham Borough Council,450307,505893,COMENSURA LIMITED,C-C23160-0115,Env Maint Div-Temporary Agency Staff,27-May-11,133.65
http://statistics.data.gov.uk/id/local-authority-district/23UB,Cheltenham Borough Council,450307,505893,COMENSURA LIMITED,C-C23160-0115,Env Maint Div-Temporary Agency Staff,27-May-11,202.95
http://statistics.data.gov.uk/id/local-authority-district/23UB,Cheltenham Borough Council,450307,505893,COMENSURA LIMITED,C-C23160-0115,Env Maint Div-Temporary Agency Staff,27-May-11,269.78
http://statistics.data.gov.uk/id/local-authority-district/23UB,Cheltenham Borough Council,450307,505893,COMENSURA LIMITED,C-C23160-0115,Env Maint Div-Temporary Agency Staff,27-May-11,264.83
http://statistics.data.gov.uk/id/local-authority-district/23UB,Cheltenham Borough Council,450307,505893,COMENSURA LIMITED,C-C23160-0115,Env Maint Div-Temporary Agency Staff,27-May-11,202.95
http://statistics.data.gov.uk/id/local-authority-district/23UB,Cheltenham Borough Council,450307,505893,COMENSURA LIMITED,C-C23160-0115,Env Maint Div-Temporary Agency Staff,27-May-11,180.68
http://statistics.data.gov.uk/id/local-authority-district/23UB,Cheltenham Borough Council,450307,505893,COMENSURA LIMITED,C-C23160-0115,Env Maint Div-Temporary Agency Staff,27-May-11,272.25
http://statistics.data.gov.uk/id/local-authority-district/23UB,Cheltenham Borough Council,450307,505893,COMENSURA LIMITED,C-C23160-0115,Env Maint Div-Temporary Agency Staff,27-May-11,272.25
http://statistics.data.gov.uk/id/local-authority-district/23UB,Cheltenham Borough Council,450307,505893,COMENSURA LIMITED,C-C23160-0115,Env Maint Div-Temporary Agency Staff,27-May-11,272.25
http://statistics.data.gov.uk/id/local-authority-district/23UB,Cheltenham Borough Council,450307,505893,COMENSURA LIMITED,C-C23160-0115,Env Maint Div-Temporary Agency Staff,27-May-11,272.25
http://statistics.data.gov.uk/id/local-authority-district/23UB,Cheltenham Borough Council,450307,505893,COMENSURA LIMITED,C-C23160-0115,Env Maint Div-Temporary Agency Staff,27-May-11,277.20
http://statistics.data.gov.uk/id/local-authority-district/23UB,Cheltenham Borough Council,450307,505893,COMENSURA LIMITED,C-C23160-0115,Env Maint Div-Temporary Agency Staff,27-May-11,202.95
http://statistics.data.gov.uk/id/local-authority-district/23UB,Cheltenham Borough Council,450307,505893,COMENSURA LIMITED,C-C23180-0115,Rcycl Coltn Schms-Temporary Agency Staff,27-May-11,467.35
http://statistics.data.gov.uk/id/local-authority-district/23UB,Cheltenham Borough Council,450307,505893,COMENSURA LIMITED,C-C23180-0115,Rcycl Coltn Schms-Temporary Agency Staff,27-May-11,344.74
http://statistics.data.gov.uk/id/local-authority-district/23UB,Cheltenham Borough Council,450307,505893,COMENSURA LIMITED,C-C23180-0115,Rcycl Coltn Schms-Temporary Agency Staff,27-May-11,419.83
http://statistics.data.gov.uk/id/local-authority-district/23UB,Cheltenham Borough Council,450307,505893,COMENSURA LIMITED,C-C23180-0115,Rcycl Coltn Schms-Temporary Agency Staff,27-May-11,541.15
http://statistics.data.gov.uk/id/local-authority-district/23UB,Cheltenham Borough Council,450307,505893,COMENSURA LIMITED,C-C23180-0115,Rcycl Coltn Schms-Temporary Agency Staff,27-May-11,273.89
http://statistics.data.gov.uk/id/local-authority-district/23UB,Cheltenham Borough Council,450307,505893,COMENSURA LIMITED,C-C23180-0115,Rcycl Coltn Schms-Temporary Agency Staff,27-May-11,363.78
http://statistics.data.gov.uk/id/local-authority-district/23UB,Cheltenham Borough Council,450307,505893,COMENSURA LIMITED,C-C23180-0115,Rcycl Coltn Schms-Temporary Agency Staff,27-May-11,550.96
http://statistics.data.gov.uk/id/local-authority-district/23UB,Cheltenham Borough Council,450307,505893,COMENSURA LIMITED,C-C23180-0115,Rcycl Coltn Schms-Temporary Agency Staff,27-May-11,405.02
http://statistics.data.gov.uk/id/local-authority-district/23UB,Cheltenham Borough Council,450307,505893,COMENSURA LIMITED,C-C23180-0115,Rcycl Coltn Schms-Temporary Agency Staff,27-May-11,454.72
http://statistics.data.gov.uk/id/local-authority-district/23UB,Cheltenham Borough Council,450307,505893,COMENSURA LIMITED,C-C23180-0115,Rcycl Coltn Schms-Temporary Agency Staff,27-May-11,236.81
http://statistics.data.gov.uk/id/local-authority-district/23UB,Cheltenham Borough Council,450307,505893,COMENSURA LIMITED,C-C23180-0115,Rcycl Coltn Schms-Temporary Agency Staff,27-May-11,758.16
http://statistics.data.gov.uk/id/local-authority-district/23UB,Cheltenham Borough Council,450307,505893,COMENSURA LIMITED,C-C23180-0115,Rcycl Coltn Schms-Temporary Agency Staff,27-May-11,463.18
http://statistics.data.gov.uk/id/local-authority-district/23UB,Cheltenham Borough Council,450307,505893,COMENSURA LIMITED,C-C23180-0115,Rcycl Coltn Schms-Temporary Agency Staff,27-May-11,308.80
http://statistics.data.gov.uk/id/local-authority-district/23UB,Cheltenham Borough Council,450307,505893,COMENSURA LIMITED,C-C23180-0115,Rcycl Coltn Schms-Temporary Agency Staff,27-May-11,388.21
http://statistics.data.gov.uk/id/local-authority-district/23UB,Cheltenham Borough Council,450307,505893,COMENSURA LIMITED,C-C23180-0115,Rcycl Coltn Schms-Temporary Agency Staff,27-May-11,405.02
http://statistics.data.gov.uk/id/local-authority-district/23UB,Cheltenham Borough Council,450307,505893,COMENSURA LIMITED,C-C23180-0115,Rcycl Coltn Schms-Temporary Agency Staff,27-May-11,442.04
http://statistics.data.gov.uk/id/local-authority-district/23UB,Cheltenham Borough Council,450307,505893,COMENSURA LIMITED,C-C23180-0115,Rcycl Coltn Schms-Temporary Agency Staff,27-May-11,393.39
http://statistics.data.gov.uk/id/local-authority-district/23UB,Cheltenham Borough Council,450307,505893,COMENSURA LIMITED,C-C23180-0115,Rcycl Coltn Schms-Temporary Agency Staff,27-May-11,222.85
http://statistics.data.gov.uk/id/local-authority-district/23UB,Cheltenham Borough Council,450307,505893,COMENSURA LIMITED,C-C23180-0115,Rcycl Coltn Schms-Temporary Agency Staff,27-May-11,76.14
http://statistics.data.gov.uk/id/local-authority-district/23UB,Cheltenham Borough Council,450307,505893,COMENSURA LIMITED,C-C23180-0115,Rcycl Coltn Schms-Temporary Agency Staff,27-May-11,393.39
http://statistics.data.gov.uk/id/local-authority-district/23UB,Cheltenham Borough Council,450307,505893,COMENSURA LIMITED,C-C23180-0115,Rcycl Coltn Schms-Temporary Agency Staff,27-May-11,35.96
http://statistics.data.gov.uk/id/local-authority-district/23UB,Cheltenham Borough Council,450307,505893,COMENSURA LIMITED,C-C23180-0115,Rcycl Coltn Schms-Temporary Agency Staff,27-May-11,454.92
http://statistics.data.gov.uk/id/local-authority-district/23UB,Cheltenham Borough Council,450307,505893,COMENSURA LIMITED,C-C23180-0115,Rcycl Coltn Schms-Temporary Agency Staff,27-May-11,121.30
http://statistics.data.gov.uk/id/local-authority-district/23UB,Cheltenham Borough Council,450307,505893,COMENSURA LIMITED,C-C23180-0115,Rcycl Coltn Schms-Temporary Agency Staff,27-May-11,811.95
http://statistics.data.gov.uk/id/local-authority-district/23UB,Cheltenham Borough Council,450307,505893,COMENSURA LIMITED,C-C23180-0115,Rcycl Coltn Schms-Temporary Agency Staff,27-May-11,354.76
http://statistics.data.gov.uk/id/local-authority-district/23UB,Cheltenham Borough Council,450307,505893,COMENSURA LIMITED,C-C23180-0115,Rcycl Coltn Schms-Temporary Agency Staff,27-May-11,369.07
http://statistics.data.gov.uk/id/local-authority-district/23UB,Cheltenham Borough Council,450307,505893,COMENSURA LIMITED,C-C23180-0115,Rcycl Coltn Schms-Temporary Agency Staff,27-May-11,98.27
http://statistics.data.gov.uk/id/local-authority-district/23UB,Cheltenham Borough Council,450307,505893,COMENSURA LIMITED,C-C23180-0115,Rcycl Coltn Schms-Temporary Agency Staff,27-May-11,369.03
http://statistics.data.gov.uk/id/local-authority-district/23UB,Cheltenham Borough Council,450307,505893,COMENSURA LIMITED,C-C23190-0115,Garden Collectn-Temporary Agency Staff,27-May-11,485.20
http://statistics.data.gov.uk/id/local-authority-district/23UB,Cheltenham Borough Council,450307,505893,COMENSURA LIMITED,C-C23190-0115,Garden Collectn-Temporary Agency Staff,27-May-11,154.39
http://statistics.data.gov.uk/id/local-authority-district/23UB,Cheltenham Borough Council,450307,505893,COMENSURA LIMITED,C-C23190-0115,Garden Collectn-Temporary Agency Staff,27-May-11,450.93
http://statistics.data.gov.uk/id/local-authority-district/23UB,Cheltenham Borough Council,450307,505893,COMENSURA LIMITED,C-C23190-0115,Garden Collectn-Temporary Agency Staff,27-May-11,359.55
http://statistics.data.gov.uk/id/local-authority-district/23UB,Cheltenham Borough Council,450307,505893,COMENSURA LIMITED,C-C23190-0115,Garden Collectn-Temporary Agency Staff,27-May-11,169.20
http://statistics.data.gov.uk/id/local-authority-district/23UB,Cheltenham Borough Council,450307,505893,COMENSURA LIMITED,C-D13100-0115,Muni Off Blgs-Temporary Agency Staff,27-May-11,84.60
http://statistics.data.gov.uk/id/local-authority-district/23UB,Cheltenham Borough Council,450307,505893,COMENSURA LIMITED,C-E36200-0115,On-St Car Prkng-Temporary Agency Staff,27-May-11,432.95
http://statistics.data.gov.uk/id/local-authority-district/23UB,Cheltenham Borough Council,450307,505893,COMENSURA LIMITED,C-E63100-0115,Cemetery & Crem-Temporary Agency Staff,27-May-11,225.12
http://statistics.data.gov.uk/id/local-authority-district/23UB,Cheltenham Borough Council,450307,505893,COMENSURA LIMITED,C-E63100-0115,Cemetery & Crem-Temporary Agency Staff,27-May-11,249.57
http://statistics.data.gov.uk/id/local-authority-district/23UB,Cheltenham Borough Council,450307,505893,COMENSURA LIMITED,C-E63100-0115,Cemetery & Crem-Temporary Agency Staff,27-May-11,249.57
http://statistics.data.gov.uk/id/local-authority-district/23UB,Cheltenham Borough Council,450307,505893,COMENSURA LIMITED,C-E63100-0115,Cemetery & Crem-Temporary Agency Staff,27-May-11,249.57
http://statistics.data.gov.uk/id/local-authority-district/23UB,Cheltenham Borough Council,450307,505893,COMENSURA LIMITED,C-E63100-0115,Cemetery & Crem-Temporary Agency Staff,27-May-11,249.57
http://statistics.data.gov.uk/id/local-authority-district/23UB,Cheltenham Borough Council,450307,505893,COMENSURA LIMITED,C-E63100-0115,Cemetery & Crem-Temporary Agency Staff,27-May-11,228.42
http://statistics.data.gov.uk/id/local-authority-district/23UB,Cheltenham Borough Council,450307,505893,COMENSURA LIMITED,C-E63100-0115,Cemetery & Crem-Temporary Agency Staff,27-May-11,249.57
http://statistics.data.gov.uk/id/local-authority-district/23UB,Cheltenham Borough Council,450307,505893,COMENSURA LIMITED,C-E63100-0115,Cemetery & Crem-Temporary Agency Staff,27-May-11,171.52
http://statistics.data.gov.uk/id/local-authority-district/23UB,Cheltenham Borough Council,448751,2418,COMBUSTION SOLUTIONS,C-E63100-1215,Cemetery & Crem-Cremator servicing & rep,13-May-11,"1,490.00"
http://statistics.data.gov.uk/id/local-authority-district/23UB,Cheltenham Borough Council,448752,2414,COMBUSTION SOLUTIONS,C-E63100-1215,Cemetery & Crem-Cremator servicing & rep,13-May-11,"1,760.00"
http://statistics.data.gov.uk/id/local-authority-district/23UB,Cheltenham Borough Council,448753,2403,COMBUSTION SOLUTIONS,C-E63100-1215,Cemetery & Crem-Cremator servicing & rep,13-May-11,"2,786.00"
http://statistics.data.gov.uk/id/local-authority-district/23UB,Cheltenham Borough Council,448752,2414,COMBUSTION SOLUTIONS,C-E63100-1215,Cemetery & Crem-Cremator servicing & rep,13-May-11,8.00
http://statistics.data.gov.uk/id/local-authority-district/23UB,Cheltenham Borough Council,448752,2414,COMBUSTION SOLUTIONS,C-E63100-1215,Cemetery & Crem-Cremator servicing & rep,13-May-11,9.00
http://statistics.data.gov.uk/id/local-authority-district/23UB,Cheltenham Borough Council,448753,2403,COMBUSTION SOLUTIONS,C-E63100-1215,Cemetery & Crem-Cremator servicing & rep,13-May-11,640.00
http://statistics.data.gov.uk/id/local-authority-district/23UB,Cheltenham Borough Council,448753,2403,COMBUSTION SOLUTIONS,C-E63100-1215,Cemetery & Crem-Cremator servicing & rep,13-May-11,26.00
http://statistics.data.gov.uk/id/local-authority-district/23UB,Cheltenham Borough Council,448270,014555,CORY ENVIRONMENTAL LTD,C-C23100-3581,Refuse Collctn-Tipping charges,04-May-11,"6,823.62"
http://statistics.data.gov.uk/id/local-authority-district/23UB,Cheltenham Borough Council,448777,014623,CORY ENVIRONMENTAL LTD,C-C23100-3581,Refuse Collctn-Tipping charges,13-May-11,"5,649.61"
http://statistics.data.gov.uk/id/local-authority-district/23UB,Cheltenham Borough Council,448778,014685,CORY ENVIRONMENTAL LTD,C-C23100-3581,Refuse Collctn-Tipping charges,16-May-11,"5,112.71"
http://statistics.data.gov.uk/id/local-authority-district/23UB,Cheltenham Borough Council,448778,014685,CORY ENVIRONMENTAL LTD,C-C23100-3581,Refuse Collctn-Tipping charges,16-May-11,0.71
http://statistics.data.gov.uk/id/local-authority-district/23UB,Cheltenham Borough Council,449788,014739,CORY ENVIRONMENTAL LTD,C-C23100-3581,Refuse Collctn-Tipping charges,25-May-11,"3,962.91"
http://statistics.data.gov.uk/id/local-authority-district/23UB,Cheltenham Borough Council,449614,CSMS/110210,CORINIUM SAFETY MANAGEMENT SERVICES,C-D13100-1115,Muni Off Blgs-Fire prevention,20-May-11,700.00
http://statistics.data.gov.uk/id/local-authority-district/23UB,Cheltenham Borough Council,449810,0580,CORE BUSINESS SYSTEMS LTD/TA CASCADE3D,C-L11500-3623,Rec Facilities-Cmpter-sftwre lic purch,25-May-11,"1,990.00"
http://statistics.data.gov.uk/id/local-authority-district/23UB,Cheltenham Borough Council,449730,20059,COTSWOLD DRAIN SERVICES LTD,C-D21250-3972,Civil Emergency-EU Restoration Fund,25-May-11,"6,035.00"
http://statistics.data.gov.uk/id/local-authority-district/23UB,Cheltenham Borough Council,449730,20059,COTSWOLD DRAIN SERVICES LTD,C-D21250-3974,Civil Emergency-Multi-agency funding,25-May-11,"6,035.00"
http://statistics.data.gov.uk/id/local-authority-district/23UB,Cheltenham Borough Council,448252,937,COUNTY COMMUNITY PROJECTS,C-H22300-3877,Housing Grants-Grants - One-Stop-Shop,04-May-11,"4,878.18"
http://statistics.data.gov.uk/id/local-authority-district/23UB,Cheltenham Borough Council,448253,938,COUNTY COMMUNITY PROJECTS,C-H22300-3877,Housing Grants-Grants - One-Stop-Shop,04-May-11,"1,675.69"
http://statistics.data.gov.uk/id/local-authority-district/23UB,Cheltenham Borough Council,450308,963,COUNTY COMMUNITY PROJECTS,C-D21800-3501,Chelt.Strat P/S-Hire of outside services,27-May-11,250.00
http://statistics.data.gov.uk/id/local-authority-district/23UB,Cheltenham Borough Council,450306,964,COUNTY COMMUNITY PROJECTS,C-D21800-3501,Chelt.Strat P/S-Hire of outside services,27-May-11,750.00
http://statistics.data.gov.uk/id/local-authority-district/23UB,Cheltenham Borough Council,450309,959,COUNTY COMMUNITY PROJECTS,C-D38850-3801,Youth Affairs-Grants,27-May-11,352.00
http://statistics.data.gov.uk/id/local-authority-district/23UB,Cheltenham Borough Council,448450,SETTLEMENT,MRS R CREED T/A HOWLERS COMEDY CLUB,C-N13125-9205,ASH Ledger-Town Hall Invoices Paid,09-May-11,-377.67
http://statistics.data.gov.uk/id/local-authority-district/23UB,Cheltenham Borough Council,448450,SETTLEMENT,MRS R CREED T/A HOWLERS COMEDY CLUB,C-Z12210-9138,Box Off A/C-TH Hirers Tkt Pd out,09-May-11,"1,819.00"
http://statistics.data.gov.uk/id/local-authority-district/23UB,Cheltenham Borough Council,450296,793136,CRIMINAL RECORDS BUREAU,C-A21500-3501,Licensing-Hire of outside services,27-May-11,380.00
http://statistics.data.gov.uk/id/local-authority-district/23UB,Cheltenham Borough Council,450296,793136,CRIMINAL RECORDS BUREAU,C-C22100-3501,Green Env Div-Hire of outside services,27-May-11,36.00
http://statistics.data.gov.uk/id/local-authority-district/23UB,Cheltenham Borough Council,450296,793136,CRIMINAL RECORDS BUREAU,C-L11500-3501,Rec Facilities-Hire of outside services,27-May-11,396.00
http://statistics.data.gov.uk/id/local-authority-district/23UB,Cheltenham Borough Council,450296,793136,CRIMINAL RECORDS BUREAU,C-L16100-3501,Holiday Rec-Hire of outside services,27-May-11,124.00
http://statistics.data.gov.uk/id/local-authority-district/23UB,Cheltenham Borough Council,450296,793136,CRIMINAL RECORDS BUREAU,C-L41100-3501,AG & M-Hire of outside services,27-May-11,44.00
http://statistics.data.gov.uk/id/local-authority-district/23UB,Cheltenham Borough Council,449029,w108258 c098114,CYCLESCHEME LIMITED,C-N16110-9101,Cycle loans/pur-Payments,14-May-11,551.44
http://statistics.data.gov.uk/id/local-authority-district/23UB,Cheltenham Borough Council,449029,w108258 c098114,CYCLESCHEME LIMITED,C-N16110-9101,Cycle loans/pur-Payments,14-May-11,29.99
http://statistics.data.gov.uk/id/local-authority-district/23UB,Cheltenham Borough Council,449749,110493,DEEPCLEAN HYGIENE SOLUTIONS LTD,C-L21100-3501,Town Hall-Hire of outside services,25-May-11,697.50
http://statistics.data.gov.uk/id/local-authority-district/23UB,Cheltenham Borough Council,448583,39152,DELAWARE COMMUNICATIONS PLC,C-E61500-3103,CCTV/TC Safety-Equipment repairs & maint,11-May-11,"1,419.17"
http://statistics.data.gov.uk/id/local-authority-district/23UB,Cheltenham Borough Council,450261,136988,DELAWARE COMMUNICATIONS PLC,C-EC0006-C101,CCTV/TC inits-Project Est for this Year,27-May-11,45.00
http://statistics.data.gov.uk/id/local-authority-district/23UB,Cheltenham Borough Council,448328,DE10550064,DENNIS EAGLE,C-C24100-3582,Fleet Maint-DSO Invoices,11-May-11,297.59
http://statistics.data.gov.uk/id/local-authority-district/23UB,Cheltenham Borough Council,448561,DE10550671,DENNIS EAGLE,C-C24100-3582,Fleet Maint-DSO Invoices,11-May-11,35.22
http://statistics.data.gov.uk/id/local-authority-district/23UB,Cheltenham Borough Council,448562,DE10551041,DENNIS EAGLE,C-C24100-3582,Fleet Maint-DSO Invoices,11-May-11,491.27
http://statistics.data.gov.uk/id/local-authority-district/23UB,Cheltenham Borough Council,450066,DE10553904,DENNIS EAGLE,C-C24100-3582,Fleet Maint-DSO Invoices,25-May-11,78.59
http://statistics.data.gov.uk/id/local-authority-district/23UB,Cheltenham Borough Council,450065,DE10552677,DENNIS EAGLE,C-C24100-3582,Fleet Maint-DSO Invoices,25-May-11,190.63
http://statistics.data.gov.uk/id/local-authority-district/23UB,Cheltenham Borough Council,450064,DE10553260,DENNIS EAGLE,C-C24100-3582,Fleet Maint-DSO Invoices,25-May-11,540.97
http://statistics.data.gov.uk/id/local-authority-district/23UB,Cheltenham Borough Council,450063,DE10553581,DENNIS EAGLE,C-C24100-3582,Fleet Maint-DSO Invoices,25-May-11,738.06
http://statistics.data.gov.uk/id/local-authority-district/23UB,Cheltenham Borough Council,448702,203630,DOMESTIC AND GENERAL INSULATION LTD,C-HC4076-C302,Loft/Cavity Ins-Building Contractor,11-May-11,199.00
http://statistics.data.gov.uk/id/local-authority-district/23UB,Cheltenham Borough Council,448705,202642,DOMESTIC AND GENERAL INSULATION LTD,C-HC4076-C302,Loft/Cavity Ins-Building Contractor,11-May-11,245.00
http://statistics.data.gov.uk/id/local-authority-district/23UB,Cheltenham Borough Council,448707,202350,DOMESTIC AND GENERAL INSULATION LTD,C-HC4076-C302,Loft/Cavity Ins-Building Contractor,11-May-11,199.00
http://statistics.data.gov.uk/id/local-authority-district/23UB,Cheltenham Borough Council,448708,202518,DOMESTIC AND GENERAL INSULATION LTD,C-HC4076-C302,Loft/Cavity Ins-Building Contractor,11-May-11,199.00
http://statistics.data.gov.uk/id/local-authority-district/23UB,Cheltenham Borough Council,448706,202354,DOMESTIC AND GENERAL INSULATION LTD,C-HC4076-C302,Loft/Cavity Ins-Building Contractor,11-May-11,245.00
http://statistics.data.gov.uk/id/local-authority-district/23UB,Cheltenham Borough Council,448703,202633,DOMESTIC AND GENERAL INSULATION LTD,C-HC4076-C302,Loft/Cavity Ins-Building Contractor,11-May-11,199.00
http://statistics.data.gov.uk/id/local-authority-district/23UB,Cheltenham Borough Council,448704,203629,DOMESTIC AND GENERAL INSULATION LTD,C-HC4076-C302,Loft/Cavity Ins-Building Contractor,11-May-11,245.00
http://statistics.data.gov.uk/id/local-authority-district/23UB,Cheltenham Borough Council,450239,204781,DOMESTIC AND GENERAL INSULATION LTD,C-HC4476-C302,Door Entry 136-Building Contractor,27-May-11,538.28
http://statistics.data.gov.uk/id/local-authority-district/23UB,Cheltenham Borough Council,450240,204782,DOMESTIC AND GENERAL INSULATION LTD,C-HC4476-C302,Door Entry 136-Building Contractor,27-May-11,199.00
http://statistics.data.gov.uk/id/local-authority-district/23UB,Cheltenham Borough Council,450194,M065,DOWNING BENTLEY,C-D30200-3501,Misc Props & Ld-Hire of outside services,27-May-11,942.50
http://statistics.data.gov.uk/id/local-authority-district/23UB,Cheltenham Borough Council,448260,2011000000168/97,C B RICHARD ELLIS,C-D13550-1501,Area Off -E.Hse-Rents,04-May-11,"17,170.50"
http://statistics.data.gov.uk/id/local-authority-district/23UB,Cheltenham Borough Council,449350,301267/4/2011,ENER-G,C-L11500-1402,Rec Facilities-Electricity,18-May-11,"2,637.67"
http://statistics.data.gov.uk/id/local-authority-district/23UB,Cheltenham Borough Council,448773,B01111734,ENVIRONMENT AGENCY,C-C23120-3553,Recycling Centr-Licence,13-May-11,"2,641.00"
http://statistics.data.gov.uk/id/local-authority-district/23UB,Cheltenham Borough Council,450243,65102,ENVIROVENT LIMITED,C-H4204G-1104,Gen Wks 2204-Council House repairs,27-May-11,631.09
http://statistics.data.gov.uk/id/local-authority-district/23UB,Cheltenham Borough Council,450236,1604,ERADICURE LIMITED,C-H4213G-1104,Gen Wks 2213-Council House repairs,27-May-11,50.00
http://statistics.data.gov.uk/id/local-authority-district/23UB,Cheltenham Borough Council,450235,1598,ERADICURE LIMITED,C-H4213G-1104,Gen Wks 2213-Council House repairs,27-May-11,"2,010.00"
http://statistics.data.gov.uk/id/local-authority-district/23UB,Cheltenham Borough Council,450237,1608,ERADICURE LIMITED,C-H4214G-1104,Gen Wks 2214-Council House repairs,27-May-11,300.00
http://statistics.data.gov.uk/id/local-authority-district/23UB,Cheltenham Borough Council,448629,1509,ETM LIMITED,C-1T18B1-3568,Tony Christie-Artist Fees             ,11-May-11,"6,500.00"
http://statistics.data.gov.uk/id/local-authority-district/23UB,Cheltenham Borough Council,449735,54883,EUROLINK SECURITY INSTALLATIONS LIMITED,C-E21100-1114,Car Prks-Off St-Security systems,25-May-11,210.00
http://statistics.data.gov.uk/id/local-authority-district/23UB,Cheltenham Borough Council,449777,54935,EUROLINK SECURITY INSTALLATIONS LIMITED,C-E21100-1114,Car Prks-Off St-Security systems,25-May-11,120.00
http://statistics.data.gov.uk/id/local-authority-district/23UB,Cheltenham Borough Council,449736,54872,EUROLINK SECURITY INSTALLATIONS LIMITED,C-E21100-1114,Car Prks-Off St-Security systems,25-May-11,210.00
http://statistics.data.gov.uk/id/local-authority-district/23UB,Cheltenham Borough Council,449535,3360/2/11,3D EYE LTD,C-L41100-3256,AG & M-Fine Form Horse Parade exp    ,20-May-11,"3,360.00"
http://statistics.data.gov.uk/id/local-authority-district/23UB,Cheltenham Borough Council,449540,3737/4/11,3D EYE LTD,C-L41100-3256,AG & M-Fine Form Horse Parade exp    ,20-May-11,"12,000.00"
http://statistics.data.gov.uk/id/local-authority-district/23UB,Cheltenham Borough Council,449547,3738/5/11,3D EYE LTD,C-L41100-3256,AG & M-Fine Form Horse Parade exp    ,20-May-11,"12,000.00"
http://statistics.data.gov.uk/id/local-authority-district/23UB,Cheltenham Borough Council,449541,3736/4/11,3D EYE LTD,C-L41100-3256,AG & M-Fine Form Horse Parade exp    ,20-May-11,"2,900.00"
http://statistics.data.gov.uk/id/local-authority-district/23UB,Cheltenham Borough Council,448757,S/119865,FLEET LINE MARKERS LTD,C-C22120-3121,Spts/Open Space-Materials-Contract,13-May-11,877.50
http://statistics.data.gov.uk/id/local-authority-district/23UB,Cheltenham Borough Council,448757,S/119865,FLEET LINE MARKERS LTD,C-C22120-3121,Spts/Open Space-Materials-Contract,13-May-11,877.50
http://statistics.data.gov.uk/id/local-authority-district/23UB,Cheltenham Borough Council,449369,1046 CBC 2011/12,FOREST OF DEAN DISTRICT COUNCIL,C-H22400-3960,Homelessness-Choice Based Lettings,18-May-11,"9,000.00"
http://statistics.data.gov.uk/id/local-authority-district/23UB,Cheltenham Borough Council,450180,M383127,FREIGHT TRANSPORT ASSOCIATION,C-C24150-3890,Fleet Management-Subscriptions - general,27-May-11,832.25
http://statistics.data.gov.uk/id/local-authority-district/23UB,Cheltenham Borough Council,449876,DONATION BOXE,FRIENDS OF THE CAG AND MUSEUMS,C-L41100-8227,AG & M-Friends of AG&M,25-May-11,336.00
http://statistics.data.gov.uk/id/local-authority-district/23UB,Cheltenham Borough Council,449876,DONATION BOXE,FRIENDS OF THE CAG AND MUSEUMS,C-L41100-8227,AG & M-Friends of AG&M,25-May-11,573.00
http://statistics.data.gov.uk/id/local-authority-district/23UB,Cheltenham Borough Council,448455,COMMUNITY PRI,FRIENDS OF HATHERLEY PARK,C-D21970-3677,Parish Pride-Parish Council - Community,09-May-11,"1,150.00"
http://statistics.data.gov.uk/id/local-authority-district/23UB,Cheltenham Borough Council,449368,SIN130788,FRONTIER SOFTWARE PLC,C-D12300-3623,Personnel and P-Cmpter-sftwre lic purch,18-May-11,"10,066.59"
http://statistics.data.gov.uk/id/local-authority-district/23UB,Cheltenham Borough Council,450279,5183,FUTRA LTD,C-C24150-3170,Fleet Managemnt-Fuel system maintenance,27-May-11,904.00
http://statistics.data.gov.uk/id/local-authority-district/23UB,Cheltenham Borough Council,448700,94,GASKINS,C-H33700-1305,Estate Services-Tree surgery,11-May-11,695.00
http://statistics.data.gov.uk/id/local-authority-district/23UB,Cheltenham Borough Council,450305,CIGEAVCA,GAVCA,C-D39150-3801,SLA-GCVS (Cheltenham)-Grants,27-May-11,"17,000.00"
http://statistics.data.gov.uk/id/local-authority-district/23UB,Cheltenham Borough Council,447425,541703,GLOBAL RADIO SERVICES LTD,C-L11500-3510,Rec Facilities-Promotion & Marketing,20-May-11,300.00
http://statistics.data.gov.uk/id/local-authority-district/23UB,Cheltenham Borough Council,447425,541703,GLOBAL RADIO SERVICES LTD,C-L11500-3510,Rec Facilities-Promotion & Marketing,20-May-11,300.00
http://statistics.data.gov.uk/id/local-authority-district/23UB,Cheltenham Borough Council,447426,541702,GLOBAL RADIO SERVICES LTD,C-L11500-3510,Rec Facilities-Promotion & Marketing,20-May-11,300.00
http://statistics.data.gov.uk/id/local-authority-district/23UB,Cheltenham Borough Council,447426,541702,GLOBAL RADIO SERVICES LTD,C-L11500-3510,Rec Facilities-Promotion & Marketing,20-May-11,300.00
http://statistics.data.gov.uk/id/local-authority-district/23UB,Cheltenham Borough Council,448259,13785,GEMINI CONSULTANTS LTD,C-D11300-3623,Accountancy-Cmpter-sftwre lic purch,04-May-11,60.25
http://statistics.data.gov.uk/id/local-authority-district/23UB,Cheltenham Borough Council,448258,13784,GEMINI CONSULTANTS LTD,C-H22280-3503,Housing Advance-Fees,04-May-11,652.07
http://statistics.data.gov.uk/id/local-authority-district/23UB,Cheltenham Borough Council,448258,13784,GEMINI CONSULTANTS LTD,C-H35100-3501,Hsg.Direct.Cost-Hire of outside services,04-May-11,"6,562.22"
http://statistics.data.gov.uk/id/local-authority-district/23UB,Cheltenham Borough Council,448818,RND112/03/11,GILLMANS SERVICE,C-H33400-3102,Sheltered.Hsg-Equipment rental,13-May-11,72.30
http://statistics.data.gov.uk/id/local-authority-district/23UB,Cheltenham Borough Council,448835,RND1181/03/11,GILLMANS SERVICE,C-H33400-3102,Sheltered.Hsg-Equipment rental,13-May-11,48.15
http://statistics.data.gov.uk/id/local-authority-district/23UB,Cheltenham Borough Council,448834,RND1180/03/11,GILLMANS SERVICE,C-H33400-3102,Sheltered.Hsg-Equipment rental,13-May-11,50.55
http://statistics.data.gov.uk/id/local-authority-district/23UB,Cheltenham Borough Council,448833,RND1179/03/11,GILLMANS SERVICE,C-H33400-3102,Sheltered.Hsg-Equipment rental,13-May-11,60.09
http://statistics.data.gov.uk/id/local-authority-district/23UB,Cheltenham Borough Council,448832,RND1145/03/11,GILLMANS SERVICE,C-H33400-3102,Sheltered.Hsg-Equipment rental,13-May-11,46.60
http://statistics.data.gov.uk/id/local-authority-district/23UB,Cheltenham Borough Council,448831,RND1144/03/11,GILLMANS SERVICE,C-H33400-3102,Sheltered.Hsg-Equipment rental,13-May-11,75.00
http://statistics.data.gov.uk/id/local-authority-district/23UB,Cheltenham Borough Council,448830,RND1143/03/11,GILLMANS SERVICE,C-H33400-3102,Sheltered.Hsg-Equipment rental,13-May-11,46.60
http://statistics.data.gov.uk/id/local-authority-district/23UB,Cheltenham Borough Council,448829,RND1131/03/11,GILLMANS SERVICE,C-H33400-3102,Sheltered.Hsg-Equipment rental,13-May-11,43.00
http://statistics.data.gov.uk/id/local-authority-district/23UB,Cheltenham Borough Council,448828,RND1126/03/11,GILLMANS SERVICE,C-H33400-3102,Sheltered.Hsg-Equipment rental,13-May-11,42.00
http://statistics.data.gov.uk/id/local-authority-district/23UB,Cheltenham Borough Council,448827,RND1107/03/11,GILLMANS SERVICE,C-H33400-3102,Sheltered.Hsg-Equipment rental,13-May-11,33.95
http://statistics.data.gov.uk/id/local-authority-district/23UB,Cheltenham Borough Council,448826,RND192/03/11,GILLMANS SERVICE,C-H33400-3102,Sheltered.Hsg-Equipment rental,13-May-11,49.50
http://statistics.data.gov.uk/id/local-authority-district/23UB,Cheltenham Borough Council,448825,RND190/03/11,GILLMANS SERVICE,C-H33400-3102,Sheltered.Hsg-Equipment rental,13-May-11,35.00
http://statistics.data.gov.uk/id/local-authority-district/23UB,Cheltenham Borough Council,448820,RND117/03/11,GILLMANS SERVICE,C-H33400-3102,Sheltered.Hsg-Equipment rental,13-May-11,40.13
http://statistics.data.gov.uk/id/local-authority-district/23UB,Cheltenham Borough Council,448821,RND124/03/11,GILLMANS SERVICE,C-H33400-3102,Sheltered.Hsg-Equipment rental,13-May-11,31.45
http://statistics.data.gov.uk/id/local-authority-district/23UB,Cheltenham Borough Council,448822,RND125/03/11,GILLMANS SERVICE,C-H33400-3102,Sheltered.Hsg-Equipment rental,13-May-11,34.15
http://statistics.data.gov.uk/id/local-authority-district/23UB,Cheltenham Borough Council,448824,RND187/03/11,GILLMANS SERVICE,C-H33400-3102,Sheltered.Hsg-Equipment rental,13-May-11,141.90
http://statistics.data.gov.uk/id/local-authority-district/23UB,Cheltenham Borough Council,448823,RND182/03/11,GILLMANS SERVICE,C-H33400-3102,Sheltered.Hsg-Equipment rental,13-May-11,73.65
http://statistics.data.gov.uk/id/local-authority-district/23UB,Cheltenham Borough Council,448819,RND115/03/11,GILLMANS SERVICE,C-H33400-3102,Sheltered.Hsg-Equipment rental,13-May-11,40.13
http://statistics.data.gov.uk/id/local-authority-district/23UB,Cheltenham Borough Council,449781,20334,LLOYDS TSB COMMERCIAL LTD,C-E21100-3501,Car Prks-Off St-Hire of outside services,25-May-11,"2,436.00"
http://statistics.data.gov.uk/id/local-authority-district/23UB,Cheltenham Borough Council,449781,20334,LLOYDS TSB COMMERCIAL LTD,C-E21100-3501,Car Prks-Off St-Hire of outside services,25-May-11,87.00
http://statistics.data.gov.uk/id/local-authority-district/23UB,Cheltenham Borough Council,449782,20335,LLOYDS TSB COMMERCIAL LTD,C-E21100-3501,Car Prks-Off St-Hire of outside services,25-May-11,58.00
http://statistics.data.gov.uk/id/local-authority-district/23UB,Cheltenham Borough Council,449783,20139,LLOYDS TSB COMMERCIAL LTD,C-E21100-3501,Car Prks-Off St-Hire of outside services,25-May-11,14.50
http://statistics.data.gov.uk/id/local-authority-district/23UB,Cheltenham Borough Council,449782,20335,LLOYDS TSB COMMERCIAL LTD,C-E21100-3501,Car Prks-Off St-Hire of outside services,25-May-11,137.75
http://statistics.data.gov.uk/id/local-authority-district/23UB,Cheltenham Borough Council,449781,20334,LLOYDS TSB COMMERCIAL LTD,C-E21100-3501,Car Prks-Off St-Hire of outside services,25-May-11,391.50
http://statistics.data.gov.uk/id/local-authority-district/23UB,Cheltenham Borough Council,449781,20334,LLOYDS TSB COMMERCIAL LTD,C-E21100-3501,Car Prks-Off St-Hire of outside services,25-May-11,87.00
http://statistics.data.gov.uk/id/local-authority-district/23UB,Cheltenham Borough Council,449781,20334,LLOYDS TSB COMMERCIAL LTD,C-E21100-3501,Car Prks-Off St-Hire of outside services,25-May-11,391.50
http://statistics.data.gov.uk/id/local-authority-district/23UB,Cheltenham Borough Council,449781,20334,LLOYDS TSB COMMERCIAL LTD,C-E21100-3501,Car Prks-Off St-Hire of outside services,25-May-11,87.00
http://statistics.data.gov.uk/id/local-authority-district/23UB,Cheltenham Borough Council,449781,20334,LLOYDS TSB COMMERCIAL LTD,C-E21100-3501,Car Prks-Off St-Hire of outside services,25-May-11,391.50
http://statistics.data.gov.uk/id/local-authority-district/23UB,Cheltenham Borough Council,449747,23012,GLIDE MEDIA MARKETING,C-L21100-3920,Town Hall-Advertising,25-May-11,913.00
http://statistics.data.gov.uk/id/local-authority-district/23UB,Cheltenham Borough Council,448695,10885075,GLOUCESTER CITY COUNCIL,C-D12310-0205,Corporate Trg-Training fees/exp (Corp),11-May-11,"9,750.00"
http://statistics.data.gov.uk/id/local-authority-district/23UB,Cheltenham Borough Council,448696,20007872,GLOUCESTER CITY COUNCIL,C-D12310-0205,Corporate Trg-Training fees/exp (Corp),11-May-11,"-8,000.00"
http://statistics.data.gov.uk/id/local-authority-district/23UB,Cheltenham Borough Council,448695,10885075,GLOUCESTER CITY COUNCIL,C-D12310-0205,Corporate Trg-Training fees/exp (Corp),11-May-11,"3,500.00"
http://statistics.data.gov.uk/id/local-authority-district/23UB,Cheltenham Borough Council,448695,10885075,GLOUCESTER CITY COUNCIL,C-D12310-0205,Corporate Trg-Training fees/exp (Corp),11-May-11,"1,750.00"
http://statistics.data.gov.uk/id/local-authority-district/23UB,Cheltenham Borough Council,448651,10896523,GLOUCESTER CITY COUNCIL,C-E71150-3401,Public Protn Div-Printing - general,11-May-11,145.00
http://statistics.data.gov.uk/id/local-authority-district/23UB,Cheltenham Borough Council,448465,1800180959,GLOUCESTERSHIRE COUNTY COUNCIL,C-D32400-4126,Elderly Trspt-Paymts to Bus Cos-Full Far,09-May-11,"438,593.00"
http://statistics.data.gov.uk/id/local-authority-district/23UB,Cheltenham Borough Council,448798,1800180867,GLOUCESTERSHIRE COUNTY COUNCIL,C-E72500-3501,Built Env Div-Hire of outside services,13-May-11,315.00
http://statistics.data.gov.uk/id/local-authority-district/23UB,Cheltenham Borough Council,,,,,,,
http://statistics.data.gov.uk/id/local-authority-district/23UB,Cheltenham Borough Council,450073,1800183488,GLOUCESTERSHIRE COUNTY COUNCIL,C-D11700-3621,Pol & Info Mgmt-Maiden Project SLA,25-May-11,"10,000.00"
http://statistics.data.gov.uk/id/local-authority-district/23UB,Cheltenham Borough Council,448365,GCS/1011/343,THE GLOUCESTERSHIRE COUNSELLING SERVICE,C-D12300-3506,Personnel and P-Care counselling,11-May-11,140.00
http://statistics.data.gov.uk/id/local-authority-district/23UB,Cheltenham Borough Council,448364,NIGHTSTOP07041,GLOUCESTERSHIRE NIGHTSTOP,C-H22400-3240,Homelessness-Gloucestershire Nightstop,11-May-11,"2,000.00"
http://statistics.data.gov.uk/id/local-authority-district/23UB,Cheltenham Borough Council,449550,3774,DOUG GOBEY TRANSPORT LIMITED,C-L41100-3130,AG & M-Conservation-collections,20-May-11,850.00
http://statistics.data.gov.uk/id/local-authority-district/23UB,Cheltenham Borough Council,449815,45609,GOOCH GROUP LTD,C-C23140-3501,Public Convnces-Hire of outside services,25-May-11,45.00
http://statistics.data.gov.uk/id/local-authority-district/23UB,Cheltenham Borough Council,449738,45879,GOOCH GROUP LTD,C-E21100-1701,Car Prks-Off St-Cleaning,25-May-11,128.00
http://statistics.data.gov.uk/id/local-authority-district/23UB,Cheltenham Borough Council,449738,45879,GOOCH GROUP LTD,C-E21100-1701,Car Prks-Off St-Cleaning,25-May-11,256.00
http://statistics.data.gov.uk/id/local-authority-district/23UB,Cheltenham Borough Council,449738,45879,GOOCH GROUP LTD,C-E21100-1701,Car Prks-Off St-Cleaning,25-May-11,90.00
http://statistics.data.gov.uk/id/local-authority-district/23UB,Cheltenham Borough Council,449738,45879,GOOCH GROUP LTD,C-E21100-1701,Car Prks-Off St-Cleaning,25-May-11,175.00
http://statistics.data.gov.uk/id/local-authority-district/23UB,Cheltenham Borough Council,449738,45879,GOOCH GROUP LTD,C-E21100-1701,Car Prks-Off St-Cleaning,25-May-11,256.00
http://statistics.data.gov.uk/id/local-authority-district/23UB,Cheltenham Borough Council,448850,5971,G P AERIALS LTD,C-H46550-1104,TV Aerials-Council House repairs,25-May-11,49.00
http://statistics.data.gov.uk/id/local-authority-district/23UB,Cheltenham Borough Council,450026,6140,G P AERIALS LTD,C-H46550-1104,TV Aerials-Council House repairs,25-May-11,49.00
http://statistics.data.gov.uk/id/local-authority-district/23UB,Cheltenham Borough Council,450025,6116,G P AERIALS LTD,C-H46550-1104,TV Aerials-Council House repairs,25-May-11,49.00
http://statistics.data.gov.uk/id/local-authority-district/23UB,Cheltenham Borough Council,450024,6125,G P AERIALS LTD,C-H46550-1104,TV Aerials-Council House repairs,25-May-11,49.00
http://statistics.data.gov.uk/id/local-authority-district/23UB,Cheltenham Borough Council,450023,6128,G P AERIALS LTD,C-H46550-1104,TV Aerials-Council House repairs,25-May-11,234.00
http://statistics.data.gov.uk/id/local-authority-district/23UB,Cheltenham Borough Council,450022,6129,G P AERIALS LTD,C-H46550-1104,TV Aerials-Council House repairs,25-May-11,61.50
http://statistics.data.gov.uk/id/local-authority-district/23UB,Cheltenham Borough Council,450020,6096,G P AERIALS LTD,C-H46550-1104,TV Aerials-Council House repairs,25-May-11,68.50
http://statistics.data.gov.uk/id/local-authority-district/23UB,Cheltenham Borough Council,450017,6090,G P AERIALS LTD,C-H46550-1104,TV Aerials-Council House repairs,25-May-11,333.00
http://statistics.data.gov.uk/id/local-authority-district/23UB,Cheltenham Borough Council,448853,6067,G P AERIALS LTD,C-H46550-1104,TV Aerials-Council House repairs,25-May-11,104.00
http://statistics.data.gov.uk/id/local-authority-district/23UB,Cheltenham Borough Council,448852,5998,G P AERIALS LTD,C-H46550-1104,TV Aerials-Council House repairs,25-May-11,49.00
http://statistics.data.gov.uk/id/local-authority-district/23UB,Cheltenham Borough Council,450029,6048,G P AERIALS LTD,C-H46550-1104,TV Aerials-Council House repairs,25-May-11,61.50
http://statistics.data.gov.uk/id/local-authority-district/23UB,Cheltenham Borough Council,450028,6049,G P AERIALS LTD,C-H46550-1104,TV Aerials-Council House repairs,25-May-11,65.00
http://statistics.data.gov.uk/id/local-authority-district/23UB,Cheltenham Borough Council,450027,6137,G P AERIALS LTD,C-H46550-1104,TV Aerials-Council House repairs,25-May-11,104.00
http://statistics.data.gov.uk/id/local-authority-district/23UB,Cheltenham Borough Council,448851,6007,G P AERIALS LTD,C-H46550-1104,TV Aerials-Council House repairs,25-May-11,49.00
http://statistics.data.gov.uk/id/local-authority-district/23UB,Cheltenham Borough Council,450018,6127,G P AERIALS LTD,C-H46550-1118,TV Aerials-Rechargeable Repairs,25-May-11,52.00
http://statistics.data.gov.uk/id/local-authority-district/23UB,Cheltenham Borough Council,450019,6095,G P AERIALS LTD,C-H46550-1118,TV Aerials-Rechargeable Repairs,25-May-11,49.00
http://statistics.data.gov.uk/id/local-authority-district/23UB,Cheltenham Borough Council,450021,6138,G P AERIALS LTD,C-H46550-1118,TV Aerials-Rechargeable Repairs,25-May-11,49.00
http://statistics.data.gov.uk/id/local-authority-district/23UB,Cheltenham Borough Council,448715,18/791321,GREENHAM TOOL CO LTD,C-D13100-1702,Muni Off Blgs-Cleaning materials,11-May-11,18.32
http://statistics.data.gov.uk/id/local-authority-district/23UB,Cheltenham Borough Council,448377,18/788627,GREENHAM TOOL CO LTD,C-N42250-3112,DSO Stores - Stock purchases,11-May-11,858.90
http://statistics.data.gov.uk/id/local-authority-district/23UB,Cheltenham Borough Council,449615,171,GREENWAY PARTNERSHIP LIMITED,C-C22120-1809,Sports & Open S-RM-sanitary works,20-May-11,791.88
http://statistics.data.gov.uk/id/local-authority-district/23UB,Cheltenham Borough Council,449560,809058,GREENWAY PARTNERSHIP LIMITED,C-L21100-3101,Town Hall-Equipment purchases,20-May-11,544.00
http://statistics.data.gov.uk/id/local-authority-district/23UB,Cheltenham Borough Council,449732,198,GREENWAY PARTNERSHIP LIMITED,C-C22120-1809,Sports & Open S-RM-sanitary works,27-May-11,22.50
http://statistics.data.gov.uk/id/local-authority-district/23UB,Cheltenham Borough Council,450327,191,GREENWAY PARTNERSHIP LIMITED,C-D21800-3185,Chelt.Strat P/S-Carbon reduction,27-May-11,"2,232.00"
http://statistics.data.gov.uk/id/local-authority-district/23UB,Cheltenham Borough Council,450326,192,GREENWAY PARTNERSHIP LIMITED,C-PM0060-R022,Depot-Electrical Works,27-May-11,"4,525.00"
http://statistics.data.gov.uk/id/local-authority-district/23UB,Cheltenham Borough Council,448460,7016957,GVA GRIMLEY LLP,C-B51160-3501,Civic Pride-Hire of outside services,09-May-11,590.00
http://statistics.data.gov.uk/id/local-authority-district/23UB,Cheltenham Borough Council,448461,7017012,GVA GRIMLEY LLP,C-B51160-3501,Civic Pride-Hire of outside services,09-May-11,"3,433.00"
http://statistics.data.gov.uk/id/local-authority-district/23UB,Cheltenham Borough Council,450072,7017497,GVA GRIMLEY LLP,C-B51160-350A,Civic Pride-Consultants Fees,25-May-11,"3,500.00"
http://statistics.data.gov.uk/id/local-authority-district/23UB,Cheltenham Borough Council,449817,102,STAN GYFORD,C-C23190-3501,Garden Collectn-Hire of outside services,25-May-11,"2,923.32"
http://statistics.data.gov.uk/id/local-authority-district/23UB,Cheltenham Borough Council,448766,G8201104148,HALCROW CONSULTING ENGINEERS,C-D21250-3973,Civil Emergency-EA FDGIA allocation,13-May-11,"8,762.11"
http://statistics.data.gov.uk/id/local-authority-district/23UB,Cheltenham Borough Council,448767,G8201104149,HALCROW CONSULTING ENGINEERS,C-D21250-3973,Civil Emergency-EA FDGIA allocation,13-May-11,"7,157.50"
http://statistics.data.gov.uk/id/local-authority-district/23UB,Cheltenham Borough Council,450379,G8201105514,HALCROW CONSULTING ENGINEERS,C-D21250-3973,Civil Emergency-EA FDGIA allocation,27-May-11,"2,825.00"
http://statistics.data.gov.uk/id/local-authority-district/23UB,Cheltenham Borough Council,450380,G8201105510,HALCROW CONSULTING ENGINEERS,C-D21250-3973,Civil Emergency-EA FDGIA allocation,27-May-11,"5,208.17"
http://statistics.data.gov.uk/id/local-authority-district/23UB,Cheltenham Borough Council,449578,5143,HALSALL  CONSTRUCTION LIMITED,C-HC4845-C302,Neighbrhd works-Building Contractor      ,20-May-11,"63,420.94"
http://statistics.data.gov.uk/id/local-authority-district/23UB,Cheltenham Borough Council,448451,Redacted,HANOVER HOUSING ASSOCIATION,C-HC7440-C801,DFG.96.Act-Grants,09-May-11,"1,676.25"
http://statistics.data.gov.uk/id/local-authority-district/23UB,Cheltenham Borough Council,448452,Redacted,HANOVER HOUSING ASSOCIATION,C-HC7440-C801,DFG.96.Act-Grants,09-May-11,"5,862.38"
http://statistics.data.gov.uk/id/local-authority-district/23UB,Cheltenham Borough Council,448453,Redacted,HANOVER HOUSING ASSOCIATION,C-HC7440-C801,DFG.96.Act-Grants,09-May-11,"6,235.88"
http://statistics.data.gov.uk/id/local-authority-district/23UB,Cheltenham Borough Council,449346,Redacted,HANOVER HOUSING ASSOCIATION,C-H22300-3871,Housing Grants-Grants - Care & Repair,18-May-11,"5,900.00"
http://statistics.data.gov.uk/id/local-authority-district/23UB,Cheltenham Borough Council,449860,Redacted,HANOVER HOUSING ASSOCIATION,C-HC4100-C801,Dis.Adapt.HRA-Grants,25-May-11,"1,856.25"
http://statistics.data.gov.uk/id/local-authority-district/23UB,Cheltenham Borough Council,449862,Redacted,HANOVER HOUSING ASSOCIATION,C-HC7440-C801,DFG.96.Act-Grants,25-May-11,"5,875.88"
http://statistics.data.gov.uk/id/local-authority-district/23UB,Cheltenham Borough Council,449032,Redacted,HARWARDS SALES AND LETTINGS,C-H22400-3828,Homelessness-Prevention Fund,16-May-11,595.00
http://statistics.data.gov.uk/id/local-authority-district/23UB,Cheltenham Borough Council,448710,HASKONING,HASKONING UK LIMITED,C-HC4053-C302,Internal Imp-Building Contractor,11-May-11,500.00
http://statistics.data.gov.uk/id/local-authority-district/23UB,Cheltenham Borough Council,449636,HWP 02-11,HESTERS WAY PARTNERSHIP LIMITED,C-D37100-3841,Hesters Way-Grants - Hesters Way R.A.,20-May-11,"20,100.00"
http://statistics.data.gov.uk/id/local-authority-district/23UB,Cheltenham Borough Council,450347,6710072,HEWLETT PACKARD LIMITED,C-D11820-3660,IT Infrastructu-Hardware PC & Servers,27-May-11,"2,690.00"
http://statistics.data.gov.uk/id/local-authority-district/23UB,Cheltenham Borough Council,448387,377886,JOHN HINDE UK LTD,C-N42100-3111,TIC Stock-Goods purch for resale,11-May-11,607.53
http://statistics.data.gov.uk/id/local-authority-district/23UB,Cheltenham Borough Council,448278,sinv051123,IHS (GLOBAL) LTD,C-B52300-3890,Bldg Control-Subscriptions - general,04-May-11,"3,755.00"
http://statistics.data.gov.uk/id/local-authority-district/23UB,Cheltenham Borough Council,448801,HCUK240341,HUMAN CONCEPTS UK LIMITED,C-GCERP-3623,Redacted,16-May-11,"6,203.76"
http://statistics.data.gov.uk/id/local-authority-district/23UB,Cheltenham Borough Council,448801,HCUK240341,HUMAN CONCEPTS UK LIMITED,C-GOERP-3501,Redacted,16-May-11,"1,240.80"
http://statistics.data.gov.uk/id/local-authority-district/23UB,Cheltenham Borough Council,449545,4847,ICON NET LIMITED,C-L41100-3401,AG & M-Printing - general,20-May-11,"1,400.00"
http://statistics.data.gov.uk/id/local-authority-district/23UB,Cheltenham Borough Council,449551,4857,ICON NET LIMITED,C-L41100-3920,AG & M-Advertising,20-May-11,"1,000.00"
http://statistics.data.gov.uk/id/local-authority-district/23UB,Cheltenham Borough Council,450355,4830,ICON NET LIMITED,C-L41100-3920,AG & M-Advertising,27-May-11,995.00
http://statistics.data.gov.uk/id/local-authority-district/23UB,Cheltenham Borough Council,448622,038315,IDOX SOFTWARE LIMITED,C-A21500-3623,Licensing-Cmpter-sftwre lic purch,13-May-11,270.74
http://statistics.data.gov.uk/id/local-authority-district/23UB,Cheltenham Borough Council,448622,038315,IDOX SOFTWARE LIMITED,C-A21500-3623,Licensing-Cmpter-sftwre lic purch,13-May-11,14.40
http://statistics.data.gov.uk/id/local-authority-district/23UB,Cheltenham Borough Council,448622,038315,IDOX SOFTWARE LIMITED,C-A21500-3623,Licensing-Cmpter-sftwre lic purch,13-May-11,114.22
http://statistics.data.gov.uk/id/local-authority-district/23UB,Cheltenham Borough Council,448622,038315,IDOX SOFTWARE LIMITED,C-A21500-3623,Licensing-Cmpter-sftwre lic purch,13-May-11,14.87
http://statistics.data.gov.uk/id/local-authority-district/23UB,Cheltenham Borough Council,448622,038315,IDOX SOFTWARE LIMITED,C-A21500-3623,Licensing-Cmpter-sftwre lic purch,13-May-11,"1,277.55"
http://statistics.data.gov.uk/id/local-authority-district/23UB,Cheltenham Borough Council,448622,038315,IDOX SOFTWARE LIMITED,C-A21500-3623,Licensing-Cmpter-sftwre lic purch,13-May-11,626.35
http://statistics.data.gov.uk/id/local-authority-district/23UB,Cheltenham Borough Council,448623,039379,IDOX SOFTWARE LIMITED,C-A21500-3623,Licensing-Cmpter-sftwre lic purch,13-May-11,-24.88
http://statistics.data.gov.uk/id/local-authority-district/23UB,Cheltenham Borough Council,448622,038315,IDOX SOFTWARE LIMITED,C-A21500-3623,Licensing-Cmpter-sftwre lic purch,13-May-11,24.89
http://statistics.data.gov.uk/id/local-authority-district/23UB,Cheltenham Borough Council,448622,038315,IDOX SOFTWARE LIMITED,C-A21500-3623,Licensing-Cmpter-sftwre lic purch,13-May-11,4.76
http://statistics.data.gov.uk/id/local-authority-district/23UB,Cheltenham Borough Council,448622,038315,IDOX SOFTWARE LIMITED,C-B51140-3623,Strategic Plng-Cmpter-sftwre lic purch,13-May-11,53.48
http://statistics.data.gov.uk/id/local-authority-district/23UB,Cheltenham Borough Council,448622,038315,IDOX SOFTWARE LIMITED,C-B51140-3623,Strategic Plng-Cmpter-sftwre lic purch,13-May-11,22.56
http://statistics.data.gov.uk/id/local-authority-district/23UB,Cheltenham Borough Council,448622,038315,IDOX SOFTWARE LIMITED,C-B51140-3623,Strategic Plng-Cmpter-sftwre lic purch,13-May-11,2.84
http://statistics.data.gov.uk/id/local-authority-district/23UB,Cheltenham Borough Council,448622,038315,IDOX SOFTWARE LIMITED,C-B52300-3623,Bldg Control-Cmpter-sftwre lic purch,13-May-11,334.24
http://statistics.data.gov.uk/id/local-authority-district/23UB,Cheltenham Borough Council,448622,038315,IDOX SOFTWARE LIMITED,C-B52300-3623,Bldg Control-Cmpter-sftwre lic purch,13-May-11,141.01
http://statistics.data.gov.uk/id/local-authority-district/23UB,Cheltenham Borough Council,448623,039379,IDOX SOFTWARE LIMITED,C-B52300-3623,Bldg Control-Cmpter-sftwre lic purch,13-May-11,-145.85
http://statistics.data.gov.uk/id/local-authority-district/23UB,Cheltenham Borough Council,448623,039379,IDOX SOFTWARE LIMITED,C-B52300-3623,Bldg Control-Cmpter-sftwre lic purch,13-May-11,-6.22
http://statistics.data.gov.uk/id/local-authority-district/23UB,Cheltenham Borough Council,448622,038315,IDOX SOFTWARE LIMITED,C-B52300-3623,Bldg Control-Cmpter-sftwre lic purch,13-May-11,145.85
http://statistics.data.gov.uk/id/local-authority-district/23UB,Cheltenham Borough Council,448622,038315,IDOX SOFTWARE LIMITED,C-B52300-3623,Bldg Control-Cmpter-sftwre lic purch,13-May-11,6.22
http://statistics.data.gov.uk/id/local-authority-district/23UB,Cheltenham Borough Council,448622,038315,IDOX SOFTWARE LIMITED,C-B52300-3623,Bldg Control-Cmpter-sftwre lic purch,13-May-11,3.04
http://statistics.data.gov.uk/id/local-authority-district/23UB,Cheltenham Borough Council,448622,038315,IDOX SOFTWARE LIMITED,C-B52300-3623,Bldg Control-Cmpter-sftwre lic purch,13-May-11,9.51
http://statistics.data.gov.uk/id/local-authority-district/23UB,Cheltenham Borough Council,448622,038315,IDOX SOFTWARE LIMITED,C-B52300-3623,Bldg Control-Cmpter-sftwre lic purch,13-May-11,"1,275.88"
http://statistics.data.gov.uk/id/local-authority-district/23UB,Cheltenham Borough Council,448622,038315,IDOX SOFTWARE LIMITED,C-B52300-3623,Bldg Control-Cmpter-sftwre lic purch,13-May-11,"4,933.80"
http://statistics.data.gov.uk/id/local-authority-district/23UB,Cheltenham Borough Council,448622,038315,IDOX SOFTWARE LIMITED,C-B52300-3623,Bldg Control-Cmpter-sftwre lic purch,13-May-11,17.78
http://statistics.data.gov.uk/id/local-authority-district/23UB,Cheltenham Borough Council,448622,038315,IDOX SOFTWARE LIMITED,C-D12500-3623,Property Servs-Cmpter-sftwre lic purch,13-May-11,83.56
http://statistics.data.gov.uk/id/local-authority-district/23UB,Cheltenham Borough Council,448622,038315,IDOX SOFTWARE LIMITED,C-D12500-3623,Property Servs-Cmpter-sftwre lic purch,13-May-11,35.25
http://statistics.data.gov.uk/id/local-authority-district/23UB,Cheltenham Borough Council,448622,038315,IDOX SOFTWARE LIMITED,C-D12500-3623,Property Servs-Cmpter-sftwre lic purch,13-May-11,"5,604.40"
http://statistics.data.gov.uk/id/local-authority-district/23UB,Cheltenham Borough Council,448623,039379,IDOX SOFTWARE LIMITED,C-D12500-3623,Property Servs-Cmpter-sftwre lic purch,13-May-11,-6.22
http://statistics.data.gov.uk/id/local-authority-district/23UB,Cheltenham Borough Council,448622,038315,IDOX SOFTWARE LIMITED,C-D12500-3623,Property Servs-Cmpter-sftwre lic purch,13-May-11,6.22
http://statistics.data.gov.uk/id/local-authority-district/23UB,Cheltenham Borough Council,448622,038315,IDOX SOFTWARE LIMITED,C-D12500-3623,Property Servs-Cmpter-sftwre lic purch,13-May-11,0.43
http://statistics.data.gov.uk/id/local-authority-district/23UB,Cheltenham Borough Council,448622,038315,IDOX SOFTWARE LIMITED,C-D12500-3623,Property Servs-Cmpter-sftwre lic purch,13-May-11,1.34
http://statistics.data.gov.uk/id/local-authority-district/23UB,Cheltenham Borough Council,448622,038315,IDOX SOFTWARE LIMITED,C-D12500-3623,Property Servs-Cmpter-sftwre lic purch,13-May-11,4.44
http://statistics.data.gov.uk/id/local-authority-district/23UB,Cheltenham Borough Council,448622,038315,IDOX SOFTWARE LIMITED,C-D21600-3623,Land Charges-Cmpter-sftwre lic purch,13-May-11,"9,131.01"
http://statistics.data.gov.uk/id/local-authority-district/23UB,Cheltenham Borough Council,448622,038315,IDOX SOFTWARE LIMITED,C-E71150-3623,Public Prot Div-Cmpter-sftwre lic purch,13-May-11,"2,387.49"
http://statistics.data.gov.uk/id/local-authority-district/23UB,Cheltenham Borough Council,448622,038315,IDOX SOFTWARE LIMITED,C-E71150-3623,Public Prot Div-Cmpter-sftwre lic purch,13-May-11,"1,768.15"
http://statistics.data.gov.uk/id/local-authority-district/23UB,Cheltenham Borough Council,448622,038315,IDOX SOFTWARE LIMITED,C-E71150-3623,Public Prot Div-Cmpter-sftwre lic purch,13-May-11,94.04
http://statistics.data.gov.uk/id/local-authority-district/23UB,Cheltenham Borough Council,448622,038315,IDOX SOFTWARE LIMITED,C-E71150-3623,Public Prot Div-Cmpter-sftwre lic purch,13-May-11,745.97
http://statistics.data.gov.uk/id/local-authority-district/23UB,Cheltenham Borough Council,448622,038315,IDOX SOFTWARE LIMITED,C-E72500-3623,Built Env Div-Cmpter-sftwre lic purch,13-May-11,"4,094.48"
http://statistics.data.gov.uk/id/local-authority-district/23UB,Cheltenham Borough Council,448622,038315,IDOX SOFTWARE LIMITED,C-E72500-3623,Built Env Div-Cmpter-sftwre lic purch,13-May-11,217.77
http://statistics.data.gov.uk/id/local-authority-district/23UB,Cheltenham Borough Council,448622,038315,IDOX SOFTWARE LIMITED,C-E72500-3623,Built Env Div-Cmpter-sftwre lic purch,13-May-11,"1,559.41"
http://statistics.data.gov.uk/id/local-authority-district/23UB,Cheltenham Borough Council,448622,038315,IDOX SOFTWARE LIMITED,C-E72500-3623,Built Env Div-Cmpter-sftwre lic purch,13-May-11,296.77
http://statistics.data.gov.uk/id/local-authority-district/23UB,Cheltenham Borough Council,448622,038315,IDOX SOFTWARE LIMITED,C-E72500-3623,Built Env Div-Cmpter-sftwre lic purch,13-May-11,"2,333.62"
http://statistics.data.gov.uk/id/local-authority-district/23UB,Cheltenham Borough Council,448623,039379,IDOX SOFTWARE LIMITED,C-E72500-3623,Built Env Div-Cmpter-sftwre lic purch,13-May-11,"-2,333.61"
http://statistics.data.gov.uk/id/local-authority-district/23UB,Cheltenham Borough Council,448623,039379,IDOX SOFTWARE LIMITED,C-E72500-3623,Built Env Div-Cmpter-sftwre lic purch,13-May-11,-223.99
http://statistics.data.gov.uk/id/local-authority-district/23UB,Cheltenham Borough Council,448622,038315,IDOX SOFTWARE LIMITED,C-E72500-3623,Built Env Div-Cmpter-sftwre lic purch,13-May-11,223.99
http://statistics.data.gov.uk/id/local-authority-district/23UB,Cheltenham Borough Council,448622,038315,IDOX SOFTWARE LIMITED,C-E72500-3623,Built Env Div-Cmpter-sftwre lic purch,13-May-11,927.70
http://statistics.data.gov.uk/id/local-authority-district/23UB,Cheltenham Borough Council,448622,038315,IDOX SOFTWARE LIMITED,C-E72500-3623,Built Env Div-Cmpter-sftwre lic purch,13-May-11,"19,534.87"
http://statistics.data.gov.uk/id/local-authority-district/23UB,Cheltenham Borough Council,448622,038315,IDOX SOFTWARE LIMITED,C-E72500-3623,Built Env Div-Cmpter-sftwre lic purch,13-May-11,"1,727.43"
http://statistics.data.gov.uk/id/local-authority-district/23UB,Cheltenham Borough Council,448622,038315,IDOX SOFTWARE LIMITED,C-H22125-3623,Neighd Regen Di-Cmpter-sftwre lic purch,13-May-11,481.31
http://statistics.data.gov.uk/id/local-authority-district/23UB,Cheltenham Borough Council,448622,038315,IDOX SOFTWARE LIMITED,C-H22125-3623,Neighd Regen Di-Cmpter-sftwre lic purch,13-May-11,25.60
http://statistics.data.gov.uk/id/local-authority-district/23UB,Cheltenham Borough Council,448622,038315,IDOX SOFTWARE LIMITED,C-H22125-3623,Neighd Regen Di-Cmpter-sftwre lic purch,13-May-11,203.06
http://statistics.data.gov.uk/id/local-authority-district/23UB,Cheltenham Borough Council,448622,038315,IDOX SOFTWARE LIMITED,C-H22600-3623,Community Servs-Cmpter-sftwre lic purch,13-May-11,13.37
http://statistics.data.gov.uk/id/local-authority-district/23UB,Cheltenham Borough Council,448622,038315,IDOX SOFTWARE LIMITED,C-H22600-3623,Community Servs-Cmpter-sftwre lic purch,13-May-11,5.64
http://statistics.data.gov.uk/id/local-authority-district/23UB,Cheltenham Borough Council,448622,038315,IDOX SOFTWARE LIMITED,C-H22600-3623,Community Servs-Cmpter-sftwre lic purch,13-May-11,0.71
http://statistics.data.gov.uk/id/local-authority-district/23UB,Cheltenham Borough Council,449653,718,INOVEM,C-B51145-3624,Joint Core Stra-I.T. Consultancy,20-May-11,"6,250.00"
http://statistics.data.gov.uk/id/local-authority-district/23UB,Cheltenham Borough Council,448598,041172,MR M JONES AND MRS M JONES,C-H22400-5204,Homelessness-Provision of accommo(B&B),11-May-11,100.00
http://statistics.data.gov.uk/id/local-authority-district/23UB,Cheltenham Borough Council,448320,0411131,MR M JONES AND MRS M JONES,C-H22400-5204,Homelessness-Provision of accommo(B&B),11-May-11,166.30
http://statistics.data.gov.uk/id/local-authority-district/23UB,Cheltenham Borough Council,448319,0411111,MR M JONES AND MRS M JONES,C-H22400-5204,Homelessness-Provision of accommo(B&B),11-May-11,100.00
http://statistics.data.gov.uk/id/local-authority-district/23UB,Cheltenham Borough Council,448601,0411141,MR M JONES AND MRS M JONES,C-H22400-5204,Homelessness-Provision of accommo(B&B),11-May-11,166.30
http://statistics.data.gov.uk/id/local-authority-district/23UB,Cheltenham Borough Council,448600,041131,MR M JONES AND MRS M JONES,C-H22400-5204,Homelessness-Provision of accommo(B&B),11-May-11,100.00
http://statistics.data.gov.uk/id/local-authority-district/23UB,Cheltenham Borough Council,448599,0411173,MR M JONES AND MRS M JONES,C-H22400-5204,Homelessness-Provision of accommo(B&B),11-May-11,166.30
http://statistics.data.gov.uk/id/local-authority-district/23UB,Cheltenham Borough Council,448597,0511101,MR M JONES AND MRS M JONES,C-H22400-5204,Homelessness-Provision of accommo(B&B),11-May-11,166.30
http://statistics.data.gov.uk/id/local-authority-district/23UB,Cheltenham Borough Council,448596,0511102,MR M JONES AND MRS M JONES,C-H22400-5204,Homelessness-Provision of accommo(B&B),11-May-11,100.00
http://statistics.data.gov.uk/id/local-authority-district/23UB,Cheltenham Borough Council,450292,23926,HARROLD-JONES  SERVICES,C-H46400-1104,Door Entry-Council House repairs,27-May-11,858.00
http://statistics.data.gov.uk/id/local-authority-district/23UB,Cheltenham Borough Council,450369,Redacted,Redacted,C-H22400-3828,Homelessness-Prevention Fund,27-May-11,600.00
http://statistics.data.gov.uk/id/local-authority-district/23UB,Cheltenham Borough Council,448672,943,K B BUILDING SERVICES UK LIMITED,C-H4204G-1104,Gen Wks 2204-Council House repairs,11-May-11,749.00
http://statistics.data.gov.uk/id/local-authority-district/23UB,Cheltenham Borough Council,448670,938,K B BUILDING SERVICES UK LIMITED,C-H4207V-1104,Voids 2207-Council House repairs,11-May-11,849.00
http://statistics.data.gov.uk/id/local-authority-district/23UB,Cheltenham Borough Council,448671,946,K B BUILDING SERVICES UK LIMITED,C-H4208G-1104,Gen Wks 2208-Council House repairs,11-May-11,726.00
http://statistics.data.gov.uk/id/local-authority-district/23UB,Cheltenham Borough Council,448673,945,K B BUILDING SERVICES UK LIMITED,C-H4208G-1104,Gen Wks 2208-Council House repairs,11-May-11,970.00
http://statistics.data.gov.uk/id/local-authority-district/23UB,Cheltenham Borough Council,448675,944,K B BUILDING SERVICES UK LIMITED,C-H4209G-1104,Gen Wks 2209-Council House repairs,11-May-11,749.00
http://statistics.data.gov.uk/id/local-authority-district/23UB,Cheltenham Borough Council,448674,936,K B BUILDING SERVICES UK LIMITED,C-H4213V-1104,Voids 2213-Council House repairs,11-May-11,103.00
http://statistics.data.gov.uk/id/local-authority-district/23UB,Cheltenham Borough Council,448676,937,K B BUILDING SERVICES UK LIMITED,C-HC4050-C302,Major Voids-Building Contractor,11-May-11,357.00
http://statistics.data.gov.uk/id/local-authority-district/23UB,Cheltenham Borough Council,448670,938,K B BUILDING SERVICES UK LIMITED,C-N11250-9227,Excluded,11-May-11,-145.40
http://statistics.data.gov.uk/id/local-authority-district/23UB,Cheltenham Borough Council,448671,946,K B BUILDING SERVICES UK LIMITED,C-N11250-9227,Excluded,11-May-11,-120.40
http://statistics.data.gov.uk/id/local-authority-district/23UB,Cheltenham Borough Council,448673,945,K B BUILDING SERVICES UK LIMITED,C-N11250-9227,Excluded,11-May-11,-155.60
http://statistics.data.gov.uk/id/local-authority-district/23UB,Cheltenham Borough Council,448675,944,K B BUILDING SERVICES UK LIMITED,C-N11250-9227,Excluded,11-May-11,-117.00
http://statistics.data.gov.uk/id/local-authority-district/23UB,Cheltenham Borough Council,448676,937,K B BUILDING SERVICES UK LIMITED,C-N11250-9227,Excluded,11-May-11,-64.00
http://statistics.data.gov.uk/id/local-authority-district/23UB,Cheltenham Borough Council,448674,936,K B BUILDING SERVICES UK LIMITED,C-N11250-9227,Excluded,11-May-11,-18.00
http://statistics.data.gov.uk/id/local-authority-district/23UB,Cheltenham Borough Council,448672,943,K B BUILDING SERVICES UK LIMITED,C-N11250-9227,Excluded,11-May-11,-117.00
http://statistics.data.gov.uk/id/local-authority-district/23UB,Cheltenham Borough Council,448264,358,G GARDINER T/A LABURNUM LODGE,C-H22400-5204,Homelessness-Provision of accommo(B&B),04-May-11,270.30
http://statistics.data.gov.uk/id/local-authority-district/23UB,Cheltenham Borough Council,448265,359,G GARDINER T/A LABURNUM LODGE,C-H22400-5204,Homelessness-Provision of accommo(B&B),04-May-11,270.30
http://statistics.data.gov.uk/id/local-authority-district/23UB,Cheltenham Borough Council,448709,CBC/8,L AND D SCAFFOLDING LIMITED,C-H4214G-1104,Gen Wks 2214-Council House repairs,11-May-11,99.00
http://statistics.data.gov.uk/id/local-authority-district/23UB,Cheltenham Borough Council,448663,6525,L AND D SCAFFOLDING LIMITED,C-H4214G-1104,Gen Wks 2214-Council House repairs,11-May-11,699.00
http://statistics.data.gov.uk/id/local-authority-district/23UB,Cheltenham Borough Council,449649,6518,L AND D SCAFFOLDING LIMITED,C-H4209G-1104,Gen Wks 2209-Council House repairs,20-May-11,648.00
http://statistics.data.gov.uk/id/local-authority-district/23UB,Cheltenham Borough Council,449744,RMS/CBC02,MR A LANSLEY,C-L23500-3156,Arts Grant/Enab-Arts Development,25-May-11,500.00
http://statistics.data.gov.uk/id/local-authority-district/23UB,Cheltenham Borough Council,450335,6281144845 CWAG,LEEDS CITY COUNCIL,C-H22600-3890,Community Servs-Subscriptions - general,27-May-11,750.00
http://statistics.data.gov.uk/id/local-authority-district/23UB,Cheltenham Borough Council,449654,NLP 66097,NATHANIEL  LICHFIELD AND PARTNERS,C-B51145-3501,Joint Core Stra-Hire of outside services,20-May-11,"1,056.57"
http://statistics.data.gov.uk/id/local-authority-district/23UB,Cheltenham Borough Council,449794,10THMAY2011,LIFESTYLE HEALTH & FITNESS,C-L17500-3501,Healthy Lifesty-Hire of outside services,25-May-11,500.00
http://statistics.data.gov.uk/id/local-authority-district/23UB,Cheltenham Borough Council,448447,PART SETTLEME,LINC,C-Z12210-9128,Box Off A/C-Agent tickets paid out,09-May-11,"3,000.00"
http://statistics.data.gov.uk/id/local-authority-district/23UB,Cheltenham Borough Council,448448,PART SETTLEME,LINC,C-Z12210-9128,Box Off A/C-Agent tickets paid out,09-May-11,"8,000.00"
http://statistics.data.gov.uk/id/local-authority-district/23UB,Cheltenham Borough Council,450267,368612,LISTER WILDER LTD,C-C24100-3582,Fleet Maint-DSO Invoices,27-May-11,142.00
http://statistics.data.gov.uk/id/local-authority-district/23UB,Cheltenham Borough Council,449936,L519,MR M J LOVERIDGE,C-H44600-1104,J D Court-Council House repairs,25-May-11,32.51
http://statistics.data.gov.uk/id/local-authority-district/23UB,Cheltenham Borough Council,449946,L515,MR M J LOVERIDGE,C-H44600-1104,J D Court-Council House repairs,25-May-11,36.90
http://statistics.data.gov.uk/id/local-authority-district/23UB,Cheltenham Borough Council,449964,L501,MR M J LOVERIDGE,C-H44600-1104,J D Court-Council House repairs,25-May-11,36.90
http://statistics.data.gov.uk/id/local-authority-district/23UB,Cheltenham Borough Council,449949,L539,MR M J LOVERIDGE,C-H44600-1104,J D Court-Council House repairs,25-May-11,32.51
http://statistics.data.gov.uk/id/local-authority-district/23UB,Cheltenham Borough Council,449935,L516,MR M J LOVERIDGE,C-H46300-1104,Comm.Light.Mtce-Council House repairs,25-May-11,36.90
http://statistics.data.gov.uk/id/local-authority-district/23UB,Cheltenham Borough Council,449938,L531,MR M J LOVERIDGE,C-H46300-1104,Comm.Light.Mtce-Council House repairs,25-May-11,32.36
http://statistics.data.gov.uk/id/local-authority-district/23UB,Cheltenham Borough Council,449940,L514,MR M J LOVERIDGE,C-H46300-1104,Comm.Light.Mtce-Council House repairs,25-May-11,41.29
http://statistics.data.gov.uk/id/local-authority-district/23UB,Cheltenham Borough Council,449951,L541,MR M J LOVERIDGE,C-H46300-1104,Comm.Light.Mtce-Council House repairs,25-May-11,32.51
http://statistics.data.gov.uk/id/local-authority-district/23UB,Cheltenham Borough Council,449950,L540,MR M J LOVERIDGE,C-H46300-1104,Comm.Light.Mtce-Council House repairs,25-May-11,32.51
http://statistics.data.gov.uk/id/local-authority-district/23UB,Cheltenham Borough Council,449948,2538,MR M J LOVERIDGE,C-H46300-1104,Comm.Light.Mtce-Council House repairs,25-May-11,32.51
http://statistics.data.gov.uk/id/local-authority-district/23UB,Cheltenham Borough Council,449947,L537,MR M J LOVERIDGE,C-H46300-1104,Comm.Light.Mtce-Council House repairs,25-May-11,32.51
http://statistics.data.gov.uk/id/local-authority-district/23UB,Cheltenham Borough Council,449945,L529,MR M J LOVERIDGE,C-H46300-1104,Comm.Light.Mtce-Council House repairs,25-May-11,32.51
http://statistics.data.gov.uk/id/local-authority-district/23UB,Cheltenham Borough Council,449944,L528,MR M J LOVERIDGE,C-H46300-1104,Comm.Light.Mtce-Council House repairs,25-May-11,32.51
http://statistics.data.gov.uk/id/local-authority-district/23UB,Cheltenham Borough Council,449943,L507,MR M J LOVERIDGE,C-H46300-1104,Comm.Light.Mtce-Council House repairs,25-May-11,105.34
http://statistics.data.gov.uk/id/local-authority-district/23UB,Cheltenham Borough Council,449942,L508,MR M J LOVERIDGE,C-H46300-1104,Comm.Light.Mtce-Council House repairs,25-May-11,63.24
http://statistics.data.gov.uk/id/local-authority-district/23UB,Cheltenham Borough Council,449941,L509,MR M J LOVERIDGE,C-H46300-1104,Comm.Light.Mtce-Council House repairs,25-May-11,58.85
http://statistics.data.gov.uk/id/local-authority-district/23UB,Cheltenham Borough Council,449969,L461,MR M J LOVERIDGE,C-H46300-1104,Comm.Light.Mtce-Council House repairs,25-May-11,32.51
http://statistics.data.gov.uk/id/local-authority-district/23UB,Cheltenham Borough Council,449968,L369,MR M J LOVERIDGE,C-H46300-1104,Comm.Light.Mtce-Council House repairs,25-May-11,32.51
http://statistics.data.gov.uk/id/local-authority-district/23UB,Cheltenham Borough Council,449967,L499,MR M J LOVERIDGE,C-H46300-1104,Comm.Light.Mtce-Council House repairs,25-May-11,32.51
http://statistics.data.gov.uk/id/local-authority-district/23UB,Cheltenham Borough Council,449966,L503,MR M J LOVERIDGE,C-H46300-1104,Comm.Light.Mtce-Council House repairs,25-May-11,36.90
http://statistics.data.gov.uk/id/local-authority-district/23UB,Cheltenham Borough Council,449965,L502,MR M J LOVERIDGE,C-H46300-1104,Comm.Light.Mtce-Council House repairs,25-May-11,36.90
http://statistics.data.gov.uk/id/local-authority-district/23UB,Cheltenham Borough Council,449963,L500,MR M J LOVERIDGE,C-H46300-1104,Comm.Light.Mtce-Council House repairs,25-May-11,36.90
http://statistics.data.gov.uk/id/local-authority-district/23UB,Cheltenham Borough Council,449962,L513,MR M J LOVERIDGE,C-H46300-1104,Comm.Light.Mtce-Council House repairs,25-May-11,36.90
http://statistics.data.gov.uk/id/local-authority-district/23UB,Cheltenham Borough Council,449961,L504,MR M J LOVERIDGE,C-H46300-1104,Comm.Light.Mtce-Council House repairs,25-May-11,144.38
http://statistics.data.gov.uk/id/local-authority-district/23UB,Cheltenham Borough Council,449960,L521,MR M J LOVERIDGE,C-H46300-1104,Comm.Light.Mtce-Council House repairs,25-May-11,32.51
http://statistics.data.gov.uk/id/local-authority-district/23UB,Cheltenham Borough Council,449959,L520,MR M J LOVERIDGE,C-H46300-1104,Comm.Light.Mtce-Council House repairs,25-May-11,32.51
http://statistics.data.gov.uk/id/local-authority-district/23UB,Cheltenham Borough Council,449958,L517,MR M J LOVERIDGE,C-H46300-1104,Comm.Light.Mtce-Council House repairs,25-May-11,36.90
http://statistics.data.gov.uk/id/local-authority-district/23UB,Cheltenham Borough Council,449957,L510,MR M J LOVERIDGE,C-H46300-1104,Comm.Light.Mtce-Council House repairs,25-May-11,50.07
http://statistics.data.gov.uk/id/local-authority-district/23UB,Cheltenham Borough Council,449956,L511,MR M J LOVERIDGE,C-H46300-1104,Comm.Light.Mtce-Council House repairs,25-May-11,41.29
http://statistics.data.gov.uk/id/local-authority-district/23UB,Cheltenham Borough Council,449955,L505,MR M J LOVERIDGE,C-H46300-1104,Comm.Light.Mtce-Council House repairs,25-May-11,129.44
http://statistics.data.gov.uk/id/local-authority-district/23UB,Cheltenham Borough Council,449954,L512,MR M J LOVERIDGE,C-H46300-1104,Comm.Light.Mtce-Council House repairs,25-May-11,41.29
http://statistics.data.gov.uk/id/local-authority-district/23UB,Cheltenham Borough Council,449953,L535,MR M J LOVERIDGE,C-H46300-1104,Comm.Light.Mtce-Council House repairs,25-May-11,32.36
http://statistics.data.gov.uk/id/local-authority-district/23UB,Cheltenham Borough Council,449952,L542,MR M J LOVERIDGE,C-H46300-1104,Comm.Light.Mtce-Council House repairs,25-May-11,32.51
http://statistics.data.gov.uk/id/local-authority-district/23UB,Cheltenham Borough Council,449978,L506,MR M J LOVERIDGE,C-H46300-1104,Comm.Light.Mtce-Council House repairs,25-May-11,119.44
http://statistics.data.gov.uk/id/local-authority-district/23UB,Cheltenham Borough Council,449977,L522,MR M J LOVERIDGE,C-H46300-1104,Comm.Light.Mtce-Council House repairs,25-May-11,32.51
http://statistics.data.gov.uk/id/local-authority-district/23UB,Cheltenham Borough Council,449976,L524,MR M J LOVERIDGE,C-H46300-1104,Comm.Light.Mtce-Council House repairs,25-May-11,32.51
http://statistics.data.gov.uk/id/local-authority-district/23UB,Cheltenham Borough Council,449975,L523,MR M J LOVERIDGE,C-H46300-1104,Comm.Light.Mtce-Council House repairs,25-May-11,32.51
http://statistics.data.gov.uk/id/local-authority-district/23UB,Cheltenham Borough Council,449974,L526,MR M J LOVERIDGE,C-H46300-1104,Comm.Light.Mtce-Council House repairs,25-May-11,32.51
http://statistics.data.gov.uk/id/local-authority-district/23UB,Cheltenham Borough Council,449973,L525,MR M J LOVERIDGE,C-H46300-1104,Comm.Light.Mtce-Council House repairs,25-May-11,32.51
http://statistics.data.gov.uk/id/local-authority-district/23UB,Cheltenham Borough Council,449972,L527,MR M J LOVERIDGE,C-H46300-1104,Comm.Light.Mtce-Council House repairs,25-May-11,32.51
http://statistics.data.gov.uk/id/local-authority-district/23UB,Cheltenham Borough Council,449971,L498,MR M J LOVERIDGE,C-H46300-1104,Comm.Light.Mtce-Council House repairs,25-May-11,69.70
http://statistics.data.gov.uk/id/local-authority-district/23UB,Cheltenham Borough Council,449970,L496,MR M J LOVERIDGE,C-H46300-1104,Comm.Light.Mtce-Council House repairs,25-May-11,32.51
http://statistics.data.gov.uk/id/local-authority-district/23UB,Cheltenham Borough Council,449939,L530,MR M J LOVERIDGE,C-H46300-1104,Comm.Light.Mtce-Council House repairs,25-May-11,32.36
http://statistics.data.gov.uk/id/local-authority-district/23UB,Cheltenham Borough Council,449937,L518,MR M J LOVERIDGE,C-H46300-1104,Comm.Light.Mtce-Council House repairs,25-May-11,32.51
http://statistics.data.gov.uk/id/local-authority-district/23UB,Cheltenham Borough Council,450211,L536,MR M J LOVERIDGE,C-H46300-1104,Comm.Light.Mtce-Council House repairs,27-May-11,32.51
http://statistics.data.gov.uk/id/local-authority-district/23UB,Cheltenham Borough Council,450229,L547,MR M J LOVERIDGE,C-H46300-1104,Comm.Light.Mtce-Council House repairs,27-May-11,96.41
http://statistics.data.gov.uk/id/local-authority-district/23UB,Cheltenham Borough Council,450227,L497,MR M J LOVERIDGE,C-H46300-1104,Comm.Light.Mtce-Council House repairs,27-May-11,32.51
http://statistics.data.gov.uk/id/local-authority-district/23UB,Cheltenham Borough Council,450228,L543,MR M J LOVERIDGE,C-H46300-1104,Comm.Light.Mtce-Council House repairs,27-May-11,36.90
http://statistics.data.gov.uk/id/local-authority-district/23UB,Cheltenham Borough Council,450230,L548,MR M J LOVERIDGE,C-H46300-1104,Comm.Light.Mtce-Council House repairs,27-May-11,223.57
http://statistics.data.gov.uk/id/local-authority-district/23UB,Cheltenham Borough Council,450232,L545,MR M J LOVERIDGE,C-H46300-1104,Comm.Light.Mtce-Council House repairs,27-May-11,41.29
http://statistics.data.gov.uk/id/local-authority-district/23UB,Cheltenham Borough Council,450233,L544,MR M J LOVERIDGE,C-H46300-1104,Comm.Light.Mtce-Council House repairs,27-May-11,41.29
http://statistics.data.gov.uk/id/local-authority-district/23UB,Cheltenham Borough Council,450231,L546,MR M J LOVERIDGE,C-H46300-1104,Comm.Light.Mtce-Council House repairs,27-May-11,41.29
http://statistics.data.gov.uk/id/local-authority-district/23UB,Cheltenham Borough Council,448289,H1466,LOVELL PARTNERSHIPS LTD,C-HC4053-C302,Internal Imp-Building Contractor,04-May-11,"91,176.39"
http://statistics.data.gov.uk/id/local-authority-district/23UB,Cheltenham Borough Council,448736,23518,MARCHANTS COACHES,C-L16100-3501,Holiday Rec-Hire of outside services,13-May-11,265.00
http://statistics.data.gov.uk/id/local-authority-district/23UB,Cheltenham Borough Council,448736,23518,MARCHANTS COACHES,C-L16100-3501,Holiday Rec-Hire of outside services,13-May-11,160.00
http://statistics.data.gov.uk/id/local-authority-district/23UB,Cheltenham Borough Council,448736,23518,MARCHANTS COACHES,C-L16100-3501,Holiday Rec-Hire of outside services,13-May-11,195.00
http://statistics.data.gov.uk/id/local-authority-district/23UB,Cheltenham Borough Council,448736,23518,MARCHANTS COACHES,C-L16100-3501,Holiday Rec-Hire of outside services,13-May-11,80.00
http://statistics.data.gov.uk/id/local-authority-district/23UB,Cheltenham Borough Council,448736,23518,MARCHANTS COACHES,C-L16100-3501,Holiday Rec-Hire of outside services,13-May-11,265.00
http://statistics.data.gov.uk/id/local-authority-district/23UB,Cheltenham Borough Council,448736,23518,MARCHANTS COACHES,C-L16100-3501,Holiday Rec-Hire of outside services,13-May-11,110.00
http://statistics.data.gov.uk/id/local-authority-district/23UB,Cheltenham Borough Council,448736,23518,MARCHANTS COACHES,C-L16100-3501,Holiday Rec-Hire of outside services,13-May-11,110.00
http://statistics.data.gov.uk/id/local-authority-district/23UB,Cheltenham Borough Council,448628,3446,MARK TIME MUSIC LTD,C-1T06A1-3568,Buena Vista-Artist Fees             ,11-May-11,"4,847.59"
http://statistics.data.gov.uk/id/local-authority-district/23UB,Cheltenham Borough Council,448628,3446,MARK TIME MUSIC LTD,C-N13125-9205,ASH Ledger-Town Hall Invoices Paid,11-May-11,-498.00
http://statistics.data.gov.uk/id/local-authority-district/23UB,Cheltenham Borough Council,449878,Redacted,MARTIN & CO,C-H22400-3828,Homelessness-Prevention Fund,25-May-11,600.00
http://statistics.data.gov.uk/id/local-authority-district/23UB,Cheltenham Borough Council,448593,099,MISS A MARAFFI,C-H22400-5204,Homelessness-Provision of accommo(B&B),11-May-11,240.00
http://statistics.data.gov.uk/id/local-authority-district/23UB,Cheltenham Borough Council,448594,098,MISS A MARAFFI,C-H22400-5204,Homelessness-Provision of accommo(B&B),11-May-11,100.00
http://statistics.data.gov.uk/id/local-authority-district/23UB,Cheltenham Borough Council,448592,101,MISS A MARAFFI,C-H22400-5204,Homelessness-Provision of accommo(B&B),11-May-11,480.00
http://statistics.data.gov.uk/id/local-authority-district/23UB,Cheltenham Borough Council,448288,H1462,MANSELL CONSTRUCTION SERVICES LTD,C-HC4849-C302,Concrete repair-Building Contractor   ,04-May-11,"53,265.95"
http://statistics.data.gov.uk/id/local-authority-district/23UB,Cheltenham Borough Council,449583,MANSELL,MANSELL CONSTRUCTION SERVICES LTD,C-HC4055-C302,Neighhd Works-Building Contractor,20-May-11,"199,168.76"
http://statistics.data.gov.uk/id/local-authority-district/23UB,Cheltenham Borough Council,449575,0017 APR 2011,MARK MASTERS,C-L11500-3522,Rec Facilities-Coaching scheme,20-May-11,125.00
http://statistics.data.gov.uk/id/local-authority-district/23UB,Cheltenham Borough Council,449575,0017 APR 2011,MARK MASTERS,C-L11500-3522,Rec Facilities-Coaching scheme,20-May-11,42.00
http://statistics.data.gov.uk/id/local-authority-district/23UB,Cheltenham Borough Council,449575,0017 APR 2011,MARK MASTERS,C-L11500-3522,Rec Facilities-Coaching scheme,20-May-11,252.00
http://statistics.data.gov.uk/id/local-authority-district/23UB,Cheltenham Borough Council,449575,0017 APR 2011,MARK MASTERS,C-L11500-3522,Rec Facilities-Coaching scheme,20-May-11,168.00
http://statistics.data.gov.uk/id/local-authority-district/23UB,Cheltenham Borough Council,449575,0017 APR 2011,MARK MASTERS,C-L11500-3522,Rec Facilities-Coaching scheme,20-May-11,105.00
http://statistics.data.gov.uk/id/local-authority-district/23UB,Cheltenham Borough Council,449575,0017 APR 2011,MARK MASTERS,C-L11500-3522,Rec Facilities-Coaching scheme,20-May-11,63.00
http://statistics.data.gov.uk/id/local-authority-district/23UB,Cheltenham Borough Council,448287,H1461,MCDONNELL PRICE  ROOFING CONTRACTORS LTD,C-HC4064-C302,Asbestos Manage-Building Contractor,04-May-11,"34,821.99"
http://statistics.data.gov.uk/id/local-authority-district/23UB,Cheltenham Borough Council,449866,Redacted,Redacted,C-H22400-5204,Homelessness-Provision of accommo(B&B),25-May-11,98.65
http://statistics.data.gov.uk/id/local-authority-district/23UB,Cheltenham Borough Council,448668,3662,PHIL MCINTYRE ENTERTAINMENTS LTD,C-0T12K1-3568,Lenny Henry-Artist Fees ,11-May-11,"11,119.57"
http://statistics.data.gov.uk/id/local-authority-district/23UB,Cheltenham Borough Council,448668,3662,PHIL MCINTYRE ENTERTAINMENTS LTD,C-Z12210-9271,Box Off A/C-CBC Invoices Paid,11-May-11,"-2,021.00"
http://statistics.data.gov.uk/id/local-authority-district/23UB,Cheltenham Borough Council,449641,3703,PHIL MCINTYRE ENTERTAINMENTS LTD,C-0T03M1-3568,Milton Jones-Artist Fees              ,20-May-11,"9,140.29"
http://statistics.data.gov.uk/id/local-authority-district/23UB,Cheltenham Borough Council,449565,121904,MEDWAY GALVANISING (MONOHINGE),C-C22120-3104,Spts/Open Space-Sports & play equipment,20-May-11,17.36
http://statistics.data.gov.uk/id/local-authority-district/23UB,Cheltenham Borough Council,449565,121904,MEDWAY GALVANISING (MONOHINGE),C-LC6001-P802,Playspace Schme-Agg Gardners,20-May-11,788.62
http://statistics.data.gov.uk/id/local-authority-district/23UB,Cheltenham Borough Council,448235,02482,MG WINDOWS CHELTENHAM LIMITED,C-H44350-1104,Window Repairs-Council House repairs,04-May-11,38.41
http://statistics.data.gov.uk/id/local-authority-district/23UB,Cheltenham Borough Council,448247,02490,MG WINDOWS CHELTENHAM LIMITED,C-H44350-1104,Window Repairs-Council House repairs,04-May-11,81.98
http://statistics.data.gov.uk/id/local-authority-district/23UB,Cheltenham Borough Council,448246,02491,MG WINDOWS CHELTENHAM LIMITED,C-H44350-1104,Window Repairs-Council House repairs,04-May-11,14.00
http://statistics.data.gov.uk/id/local-authority-district/23UB,Cheltenham Borough Council,448245,02477,MG WINDOWS CHELTENHAM LIMITED,C-H44350-1104,Window Repairs-Council House repairs,04-May-11,62.68
http://statistics.data.gov.uk/id/local-authority-district/23UB,Cheltenham Borough Council,448244,02476,MG WINDOWS CHELTENHAM LIMITED,C-H44350-1104,Window Repairs-Council House repairs,04-May-11,14.00
http://statistics.data.gov.uk/id/local-authority-district/23UB,Cheltenham Borough Council,448243,02479,MG WINDOWS CHELTENHAM LIMITED,C-H44350-1104,Window Repairs-Council House repairs,04-May-11,74.35
http://statistics.data.gov.uk/id/local-authority-district/23UB,Cheltenham Borough Council,448242,02486,MG WINDOWS CHELTENHAM LIMITED,C-H44350-1104,Window Repairs-Council House repairs,04-May-11,44.99
http://statistics.data.gov.uk/id/local-authority-district/23UB,Cheltenham Borough Council,448241,02512,MG WINDOWS CHELTENHAM LIMITED,C-H44350-1104,Window Repairs-Council House repairs,04-May-11,31.90
http://statistics.data.gov.uk/id/local-authority-district/23UB,Cheltenham Borough Council,448240,02513,MG WINDOWS CHELTENHAM LIMITED,C-H44350-1104,Window Repairs-Council House repairs,04-May-11,35.53
http://statistics.data.gov.uk/id/local-authority-district/23UB,Cheltenham Borough Council,448239,02514,MG WINDOWS CHELTENHAM LIMITED,C-H44350-1104,Window Repairs-Council House repairs,04-May-11,59.11
http://statistics.data.gov.uk/id/local-authority-district/23UB,Cheltenham Borough Council,448262,02487,MG WINDOWS CHELTENHAM LIMITED,C-H44350-1104,Window Repairs-Council House repairs,04-May-11,49.80
http://statistics.data.gov.uk/id/local-authority-district/23UB,Cheltenham Borough Council,448250,02488,MG WINDOWS CHELTENHAM LIMITED,C-H44350-1104,Window Repairs-Council House repairs,04-May-11,45.54
http://statistics.data.gov.uk/id/local-authority-district/23UB,Cheltenham Borough Council,448249,02489,MG WINDOWS CHELTENHAM LIMITED,C-H44350-1104,Window Repairs-Council House repairs,04-May-11,52.53
http://statistics.data.gov.uk/id/local-authority-district/23UB,Cheltenham Borough Council,448248,02484,MG WINDOWS CHELTENHAM LIMITED,C-H44350-1104,Window Repairs-Council House repairs,04-May-11,52.42
http://statistics.data.gov.uk/id/local-authority-district/23UB,Cheltenham Borough Council,448236,02520,MG WINDOWS CHELTENHAM LIMITED,C-H44350-1104,Window Repairs-Council House repairs,04-May-11,20.00
http://statistics.data.gov.uk/id/local-authority-district/23UB,Cheltenham Borough Council,448238,02515,MG WINDOWS CHELTENHAM LIMITED,C-H44350-1104,Window Repairs-Council House repairs,04-May-11,101.38
http://statistics.data.gov.uk/id/local-authority-district/23UB,Cheltenham Borough Council,448237,02516,MG WINDOWS CHELTENHAM LIMITED,C-H44350-1104,Window Repairs-Council House repairs,04-May-11,85.70
http://statistics.data.gov.uk/id/local-authority-district/23UB,Cheltenham Borough Council,448678,02425,MG WINDOWS CHELTENHAM LIMITED,C-H44350-1104,Window Repairs-Council House repairs,11-May-11,304.05
http://statistics.data.gov.uk/id/local-authority-district/23UB,Cheltenham Borough Council,448681,01708,MG WINDOWS CHELTENHAM LIMITED,C-H44350-1104,Window Repairs-Council House repairs,11-May-11,72.55
http://statistics.data.gov.uk/id/local-authority-district/23UB,Cheltenham Borough Council,448683,01625,MG WINDOWS CHELTENHAM LIMITED,C-H44350-1104,Window Repairs-Council House repairs,11-May-11,143.95
http://statistics.data.gov.uk/id/local-authority-district/23UB,Cheltenham Borough Council,448685,02419,MG WINDOWS CHELTENHAM LIMITED,C-H44350-1104,Window Repairs-Council House repairs,11-May-11,2.50
http://statistics.data.gov.uk/id/local-authority-district/23UB,Cheltenham Borough Council,448687,02452,MG WINDOWS CHELTENHAM LIMITED,C-H44350-1104,Window Repairs-Council House repairs,11-May-11,21.30
http://statistics.data.gov.uk/id/local-authority-district/23UB,Cheltenham Borough Council,448693,01933,MG WINDOWS CHELTENHAM LIMITED,C-H44350-1104,Window Repairs-Council House repairs,11-May-11,30.95
http://statistics.data.gov.uk/id/local-authority-district/23UB,Cheltenham Borough Council,448692,02002,MG WINDOWS CHELTENHAM LIMITED,C-H44350-1104,Window Repairs-Council House repairs,11-May-11,28.40
http://statistics.data.gov.uk/id/local-authority-district/23UB,Cheltenham Borough Council,448691,02039,MG WINDOWS CHELTENHAM LIMITED,C-H44350-1104,Window Repairs-Council House repairs,11-May-11,2.50
http://statistics.data.gov.uk/id/local-authority-district/23UB,Cheltenham Borough Council,448690,02360,MG WINDOWS CHELTENHAM LIMITED,C-H44350-1104,Window Repairs-Council House repairs,11-May-11,10.00
http://statistics.data.gov.uk/id/local-authority-district/23UB,Cheltenham Borough Council,448689,02455,MG WINDOWS CHELTENHAM LIMITED,C-H44350-1104,Window Repairs-Council House repairs,11-May-11,42.23
http://statistics.data.gov.uk/id/local-authority-district/23UB,Cheltenham Borough Council,448688,02456,MG WINDOWS CHELTENHAM LIMITED,C-H44350-1104,Window Repairs-Council House repairs,11-May-11,48.34
http://statistics.data.gov.uk/id/local-authority-district/23UB,Cheltenham Borough Council,448686,02346,MG WINDOWS CHELTENHAM LIMITED,C-H44350-1104,Window Repairs-Council House repairs,11-May-11,30.00
http://statistics.data.gov.uk/id/local-authority-district/23UB,Cheltenham Borough Council,448684,01953,MG WINDOWS CHELTENHAM LIMITED,C-H44350-1104,Window Repairs-Council House repairs,11-May-11,2.50
http://statistics.data.gov.uk/id/local-authority-district/23UB,Cheltenham Borough Council,448682,01485,MG WINDOWS CHELTENHAM LIMITED,C-H44350-1104,Window Repairs-Council House repairs,11-May-11,2.50
http://statistics.data.gov.uk/id/local-authority-district/23UB,Cheltenham Borough Council,448680,01582,MG WINDOWS CHELTENHAM LIMITED,C-H44350-1104,Window Repairs-Council House repairs,11-May-11,63.81
http://statistics.data.gov.uk/id/local-authority-district/23UB,Cheltenham Borough Council,448679,02418,MG WINDOWS CHELTENHAM LIMITED,C-H44350-1104,Window Repairs-Council House repairs,11-May-11,57.48
http://statistics.data.gov.uk/id/local-authority-district/23UB,Cheltenham Borough Council,448694,02079,MG WINDOWS CHELTENHAM LIMITED,C-HC4075-C302,Window Renewals-Building Contractor,11-May-11,362.00
http://statistics.data.gov.uk/id/local-authority-district/23UB,Cheltenham Borough Council,448903,02522,MG WINDOWS CHELTENHAM LIMITED,C-H44350-1104,Window Repairs-Council House repairs,16-May-11,122.74
http://statistics.data.gov.uk/id/local-authority-district/23UB,Cheltenham Borough Council,448905,02537,MG WINDOWS CHELTENHAM LIMITED,C-H44350-1104,Window Repairs-Council House repairs,16-May-11,46.90
http://statistics.data.gov.uk/id/local-authority-district/23UB,Cheltenham Borough Council,448907,02536,MG WINDOWS CHELTENHAM LIMITED,C-H44350-1104,Window Repairs-Council House repairs,16-May-11,10.00
http://statistics.data.gov.uk/id/local-authority-district/23UB,Cheltenham Borough Council,448909,02541,MG WINDOWS CHELTENHAM LIMITED,C-H44350-1104,Window Repairs-Council House repairs,16-May-11,140.38
http://statistics.data.gov.uk/id/local-authority-district/23UB,Cheltenham Borough Council,448911,02534,MG WINDOWS CHELTENHAM LIMITED,C-H44350-1104,Window Repairs-Council House repairs,16-May-11,523.00
http://statistics.data.gov.uk/id/local-authority-district/23UB,Cheltenham Borough Council,448920,02550,MG WINDOWS CHELTENHAM LIMITED,C-H44350-1104,Window Repairs-Council House repairs,16-May-11,177.81
http://statistics.data.gov.uk/id/local-authority-district/23UB,Cheltenham Borough Council,448919,02557,MG WINDOWS CHELTENHAM LIMITED,C-H44350-1104,Window Repairs-Council House repairs,16-May-11,64.78
http://statistics.data.gov.uk/id/local-authority-district/23UB,Cheltenham Borough Council,448918,02546,MG WINDOWS CHELTENHAM LIMITED,C-H44350-1104,Window Repairs-Council House repairs,16-May-11,45.34
http://statistics.data.gov.uk/id/local-authority-district/23UB,Cheltenham Borough Council,448917,02544,MG WINDOWS CHELTENHAM LIMITED,C-H44350-1104,Window Repairs-Council House repairs,16-May-11,34.03
http://statistics.data.gov.uk/id/local-authority-district/23UB,Cheltenham Borough Council,448916,02547,MG WINDOWS CHELTENHAM LIMITED,C-H44350-1104,Window Repairs-Council House repairs,16-May-11,20.00
http://statistics.data.gov.uk/id/local-authority-district/23UB,Cheltenham Borough Council,448915,02545,MG WINDOWS CHELTENHAM LIMITED,C-H44350-1104,Window Repairs-Council House repairs,16-May-11,61.92
http://statistics.data.gov.uk/id/local-authority-district/23UB,Cheltenham Borough Council,448914,02555,MG WINDOWS CHELTENHAM LIMITED,C-H44350-1104,Window Repairs-Council House repairs,16-May-11,88.40
http://statistics.data.gov.uk/id/local-authority-district/23UB,Cheltenham Borough Council,448913,02535,MG WINDOWS CHELTENHAM LIMITED,C-H44350-1104,Window Repairs-Council House repairs,16-May-11,29.25
http://statistics.data.gov.uk/id/local-authority-district/23UB,Cheltenham Borough Council,448912,02543,MG WINDOWS CHELTENHAM LIMITED,C-H44350-1104,Window Repairs-Council House repairs,16-May-11,20.00
http://statistics.data.gov.uk/id/local-authority-district/23UB,Cheltenham Borough Council,448929,02525,MG WINDOWS CHELTENHAM LIMITED,C-H44350-1104,Window Repairs-Council House repairs,16-May-11,35.42
http://statistics.data.gov.uk/id/local-authority-district/23UB,Cheltenham Borough Council,448928,02527,MG WINDOWS CHELTENHAM LIMITED,C-H44350-1104,Window Repairs-Council House repairs,16-May-11,10.00
http://statistics.data.gov.uk/id/local-authority-district/23UB,Cheltenham Borough Council,448927,02528,MG WINDOWS CHELTENHAM LIMITED,C-H44350-1104,Window Repairs-Council House repairs,16-May-11,56.44
http://statistics.data.gov.uk/id/local-authority-district/23UB,Cheltenham Borough Council,448926,02524,MG WINDOWS CHELTENHAM LIMITED,C-H44350-1104,Window Repairs-Council House repairs,16-May-11,7.35
http://statistics.data.gov.uk/id/local-authority-district/23UB,Cheltenham Borough Council,448925,02533,MG WINDOWS CHELTENHAM LIMITED,C-H44350-1104,Window Repairs-Council House repairs,16-May-11,27.55
http://statistics.data.gov.uk/id/local-authority-district/23UB,Cheltenham Borough Council,448924,02544,MG WINDOWS CHELTENHAM LIMITED,C-H44350-1104,Window Repairs-Council House repairs,16-May-11,206.97
http://statistics.data.gov.uk/id/local-authority-district/23UB,Cheltenham Borough Council,448923,02556,MG WINDOWS CHELTENHAM LIMITED,C-H44350-1104,Window Repairs-Council House repairs,16-May-11,49.04
http://statistics.data.gov.uk/id/local-authority-district/23UB,Cheltenham Borough Council,448922,02549,MG WINDOWS CHELTENHAM LIMITED,C-H44350-1104,Window Repairs-Council House repairs,16-May-11,2.50
http://statistics.data.gov.uk/id/local-authority-district/23UB,Cheltenham Borough Council,448921,02551,MG WINDOWS CHELTENHAM LIMITED,C-H44350-1104,Window Repairs-Council House repairs,16-May-11,134.52
http://statistics.data.gov.uk/id/local-authority-district/23UB,Cheltenham Borough Council,448954,02334,MG WINDOWS CHELTENHAM LIMITED,C-H44350-1104,Window Repairs-Council House repairs,16-May-11,51.15
http://statistics.data.gov.uk/id/local-authority-district/23UB,Cheltenham Borough Council,448951,02497,MG WINDOWS CHELTENHAM LIMITED,C-H44350-1104,Window Repairs-Council House repairs,16-May-11,157.84
http://statistics.data.gov.uk/id/local-authority-district/23UB,Cheltenham Borough Council,448950,02506,MG WINDOWS CHELTENHAM LIMITED,C-H44350-1104,Window Repairs-Council House repairs,16-May-11,66.50
http://statistics.data.gov.uk/id/local-authority-district/23UB,Cheltenham Borough Council,448949,02494,MG WINDOWS CHELTENHAM LIMITED,C-H44350-1104,Window Repairs-Council House repairs,16-May-11,21.90
http://statistics.data.gov.uk/id/local-authority-district/23UB,Cheltenham Borough Council,448948,02492,MG WINDOWS CHELTENHAM LIMITED,C-H44350-1104,Window Repairs-Council House repairs,16-May-11,61.12
http://statistics.data.gov.uk/id/local-authority-district/23UB,Cheltenham Borough Council,448947,02493,MG WINDOWS CHELTENHAM LIMITED,C-H44350-1104,Window Repairs-Council House repairs,16-May-11,20.00
http://statistics.data.gov.uk/id/local-authority-district/23UB,Cheltenham Borough Council,448946,02499,MG WINDOWS CHELTENHAM LIMITED,C-H44350-1104,Window Repairs-Council House repairs,16-May-11,163.64
http://statistics.data.gov.uk/id/local-authority-district/23UB,Cheltenham Borough Council,448945,02498,MG WINDOWS CHELTENHAM LIMITED,C-H44350-1104,Window Repairs-Council House repairs,16-May-11,90.50
http://statistics.data.gov.uk/id/local-authority-district/23UB,Cheltenham Borough Council,448944,02530,MG WINDOWS CHELTENHAM LIMITED,C-H44350-1104,Window Repairs-Council House repairs,16-May-11,56.72
http://statistics.data.gov.uk/id/local-authority-district/23UB,Cheltenham Borough Council,448943,02495,MG WINDOWS CHELTENHAM LIMITED,C-H44350-1104,Window Repairs-Council House repairs,16-May-11,10.00
http://statistics.data.gov.uk/id/local-authority-district/23UB,Cheltenham Borough Council,448942,02500,MG WINDOWS CHELTENHAM LIMITED,C-H44350-1104,Window Repairs-Council House repairs,16-May-11,30.74
http://statistics.data.gov.uk/id/local-authority-district/23UB,Cheltenham Borough Council,448941,02503,MG WINDOWS CHELTENHAM LIMITED,C-H44350-1104,Window Repairs-Council House repairs,16-May-11,43.88
http://statistics.data.gov.uk/id/local-authority-district/23UB,Cheltenham Borough Council,448940,02510,MG WINDOWS CHELTENHAM LIMITED,C-H44350-1104,Window Repairs-Council House repairs,16-May-11,133.91
http://statistics.data.gov.uk/id/local-authority-district/23UB,Cheltenham Borough Council,448939,02508,MG WINDOWS CHELTENHAM LIMITED,C-H44350-1104,Window Repairs-Council House repairs,16-May-11,29.25
http://statistics.data.gov.uk/id/local-authority-district/23UB,Cheltenham Borough Council,448938,02502,MG WINDOWS CHELTENHAM LIMITED,C-H44350-1104,Window Repairs-Council House repairs,16-May-11,99.30
http://statistics.data.gov.uk/id/local-authority-district/23UB,Cheltenham Borough Council,448937,02504,MG WINDOWS CHELTENHAM LIMITED,C-H44350-1104,Window Repairs-Council House repairs,16-May-11,29.60
http://statistics.data.gov.uk/id/local-authority-district/23UB,Cheltenham Borough Council,448936,02505,MG WINDOWS CHELTENHAM LIMITED,C-H44350-1104,Window Repairs-Council House repairs,16-May-11,27.55
http://statistics.data.gov.uk/id/local-authority-district/23UB,Cheltenham Borough Council,448935,02529,MG WINDOWS CHELTENHAM LIMITED,C-H44350-1104,Window Repairs-Council House repairs,16-May-11,240.10
http://statistics.data.gov.uk/id/local-authority-district/23UB,Cheltenham Borough Council,448934,02507,MG WINDOWS CHELTENHAM LIMITED,C-H44350-1104,Window Repairs-Council House repairs,16-May-11,20.00
http://statistics.data.gov.uk/id/local-authority-district/23UB,Cheltenham Borough Council,448933,02509,MG WINDOWS CHELTENHAM LIMITED,C-H44350-1104,Window Repairs-Council House repairs,16-May-11,72.50
http://statistics.data.gov.uk/id/local-authority-district/23UB,Cheltenham Borough Council,448932,02531,MG WINDOWS CHELTENHAM LIMITED,C-H44350-1104,Window Repairs-Council House repairs,16-May-11,78.00
http://statistics.data.gov.uk/id/local-authority-district/23UB,Cheltenham Borough Council,448931,02526,MG WINDOWS CHELTENHAM LIMITED,C-H44350-1104,Window Repairs-Council House repairs,16-May-11,120.16
http://statistics.data.gov.uk/id/local-authority-district/23UB,Cheltenham Borough Council,448930,02521,MG WINDOWS CHELTENHAM LIMITED,C-H44350-1104,Window Repairs-Council House repairs,16-May-11,11.90
http://statistics.data.gov.uk/id/local-authority-district/23UB,Cheltenham Borough Council,448910,02553,MG WINDOWS CHELTENHAM LIMITED,C-H44350-1104,Window Repairs-Council House repairs,16-May-11,25.86
http://statistics.data.gov.uk/id/local-authority-district/23UB,Cheltenham Borough Council,448908,02539,MG WINDOWS CHELTENHAM LIMITED,C-H44350-1104,Window Repairs-Council House repairs,16-May-11,2.50
http://statistics.data.gov.uk/id/local-authority-district/23UB,Cheltenham Borough Council,448906,02542,MG WINDOWS CHELTENHAM LIMITED,C-H44350-1104,Window Repairs-Council House repairs,16-May-11,53.03
http://statistics.data.gov.uk/id/local-authority-district/23UB,Cheltenham Borough Council,448904,02548,MG WINDOWS CHELTENHAM LIMITED,C-H44350-1104,Window Repairs-Council House repairs,16-May-11,41.82
http://statistics.data.gov.uk/id/local-authority-district/23UB,Cheltenham Borough Council,448952,02483,MG WINDOWS CHELTENHAM LIMITED,C-HC4075-C302,Window Renewals-Building Contractor,16-May-11,711.00
http://statistics.data.gov.uk/id/local-authority-district/23UB,Cheltenham Borough Council,448953,02447,MG WINDOWS CHELTENHAM LIMITED,C-HC4075-C302,Window Renewals-Building Contractor,16-May-11,576.00
http://statistics.data.gov.uk/id/local-authority-district/23UB,Cheltenham Borough Council,449352,02552,MG WINDOWS CHELTENHAM LIMITED,C-H44350-1104,Window Repairs-Council House repairs,18-May-11,40.41
http://statistics.data.gov.uk/id/local-authority-district/23UB,Cheltenham Borough Council,449355,3196,MG WINDOWS CHELTENHAM LIMITED,C-H44350-1104,Window Repairs-Council House repairs,18-May-11,30.00
http://statistics.data.gov.uk/id/local-authority-district/23UB,Cheltenham Borough Council,449357,2704,MG WINDOWS CHELTENHAM LIMITED,C-H44350-1104,Window Repairs-Council House repairs,18-May-11,32.89
http://statistics.data.gov.uk/id/local-authority-district/23UB,Cheltenham Borough Council,449359,02564,MG WINDOWS CHELTENHAM LIMITED,C-H44350-1104,Window Repairs-Council House repairs,18-May-11,96.67
http://statistics.data.gov.uk/id/local-authority-district/23UB,Cheltenham Borough Council,449365,02558,MG WINDOWS CHELTENHAM LIMITED,C-H44350-1104,Window Repairs-Council House repairs,18-May-11,23.90
http://statistics.data.gov.uk/id/local-authority-district/23UB,Cheltenham Borough Council,449364,02559,MG WINDOWS CHELTENHAM LIMITED,C-H44350-1104,Window Repairs-Council House repairs,18-May-11,38.03
http://statistics.data.gov.uk/id/local-authority-district/23UB,Cheltenham Borough Council,449363,02560,MG WINDOWS CHELTENHAM LIMITED,C-H44350-1104,Window Repairs-Council House repairs,18-May-11,29.60
http://statistics.data.gov.uk/id/local-authority-district/23UB,Cheltenham Borough Council,449362,02561,MG WINDOWS CHELTENHAM LIMITED,C-H44350-1104,Window Repairs-Council House repairs,18-May-11,86.63
http://statistics.data.gov.uk/id/local-authority-district/23UB,Cheltenham Borough Council,449361,02562,MG WINDOWS CHELTENHAM LIMITED,C-H44350-1104,Window Repairs-Council House repairs,18-May-11,102.20
http://statistics.data.gov.uk/id/local-authority-district/23UB,Cheltenham Borough Council,449360,02566,MG WINDOWS CHELTENHAM LIMITED,C-H44350-1104,Window Repairs-Council House repairs,18-May-11,33.74
http://statistics.data.gov.uk/id/local-authority-district/23UB,Cheltenham Borough Council,449358,02563,MG WINDOWS CHELTENHAM LIMITED,C-H44350-1104,Window Repairs-Council House repairs,18-May-11,198.69
http://statistics.data.gov.uk/id/local-authority-district/23UB,Cheltenham Borough Council,449356,02568,MG WINDOWS CHELTENHAM LIMITED,C-H44350-1104,Window Repairs-Council House repairs,18-May-11,111.50
http://statistics.data.gov.uk/id/local-authority-district/23UB,Cheltenham Borough Council,449354,02523,MG WINDOWS CHELTENHAM LIMITED,C-H44350-1104,Window Repairs-Council House repairs,18-May-11,259.10
http://statistics.data.gov.uk/id/local-authority-district/23UB,Cheltenham Borough Council,449353,02496,MG WINDOWS CHELTENHAM LIMITED,C-H44350-1104,Window Repairs-Council House repairs,18-May-11,86.48
http://statistics.data.gov.uk/id/local-authority-district/23UB,Cheltenham Borough Council,449979,02576,MG WINDOWS CHELTENHAM LIMITED,C-H44350-1104,Window Repairs-Council House repairs,25-May-11,29.80
http://statistics.data.gov.uk/id/local-authority-district/23UB,Cheltenham Borough Council,449980,02603,MG WINDOWS CHELTENHAM LIMITED,C-H44350-1104,Window Repairs-Council House repairs,25-May-11,105.75
http://statistics.data.gov.uk/id/local-authority-district/23UB,Cheltenham Borough Council,449982,02598,MG WINDOWS CHELTENHAM LIMITED,C-H44350-1104,Window Repairs-Council House repairs,25-May-11,166.85
http://statistics.data.gov.uk/id/local-authority-district/23UB,Cheltenham Borough Council,449984,02605,MG WINDOWS CHELTENHAM LIMITED,C-H44350-1104,Window Repairs-Council House repairs,25-May-11,38.60
http://statistics.data.gov.uk/id/local-authority-district/23UB,Cheltenham Borough Council,449986,02604,MG WINDOWS CHELTENHAM LIMITED,C-H44350-1104,Window Repairs-Council House repairs,25-May-11,99.10
http://statistics.data.gov.uk/id/local-authority-district/23UB,Cheltenham Borough Council,449988,02599,MG WINDOWS CHELTENHAM LIMITED,C-H44350-1104,Window Repairs-Council House repairs,25-May-11,2.50
http://statistics.data.gov.uk/id/local-authority-district/23UB,Cheltenham Borough Council,450006,02623,MG WINDOWS CHELTENHAM LIMITED,C-H44350-1104,Window Repairs-Council House repairs,25-May-11,106.99
http://statistics.data.gov.uk/id/local-authority-district/23UB,Cheltenham Borough Council,450005,02626,MG WINDOWS CHELTENHAM LIMITED,C-H44350-1104,Window Repairs-Council House repairs,25-May-11,28.60
http://statistics.data.gov.uk/id/local-authority-district/23UB,Cheltenham Borough Council,450004,02625,MG WINDOWS CHELTENHAM LIMITED,C-H44350-1104,Window Repairs-Council House repairs,25-May-11,112.41
http://statistics.data.gov.uk/id/local-authority-district/23UB,Cheltenham Borough Council,450003,02624,MG WINDOWS CHELTENHAM LIMITED,C-H44350-1104,Window Repairs-Council House repairs,25-May-11,63.81
http://statistics.data.gov.uk/id/local-authority-district/23UB,Cheltenham Borough Council,450002,02620,MG WINDOWS CHELTENHAM LIMITED,C-H44350-1104,Window Repairs-Council House repairs,25-May-11,70.77
http://statistics.data.gov.uk/id/local-authority-district/23UB,Cheltenham Borough Council,450001,02619,MG WINDOWS CHELTENHAM LIMITED,C-H44350-1104,Window Repairs-Council House repairs,25-May-11,108.75
http://statistics.data.gov.uk/id/local-authority-district/23UB,Cheltenham Borough Council,450000,02621,MG WINDOWS CHELTENHAM LIMITED,C-H44350-1104,Window Repairs-Council House repairs,25-May-11,113.20
http://statistics.data.gov.uk/id/local-authority-district/23UB,Cheltenham Borough Council,449999,02622,MG WINDOWS CHELTENHAM LIMITED,C-H44350-1104,Window Repairs-Council House repairs,25-May-11,32.00
http://statistics.data.gov.uk/id/local-authority-district/23UB,Cheltenham Borough Council,449998,02614,MG WINDOWS CHELTENHAM LIMITED,C-H44350-1104,Window Repairs-Council House repairs,25-May-11,65.08
http://statistics.data.gov.uk/id/local-authority-district/23UB,Cheltenham Borough Council,450039,02594,MG WINDOWS CHELTENHAM LIMITED,C-H44350-1104,Window Repairs-Council House repairs,25-May-11,40.00
http://statistics.data.gov.uk/id/local-authority-district/23UB,Cheltenham Borough Council,450038,02585,MG WINDOWS CHELTENHAM LIMITED,C-H44350-1104,Window Repairs-Council House repairs,25-May-11,62.39
http://statistics.data.gov.uk/id/local-authority-district/23UB,Cheltenham Borough Council,450037,02575,MG WINDOWS CHELTENHAM LIMITED,C-H44350-1104,Window Repairs-Council House repairs,25-May-11,98.00
http://statistics.data.gov.uk/id/local-authority-district/23UB,Cheltenham Borough Council,450036,02586,MG WINDOWS CHELTENHAM LIMITED,C-H44350-1104,Window Repairs-Council House repairs,25-May-11,91.15
http://statistics.data.gov.uk/id/local-authority-district/23UB,Cheltenham Borough Council,450035,02579,MG WINDOWS CHELTENHAM LIMITED,C-H44350-1104,Window Repairs-Council House repairs,25-May-11,66.41
http://statistics.data.gov.uk/id/local-authority-district/23UB,Cheltenham Borough Council,450034,02584,MG WINDOWS CHELTENHAM LIMITED,C-H44350-1104,Window Repairs-Council House repairs,25-May-11,37.55
http://statistics.data.gov.uk/id/local-authority-district/23UB,Cheltenham Borough Council,450033,02582,MG WINDOWS CHELTENHAM LIMITED,C-H44350-1104,Window Repairs-Council House repairs,25-May-11,97.60
http://statistics.data.gov.uk/id/local-authority-district/23UB,Cheltenham Borough Council,450032,02587,MG WINDOWS CHELTENHAM LIMITED,C-H44350-1104,Window Repairs-Council House repairs,25-May-11,51.40
http://statistics.data.gov.uk/id/local-authority-district/23UB,Cheltenham Borough Council,450031,02540,MG WINDOWS CHELTENHAM LIMITED,C-H44350-1104,Window Repairs-Council House repairs,25-May-11,121.57
http://statistics.data.gov.uk/id/local-authority-district/23UB,Cheltenham Borough Council,450048,02593,MG WINDOWS CHELTENHAM LIMITED,C-H44350-1104,Window Repairs-Council House repairs,25-May-11,32.23
http://statistics.data.gov.uk/id/local-authority-district/23UB,Cheltenham Borough Council,450047,02580,MG WINDOWS CHELTENHAM LIMITED,C-H44350-1104,Window Repairs-Council House repairs,25-May-11,101.11
http://statistics.data.gov.uk/id/local-authority-district/23UB,Cheltenham Borough Council,450046,02591,MG WINDOWS CHELTENHAM LIMITED,C-H44350-1104,Window Repairs-Council House repairs,25-May-11,19.10
http://statistics.data.gov.uk/id/local-authority-district/23UB,Cheltenham Borough Council,450045,02596,MG WINDOWS CHELTENHAM LIMITED,C-H44350-1104,Window Repairs-Council House repairs,25-May-11,62.68
http://statistics.data.gov.uk/id/local-authority-district/23UB,Cheltenham Borough Council,450044,02595,MG WINDOWS CHELTENHAM LIMITED,C-H44350-1104,Window Repairs-Council House repairs,25-May-11,77.00
http://statistics.data.gov.uk/id/local-authority-district/23UB,Cheltenham Borough Council,450043,02588,MG WINDOWS CHELTENHAM LIMITED,C-H44350-1104,Window Repairs-Council House repairs,25-May-11,33.88
http://statistics.data.gov.uk/id/local-authority-district/23UB,Cheltenham Borough Council,450042,02597,MG WINDOWS CHELTENHAM LIMITED,C-H44350-1104,Window Repairs-Council House repairs,25-May-11,90.56
http://statistics.data.gov.uk/id/local-authority-district/23UB,Cheltenham Borough Council,450041,02589,MG WINDOWS CHELTENHAM LIMITED,C-H44350-1104,Window Repairs-Council House repairs,25-May-11,54.81
http://statistics.data.gov.uk/id/local-authority-district/23UB,Cheltenham Borough Council,450040,02590,MG WINDOWS CHELTENHAM LIMITED,C-H44350-1104,Window Repairs-Council House repairs,25-May-11,18.00
http://statistics.data.gov.uk/id/local-authority-district/23UB,Cheltenham Borough Council,450057,02574,MG WINDOWS CHELTENHAM LIMITED,C-H44350-1104,Window Repairs-Council House repairs,25-May-11,36.74
http://statistics.data.gov.uk/id/local-authority-district/23UB,Cheltenham Borough Council,450056,02583,MG WINDOWS CHELTENHAM LIMITED,C-H44350-1104,Window Repairs-Council House repairs,25-May-11,31.55
http://statistics.data.gov.uk/id/local-authority-district/23UB,Cheltenham Borough Council,450055,02570,MG WINDOWS CHELTENHAM LIMITED,C-H44350-1104,Window Repairs-Council House repairs,25-May-11,168.34
http://statistics.data.gov.uk/id/local-authority-district/23UB,Cheltenham Borough Council,450054,02578,MG WINDOWS CHELTENHAM LIMITED,C-H44350-1104,Window Repairs-Council House repairs,25-May-11,186.31
http://statistics.data.gov.uk/id/local-authority-district/23UB,Cheltenham Borough Council,450053,02571,MG WINDOWS CHELTENHAM LIMITED,C-H44350-1104,Window Repairs-Council House repairs,25-May-11,85.93
http://statistics.data.gov.uk/id/local-authority-district/23UB,Cheltenham Borough Council,450052,02572,MG WINDOWS CHELTENHAM LIMITED,C-H44350-1104,Window Repairs-Council House repairs,25-May-11,199.80
http://statistics.data.gov.uk/id/local-authority-district/23UB,Cheltenham Borough Council,450051,02577,MG WINDOWS CHELTENHAM LIMITED,C-H44350-1104,Window Repairs-Council House repairs,25-May-11,125.70
http://statistics.data.gov.uk/id/local-authority-district/23UB,Cheltenham Borough Council,450050,02573,MG WINDOWS CHELTENHAM LIMITED,C-H44350-1104,Window Repairs-Council House repairs,25-May-11,53.60
http://statistics.data.gov.uk/id/local-authority-district/23UB,Cheltenham Borough Council,450049,02592,MG WINDOWS CHELTENHAM LIMITED,C-H44350-1104,Window Repairs-Council House repairs,25-May-11,24.20
http://statistics.data.gov.uk/id/local-authority-district/23UB,Cheltenham Borough Council,449996,02612,MG WINDOWS CHELTENHAM LIMITED,C-H44350-1104,Window Repairs-Council House repairs,25-May-11,41.21
http://statistics.data.gov.uk/id/local-authority-district/23UB,Cheltenham Borough Council,449995,02617,MG WINDOWS CHELTENHAM LIMITED,C-H44350-1104,Window Repairs-Council House repairs,25-May-11,39.60
http://statistics.data.gov.uk/id/local-authority-district/23UB,Cheltenham Borough Council,449994,02615,MG WINDOWS CHELTENHAM LIMITED,C-H44350-1104,Window Repairs-Council House repairs,25-May-11,173.07
http://statistics.data.gov.uk/id/local-authority-district/23UB,Cheltenham Borough Council,449993,02616,MG WINDOWS CHELTENHAM LIMITED,C-H44350-1104,Window Repairs-Council House repairs,25-May-11,33.80
http://statistics.data.gov.uk/id/local-authority-district/23UB,Cheltenham Borough Council,449992,02613,MG WINDOWS CHELTENHAM LIMITED,C-H44350-1104,Window Repairs-Council House repairs,25-May-11,102.07
http://statistics.data.gov.uk/id/local-authority-district/23UB,Cheltenham Borough Council,449991,02609,MG WINDOWS CHELTENHAM LIMITED,C-H44350-1104,Window Repairs-Council House repairs,25-May-11,268.07
http://statistics.data.gov.uk/id/local-authority-district/23UB,Cheltenham Borough Council,449990,02611,MG WINDOWS CHELTENHAM LIMITED,C-H44350-1104,Window Repairs-Council House repairs,25-May-11,76.09
http://statistics.data.gov.uk/id/local-authority-district/23UB,Cheltenham Borough Council,449989,02607,MG WINDOWS CHELTENHAM LIMITED,C-H44350-1104,Window Repairs-Council House repairs,25-May-11,20.00
http://statistics.data.gov.uk/id/local-authority-district/23UB,Cheltenham Borough Council,449987,02600,MG WINDOWS CHELTENHAM LIMITED,C-H44350-1104,Window Repairs-Council House repairs,25-May-11,28.00
http://statistics.data.gov.uk/id/local-authority-district/23UB,Cheltenham Borough Council,449985,02606,MG WINDOWS CHELTENHAM LIMITED,C-H44350-1104,Window Repairs-Council House repairs,25-May-11,20.00
http://statistics.data.gov.uk/id/local-authority-district/23UB,Cheltenham Borough Council,449983,02608,MG WINDOWS CHELTENHAM LIMITED,C-H44350-1104,Window Repairs-Council House repairs,25-May-11,27.55
http://statistics.data.gov.uk/id/local-authority-district/23UB,Cheltenham Borough Council,449981,02602,MG WINDOWS CHELTENHAM LIMITED,C-H44350-1104,Window Repairs-Council House repairs,25-May-11,19.60
http://statistics.data.gov.uk/id/local-authority-district/23UB,Cheltenham Borough Council,449997,02411,MG WINDOWS CHELTENHAM LIMITED,C-H44350-1118,Window Repairs-Rechargeable Repairs ,25-May-11,27.93
http://statistics.data.gov.uk/id/local-authority-district/23UB,Cheltenham Borough Council,448551,h162433,MIDLANDS VEHICLE RENTAL LIMITED,C-C24100-2702,Fleet Maint-Additional vehicle hire,11-May-11,"1,221.00"
http://statistics.data.gov.uk/id/local-authority-district/23UB,Cheltenham Borough Council,448552,h162436,MIDLANDS VEHICLE RENTAL LIMITED,C-C24100-2702,Fleet Maint-Additional vehicle hire,11-May-11,"1,221.00"
http://statistics.data.gov.uk/id/local-authority-district/23UB,Cheltenham Borough Council,448553,h162438,MIDLANDS VEHICLE RENTAL LIMITED,C-C24100-2702,Fleet Maint-Additional vehicle hire,11-May-11,"1,221.00"
http://statistics.data.gov.uk/id/local-authority-district/23UB,Cheltenham Borough Council,448554,4162594,MIDLANDS VEHICLE RENTAL LIMITED,C-C24100-2702,Fleet Maint-Additional vehicle hire,11-May-11,476.10
http://statistics.data.gov.uk/id/local-authority-district/23UB,Cheltenham Borough Council,448556,H162616,MIDLANDS VEHICLE RENTAL LIMITED,C-C24100-2702,Fleet Maint-Additional vehicle hire,11-May-11,637.50
http://statistics.data.gov.uk/id/local-authority-district/23UB,Cheltenham Borough Council,448555,H162713,MIDLANDS VEHICLE RENTAL LIMITED,C-C24100-2702,Fleet Maint-Additional vehicle hire,11-May-11,211.50
http://statistics.data.gov.uk/id/local-authority-district/23UB,Cheltenham Borough Council,448376,H162562,MIDLANDS VEHICLE RENTAL LIMITED,C-C24100-2702,Fleet Maint-Additional vehicle hire,11-May-11,23.50
http://statistics.data.gov.uk/id/local-authority-district/23UB,Cheltenham Borough Council,448375,H162598,MIDLANDS VEHICLE RENTAL LIMITED,C-C24100-2702,Fleet Maint-Additional vehicle hire,11-May-11,98.00
http://statistics.data.gov.uk/id/local-authority-district/23UB,Cheltenham Borough Council,448374,1263,MIDLANDS VEHICLE RENTAL LIMITED,C-C24100-2702,Fleet Maint-Additional vehicle hire,11-May-11,80.00
http://statistics.data.gov.uk/id/local-authority-district/23UB,Cheltenham Borough Council,448326,H162573,MIDLANDS VEHICLE RENTAL LIMITED,C-C24100-2702,Fleet Maint-Additional vehicle hire,11-May-11,282.00
http://statistics.data.gov.uk/id/local-authority-district/23UB,Cheltenham Borough Council,450255,H162883,MIDLANDS VEHICLE RENTAL LIMITED,C-C24100-2702,Fleet Maint-Additional vehicle hire,27-May-11,148.00
http://statistics.data.gov.uk/id/local-authority-district/23UB,Cheltenham Borough Council,450258,H162787,MIDLANDS VEHICLE RENTAL LIMITED,C-C24100-2702,Fleet Maint-Additional vehicle hire,27-May-11,296.00
http://statistics.data.gov.uk/id/local-authority-district/23UB,Cheltenham Borough Council,450257,1276,MIDLANDS VEHICLE RENTAL LIMITED,C-C24100-2702,Fleet Maint-Additional vehicle hire,27-May-11,110.17
http://statistics.data.gov.uk/id/local-authority-district/23UB,Cheltenham Borough Council,450256,1273,MIDLANDS VEHICLE RENTAL LIMITED,C-C24100-2702,Fleet Maint-Additional vehicle hire,27-May-11,97.38
http://statistics.data.gov.uk/id/local-authority-district/23UB,Cheltenham Borough Council,448720,77,J.J.MORRELL,C-D11400-3501,Audit & Assrnce-Hire of outside services,13-May-11,"1,993.50"
http://statistics.data.gov.uk/id/local-authority-district/23UB,Cheltenham Borough Council,449527,HSG 881219,MPL WROUGHT IRON,C-HC4066-C302,Misc Works-Building Contractor,18-May-11,"9,627.40"
http://statistics.data.gov.uk/id/local-authority-district/23UB,Cheltenham Borough Council,450016,1207,MPL WROUGHT IRON,C-H44752-1104,Dis Adapts-Tech-Council House repairs,25-May-11,"1,300.00"
http://statistics.data.gov.uk/id/local-authority-district/23UB,Cheltenham Borough Council,450012,337,NATURE FIRST LIMITED,C-H33700-1305,Estate Services-Tree surgery,25-May-11,"3,775.00"
http://statistics.data.gov.uk/id/local-authority-district/23UB,Cheltenham Borough Council,448466,PRO FORMA,NEOPOST LIMITED,C-L41100-3602,AG & M-Postages - frkng machine,09-May-11,"1,000.00"
http://statistics.data.gov.uk/id/local-authority-district/23UB,Cheltenham Borough Council,450311,R296539,NEWSPAPER LICENSING AGENCY,C-D11900-3426,Communic.Mgmt-Newspaper Licensing Agcy,27-May-11,910.00
http://statistics.data.gov.uk/id/local-authority-district/23UB,Cheltenham Borough Council,449642,55238313,NORTHCLIFFE MEDIA LTD,C-1T01C1-3510,Shaolin Warrior-Promotion & Marketing,20-May-11,90.83
http://statistics.data.gov.uk/id/local-authority-district/23UB,Cheltenham Borough Council,449642,55238313,NORTHCLIFFE MEDIA LTD,C-1T03C1-3510,Rob Rouse-Promotion & Marketing ,20-May-11,90.82
http://statistics.data.gov.uk/id/local-authority-district/23UB,Cheltenham Borough Council,449642,55238313,NORTHCLIFFE MEDIA LTD,C-1T18A1-3510,Greg Davies-Promotion & Marketing  ,20-May-11,90.83
http://statistics.data.gov.uk/id/local-authority-district/23UB,Cheltenham Borough Council,449642,55238313,NORTHCLIFFE MEDIA LTD,C-1T18B1-3510,Tony Christie-Promotion & Marketing  ,20-May-11,90.83
http://statistics.data.gov.uk/id/local-authority-district/23UB,Cheltenham Borough Council,449642,55238313,NORTHCLIFFE MEDIA LTD,C-1T22B1-3510,Loudon Wainwrig-Promotion & Marketing     ,20-May-11,90.83
http://statistics.data.gov.uk/id/local-authority-district/23UB,Cheltenham Borough Council,449642,55238313,NORTHCLIFFE MEDIA LTD,C-1T25B1-3510,Philharmonia 2-Promotion & Marketing,20-May-11,90.83
http://statistics.data.gov.uk/id/local-authority-district/23UB,Cheltenham Borough Council,449642,55238313,NORTHCLIFFE MEDIA LTD,C-1T29B1-3510,Ladysmith Black-Promotion & Marketing ,20-May-11,90.83
http://statistics.data.gov.uk/id/local-authority-district/23UB,Cheltenham Borough Council,449867,065 4226 3782,NPOWER,C-H33700-1402,Estate Services-Electricity,25-May-11,21.49
